Voucher,Voucher_Line,Distribution_Line,Entered,Month_Number,Fiscal_Month,Month,Fiscal_Year,Year,Vendor_Name,Account,Account_Descr,Dept,Dept_Name,c6_Digit_Org_Name,Monetary_Amount
L0007084,1,1,8/5/2020,8,2,August,2021,2021,Indigo Block Apartments LLC,52926,ContServ Loans,188300,Neighborhood Development,Housing Development,864246.95
L0007085,1,1,8/5/2020,8,2,August,2021,2021,"35 Hansborough Affordable Housing, Inc.",52926,ContServ Loans,188300,Neighborhood Development,Housing Development,30719.45
L0007086,1,1,8/5/2020,8,2,August,2021,2021,"35 Hansborough Affordable Housing, Inc.",52926,ContServ Loans,188300,Neighborhood Development,Housing Development,60000
L0007087,1,1,8/6/2020,8,2,August,2021,2021,W & W Construction Corp.,52926,ContServ Loans,188300,Neighborhood Development,Housing Development,11952
L0007088,1,1,8/6/2020,8,2,August,2021,2021,W & W Construction Corp.,52926,ContServ Loans,188300,Neighborhood Development,Housing Development,3390
L0007089,1,1,8/7/2020,8,2,August,2021,2021,A S Construction,52926,ContServ Loans,188300,Neighborhood Development,Housing Development,24600
L0007090,1,1,8/7/2020,8,2,August,2021,2021,Aileron Homeownership LLC,52926,ContServ Loans,188300,Neighborhood Development,Housing Development,28548
L0007091,1,1,8/17/2020,8,2,August,2021,2021,Clarendon Warren Condominium Trust,52926,ContServ Loans,188300,Neighborhood Development,Housing Development,60406.8
L0007092,1,1,8/17/2020,8,2,August,2021,2021,Terrace Bravo LLC,52926,ContServ Loans,188300,Neighborhood Development,Housing Development,302757.02
L0007093,1,1,8/17/2020,8,2,August,2021,2021,Boston Housing Stabilization,52926,ContServ Loans,188300,Neighborhood Development,Housing Development,46303.47
L0007094,1,1,8/18/2020,8,2,August,2021,2021,Aileron Homeownership LLC,52926,ContServ Loans,188300,Neighborhood Development,Housing Development,48740.07
L0007095,1,1,8/19/2020,8,2,August,2021,2021,Wood and Stone Construction,52926,ContServ Loans,188300,Neighborhood Development,Housing Development,27341
L0007096,1,1,8/19/2020,8,2,August,2021,2021,UHomes LLC,52926,ContServ Loans,188300,Neighborhood Development,Housing Development,175878.54
L0007097,1,1,8/19/2020,8,2,August,2021,2021,"A.O. Flats at Forest Hills, LLC",52926,ContServ Loans,188300,Neighborhood Development,Housing Development,45540
L0007098,1,1,8/19/2020,8,2,August,2021,2021,Brighton Marine Housing LP,52926,ContServ Loans,188300,Neighborhood Development,Housing Development,1000
L0007099,1,1,8/21/2020,8,2,August,2021,2021,A S Construction,52926,ContServ Loans,188300,Neighborhood Development,Housing Development,20000
L0007100,1,1,8/21/2020,8,2,August,2021,2021,W & W Construction Corp.,52926,ContServ Loans,188300,Neighborhood Development,Housing Development,3330
L0007101,1,1,8/21/2020,8,2,August,2021,2021,"Martin, Philip P",52926,ContServ Loans,188300,Neighborhood Development,Housing Development,4994.5
WESLEY04,1,1,8/14/2020,8,2,August,2021,2021,"Wesley Child Care Center, Inc.",52940,Subreceipt Contract  Services,101013,Boston Public School Dept,Early Learning Services,17505.08
2941523,1,1,8/1/2020,8,2,August,2021,2021,"Boys & Girls Clubs of Dorchester, Inc",52940,Subreceipt Contract  Services,101013,Boston Public School Dept,Early Learning Services,2094.31
2941524,2,1,8/3/2020,8,2,August,2021,2021,Back Bay Sign LLC,52907,Cont Serv Other,221501,Fire Department,Facilities Maintenance,35
2941524,1,1,8/3/2020,8,2,August,2021,2021,Back Bay Sign LLC,52907,Cont Serv Other,221501,Fire Department,Facilities Maintenance,90
2941525,1,1,8/3/2020,8,2,August,2021,2021,City of Somerville,52940,Subreceipt Contract  Services,231858,Emergency Management,MOHSP - Somerville,7170.36
2941527,1,1,8/3/2020,8,2,August,2021,2021,Town of Winchendon,52907,Cont Serv Other,101188,Boston Public School Dept,BPS Sped Contracted Ed Service,232.5
2941528,1,1,8/3/2020,8,2,August,2021,2021,Town of Framingham,52907,Cont Serv Other,101188,Boston Public School Dept,BPS Sped Contracted Ed Service,2085
2941529,1,1,8/3/2020,8,2,August,2021,2021,"BMCA, Inc",52604,RepairMnt Bldg Other,101097,Boston Public School Dept,Food & Nutrition Svc,375
2941530,1,1,8/3/2020,8,2,August,2021,2021,"BMCA, Inc",52604,RepairMnt Bldg Other,101097,Boston Public School Dept,Food & Nutrition Svc,375
2941531,1,1,8/3/2020,8,2,August,2021,2021,Eco Systems Pest Control Inc,52604,RepairMnt Bldg Other,101046,Boston Public School Dept,BPS Planning & Engineering,10217.64
2941532,1,1,8/3/2020,8,2,August,2021,2021,TRANSDEV SERVICES. INC,52805,TransTrvl Controlled Choice,101081,Boston Public School Dept,BPS Transportation,163512.04
2941533,1,1,8/3/2020,8,2,August,2021,2021,Petroleum Management Services Inc,52604,RepairMnt Bldg Other,101046,Boston Public School Dept,BPS Planning & Engineering,2984
2941534,1,1,8/3/2020,8,2,August,2021,2021,"Lighthouse Environmental Solutions, LLC",52604,RepairMnt Bldg Other,101046,Boston Public School Dept,BPS Planning & Engineering,3260
2941535,1,1,8/3/2020,8,2,August,2021,2021,"Institute For Environmental Education,In",52604,RepairMnt Bldg Other,101046,Boston Public School Dept,BPS Planning & Engineering,205
2941536,1,1,8/3/2020,8,2,August,2021,2021,"Systemwide Environmental Company, LLC",52604,RepairMnt Bldg Other,101046,Boston Public School Dept,BPS Planning & Engineering,210
2941537,1,1,8/3/2020,8,2,August,2021,2021,TRANSDEV SERVICES. INC,52805,TransTrvl Controlled Choice,101081,Boston Public School Dept,BPS Transportation,73042.1
2941538,8,1,8/3/2020,8,2,August,2021,2021,"S & S WorldWide, Inc.",53909,MiscSup Other,385104,Boston Center-Youth & Families,BCYF Site Councils,5.48
2941538,7,1,8/3/2020,8,2,August,2021,2021,"S & S WorldWide, Inc.",53909,MiscSup Other,385104,Boston Center-Youth & Families,BCYF Site Councils,169.44
2941538,6,1,8/3/2020,8,2,August,2021,2021,"S & S WorldWide, Inc.",53909,MiscSup Other,385104,Boston Center-Youth & Families,BCYF Site Councils,31
2941538,5,1,8/3/2020,8,2,August,2021,2021,"S & S WorldWide, Inc.",53909,MiscSup Other,385104,Boston Center-Youth & Families,BCYF Site Councils,31
2941538,4,1,8/3/2020,8,2,August,2021,2021,"S & S WorldWide, Inc.",53909,MiscSup Other,385104,Boston Center-Youth & Families,BCYF Site Councils,31
2941538,3,1,8/3/2020,8,2,August,2021,2021,"S & S WorldWide, Inc.",53909,MiscSup Other,385104,Boston Center-Youth & Families,BCYF Site Councils,57.58
2941538,2,1,8/3/2020,8,2,August,2021,2021,"S & S WorldWide, Inc.",53909,MiscSup Other,385104,Boston Center-Youth & Families,BCYF Site Councils,50.82
2941538,1,1,8/3/2020,8,2,August,2021,2021,"S & S WorldWide, Inc.",53909,MiscSup Other,385104,Boston Center-Youth & Families,BCYF Site Councils,9.56
2941539,1,1,8/3/2020,8,2,August,2021,2021,TRANSDEV SERVICES. INC,52805,TransTrvl Controlled Choice,101081,Boston Public School Dept,BPS Transportation,42540.32
2941540,1,1,8/3/2020,8,2,August,2021,2021,"Joe Warren & Sons Co., Inc.",52604,RepairMnt Bldg Other,101046,Boston Public School Dept,BPS Planning & Engineering,974.67
2941541,1,1,8/3/2020,8,2,August,2021,2021,"Joe Warren & Sons Co., Inc.",52604,RepairMnt Bldg Other,101046,Boston Public School Dept,BPS Planning & Engineering,929.67
2941542,1,1,8/3/2020,8,2,August,2021,2021,"Joe Warren & Sons Co., Inc.",52604,RepairMnt Bldg Other,101046,Boston Public School Dept,BPS Planning & Engineering,1107.48
2941543,1,1,8/3/2020,8,2,August,2021,2021,Collins Images,52901,ContServ  Printing/Binding,221100,Fire Department,Administration,145
2941544,1,1,8/3/2020,8,2,August,2021,2021,TRANSDEV SERVICES. INC,52805,TransTrvl Controlled Choice,101081,Boston Public School Dept,BPS Transportation,140793.35
2941545,1,1,8/3/2020,8,2,August,2021,2021,nesterly,52940,Subreceipt Contract  Services,188300,Neighborhood Development,Housing Development,88200
2941546,2,1,8/3/2020,8,2,August,2021,2021,Crispus Attucks Childrens Center,52940,Subreceipt Contract  Services,101013,Boston Public School Dept,Early Learning Services,22000
2941546,1,1,8/3/2020,8,2,August,2021,2021,Crispus Attucks Childrens Center,52940,Subreceipt Contract  Services,101013,Boston Public School Dept,Early Learning Services,2170.1
2941547,1,1,8/3/2020,8,2,August,2021,2021,Taste De Tropiks,53204,Food  Catering,101679,Boston Public School Dept,WREC Urban Science Academy,3594
2941548,1,1,8/3/2020,8,2,August,2021,2021,Norfolk Hardware,53909,MiscSup Other,180201,Property Management,Building Maintenance,399.99
2941549,5,1,8/3/2020,8,2,August,2021,2021,"Early Childhood, LLC DBA Discount School",53802,EducSup Instructional Other,101406,Boston Public School Dept,Russell Elementary School,29.73
2941549,4,1,8/3/2020,8,2,August,2021,2021,"Early Childhood, LLC DBA Discount School",53802,EducSup Instructional Other,101406,Boston Public School Dept,Russell Elementary School,29.48
2941549,3,1,8/3/2020,8,2,August,2021,2021,"Early Childhood, LLC DBA Discount School",53802,EducSup Instructional Other,101406,Boston Public School Dept,Russell Elementary School,10
2941549,2,1,8/3/2020,8,2,August,2021,2021,"Early Childhood, LLC DBA Discount School",53802,EducSup Instructional Other,101406,Boston Public School Dept,Russell Elementary School,12.79
2941549,1,1,8/3/2020,8,2,August,2021,2021,"Early Childhood, LLC DBA Discount School",53802,EducSup Instructional Other,101406,Boston Public School Dept,Russell Elementary School,91.78
2941550,1,1,8/3/2020,8,2,August,2021,2021,"MobyMax, LLC",52907,Cont Serv Other,101522,Boston Public School Dept,Edwards Middle School,6494
2941551,1,1,8/3/2020,8,2,August,2021,2021,The Boston Debate League Incorporated,52907,Cont Serv Other,101609,Boston Public School Dept,Boston Community Leadrshp Acad,833.33
2941553,1,1,8/3/2020,8,2,August,2021,2021,Boston Chinatown Neighborhood Center Inc,52940,Subreceipt Contract  Services,101013,Boston Public School Dept,Early Learning Services,18619.1
2941554,1,1,8/3/2020,8,2,August,2021,2021,"ABCD, Incorporated",52940,Subreceipt Contract  Services,101013,Boston Public School Dept,Early Learning Services,333561.6
2941555,5,1,8/3/2020,8,2,August,2021,2021,G.A. Blanco & Sons Inc.,53909,MiscSup Other,101040,Boston Public School Dept,BPS Facility Management,137.5
2941555,4,1,8/3/2020,8,2,August,2021,2021,G.A. Blanco & Sons Inc.,53909,MiscSup Other,101040,Boston Public School Dept,BPS Facility Management,120
2941555,3,1,8/3/2020,8,2,August,2021,2021,G.A. Blanco & Sons Inc.,53909,MiscSup Other,101040,Boston Public School Dept,BPS Facility Management,120
2941555,2,1,8/3/2020,8,2,August,2021,2021,G.A. Blanco & Sons Inc.,53909,MiscSup Other,101040,Boston Public School Dept,BPS Facility Management,120
2941555,1,1,8/3/2020,8,2,August,2021,2021,G.A. Blanco & Sons Inc.,53909,MiscSup Other,101040,Boston Public School Dept,BPS Facility Management,180
2941557,1,1,8/3/2020,8,2,August,2021,2021,"School Specialty, Inc.",53802,EducSup Instructional Other,101018,Boston Public School Dept,Teaching & Learning,278.64
2941559,1,1,8/3/2020,8,2,August,2021,2021,Inquilinos Boricuas En Accion,52941,Subreceipt Grants,387100,Age Strong,Administration,700.32
2941562,1,1,8/3/2020,8,2,August,2021,2021,Paul J Rogan Company Inc,52601,RepairMnt Serv Building,221501,Fire Department,Facilities Maintenance,8355.26
2941563,1,1,8/3/2020,8,2,August,2021,2021,Town of Plymouth,52301,CntrtEduc Services/Tuitions,101188,Boston Public School Dept,BPS Sped Contracted Ed Service,1310.15
2941564,1,1,8/3/2020,8,2,August,2021,2021,Town of Plymouth,52301,CntrtEduc Services/Tuitions,101188,Boston Public School Dept,BPS Sped Contracted Ed Service,2153.2
2941566,1,1,8/3/2020,8,2,August,2021,2021,New Directions Solutions LLC,52303,CntrtEduc Therapy,101188,Boston Public School Dept,BPS Sped Contracted Ed Service,8320
2941567,2,1,8/3/2020,8,2,August,2021,2021,Boston Gas Company,52210,Utilities St Lt Gas,311700,Public Works Department,Street Lights,80764.16
2941567,1,1,8/3/2020,8,2,August,2021,2021,Boston Gas Company,52203,Utilities Gas,101040,Boston Public School Dept,BPS Facility Management,5411.53
2941568,1,1,8/3/2020,8,2,August,2021,2021,Collaborative for Educational Services,52301,CntrtEduc Services/Tuitions,101188,Boston Public School Dept,BPS Sped Contracted Ed Service,6006
2941569,1,1,8/3/2020,8,2,August,2021,2021,"Pro AV Systems, Inc.",52907,Cont Serv Other,211206,Police Department,TELECOM. MGMT. GROUP,387.5
2941570,1,1,8/3/2020,8,2,August,2021,2021,Collaborative for Educational Services,52301,CntrtEduc Services/Tuitions,101188,Boston Public School Dept,BPS Sped Contracted Ed Service,6006
2941571,1,1,8/3/2020,8,2,August,2021,2021,PJ Systems Inc. d/b/a,52907,Cont Serv Other,101084,Boston Public School Dept,Info & Instr Technology,4818
2941572,1,1,8/3/2020,8,2,August,2021,2021,The Office of The Inspector General,52920,ContServ Training,131500,Auditing Department,Accounts Payable,-70
2941573,5,1,8/3/2020,8,2,August,2021,2021,PJ Systems Inc. d/b/a,55903,Equipment Computer/Desktop,101081,Boston Public School Dept,BPS Transportation,840
2941573,4,1,8/3/2020,8,2,August,2021,2021,PJ Systems Inc. d/b/a,55903,Equipment Computer/Desktop,101081,Boston Public School Dept,BPS Transportation,0
2941573,3,1,8/3/2020,8,2,August,2021,2021,PJ Systems Inc. d/b/a,55903,Equipment Computer/Desktop,101081,Boston Public School Dept,BPS Transportation,3285
2941573,2,1,8/3/2020,8,2,August,2021,2021,PJ Systems Inc. d/b/a,55903,Equipment Computer/Desktop,101081,Boston Public School Dept,BPS Transportation,0
2941573,1,1,8/3/2020,8,2,August,2021,2021,PJ Systems Inc. d/b/a,55903,Equipment Computer/Desktop,101081,Boston Public School Dept,BPS Transportation,9900
2941574,6,1,8/3/2020,8,2,August,2021,2021,PJ Systems Inc. d/b/a,55903,Equipment Computer/Desktop,101089,Boston Public School Dept,Enrollment Services,1200
2941574,5,1,8/3/2020,8,2,August,2021,2021,PJ Systems Inc. d/b/a,55903,Equipment Computer/Desktop,101089,Boston Public School Dept,Enrollment Services,2200
2941574,4,1,8/3/2020,8,2,August,2021,2021,PJ Systems Inc. d/b/a,55903,Equipment Computer/Desktop,101089,Boston Public School Dept,Enrollment Services,6000
2941574,3,1,8/3/2020,8,2,August,2021,2021,PJ Systems Inc. d/b/a,55903,Equipment Computer/Desktop,101089,Boston Public School Dept,Enrollment Services,1200
2941574,2,1,8/3/2020,8,2,August,2021,2021,PJ Systems Inc. d/b/a,55903,Equipment Computer/Desktop,101089,Boston Public School Dept,Enrollment Services,13000
2941574,1,1,8/3/2020,8,2,August,2021,2021,PJ Systems Inc. d/b/a,55903,Equipment Computer/Desktop,101089,Boston Public School Dept,Enrollment Services,37800
2941575,1,1,8/3/2020,8,2,August,2021,2021,Gravotech Inc,52907,Cont Serv Other,211206,Police Department,TELECOM. MGMT. GROUP,1743
2941576,1,1,8/3/2020,8,2,August,2021,2021,Different Roads to Learning,53802,EducSup Instructional Other,101624,Boston Public School Dept,Brighton High School,17.95
2941577,1,1,8/3/2020,8,2,August,2021,2021,BLDUP INC,54902,Current Subscriptions,136200,Assessing Department,Valuation,299.99
2941578,1,1,8/3/2020,8,2,August,2021,2021,"Messina, Robert",52905,ContServ Legal Outside Counsel,311100,Public Works Department,Commissioner's Office,40
2941579,1,1,8/3/2020,8,2,August,2021,2021,"MacRitchie Enginering, Inc.",52904,ContSer  Architect/Engineering,180000,Property Management,Property Management,15060
2941580,1,1,8/3/2020,8,2,August,2021,2021,"James, Clark",52907,Cont Serv Other,211402,Police Department,ACADEMY,1280
2941581,1,1,8/3/2020,8,2,August,2021,2021,"James, Clark",52907,Cont Serv Other,211402,Police Department,ACADEMY,1600
2941582,1,1,8/3/2020,8,2,August,2021,2021,Autism Spectrum Therapies,52907,Cont Serv Other,101170,Boston Public School Dept,BPS Special Education,20307.77
2941583,1,1,8/3/2020,8,2,August,2021,2021,Massachusetts College of Pharmacy and He,52941,Subreceipt Grants,387100,Age Strong,Administration,1277.63
2941584,1,1,8/3/2020,8,2,August,2021,2021,"PK Associates, Inc. d/b/a",52922,ContServ Construction Capital,31196M,Public Works Department,St -Sidewalk Construction,152858.06
2941585,1,1,8/3/2020,8,2,August,2021,2021,"Weston and Sampson Engineers, Inc",52904,ContSer  Architect/Engineering,311000,Public Works Department,Public Works Department,210000.08
2941586,1,1,8/3/2020,8,2,August,2021,2021,"Applied Research Associates, Inc.",52922,ContServ Construction Capital,311000,Public Works Department,Public Works Department,13776.59
2941587,1,1,8/3/2020,8,2,August,2021,2021,Civis Analytics,54906,Current Software Licen/Maint,149500,Dpt of Innovation & Technology,Data & Analytics,20000
2941588,1,1,8/3/2020,8,2,August,2021,2021,Catholic Charitable Bureau of Arch. of B,52940,Subreceipt Contract  Services,188100,Neighborhood Development,Administration,11939.55
2941589,1,1,8/3/2020,8,2,August,2021,2021,"LA Alianza Hispana, Inc.",52940,Subreceipt Contract  Services,188100,Neighborhood Development,Administration,2729
2941590,1,1,8/3/2020,8,2,August,2021,2021,Lesley University,52907,Cont Serv Other,101309,Boston Public School Dept,Holmes Elementary School,1500
2941591,1,1,8/3/2020,8,2,August,2021,2021,TRANSDEV SERVICES. INC,52805,TransTrvl Controlled Choice,101081,Boston Public School Dept,BPS Transportation,946.66
2941592,1,1,8/3/2020,8,2,August,2021,2021,New England School Services,52604,RepairMnt Bldg Other,10196K,Boston Public School Dept,Facilities  Fund,9999
2941593,1,1,8/3/2020,8,2,August,2021,2021,"LA Alianza Hispana, Inc.",52940,Subreceipt Contract  Services,188100,Neighborhood Development,Administration,4093
2941594,1,1,8/3/2020,8,2,August,2021,2021,"LA Alianza Hispana, Inc.",52940,Subreceipt Contract  Services,188100,Neighborhood Development,Administration,2729
2941595,1,1,8/3/2020,8,2,August,2021,2021,D. James Thomas Ministries Inc,52907,Cont Serv Other,101286,Boston Public School Dept,Greenwood Schl K-8,2499.99
2941596,1,1,8/3/2020,8,2,August,2021,2021,"Dell Marketing, LP",54906,Current Software Licen/Maint,136200,Assessing Department,Valuation,4151.45
2941597,1,1,8/3/2020,8,2,August,2021,2021,D. James Thomas Ministries Inc,52907,Cont Serv Other,101286,Boston Public School Dept,Greenwood Schl K-8,4999.83
2941598,1,1,8/3/2020,8,2,August,2021,2021,"W.B. Mason Co., Inc.",53602,Office Supplies General,311100,Public Works Department,Commissioner's Office,34.85
2941599,6,1,8/3/2020,8,2,August,2021,2021,"S & S WorldWide, Inc.",53909,MiscSup Other,385104,Boston Center-Youth & Families,BCYF Site Councils,44.99
2941599,5,1,8/3/2020,8,2,August,2021,2021,"S & S WorldWide, Inc.",53909,MiscSup Other,385104,Boston Center-Youth & Families,BCYF Site Councils,14.99
2941599,4,1,8/3/2020,8,2,August,2021,2021,"S & S WorldWide, Inc.",53909,MiscSup Other,385104,Boston Center-Youth & Families,BCYF Site Councils,44.37
2941599,3,1,8/3/2020,8,2,August,2021,2021,"S & S WorldWide, Inc.",53909,MiscSup Other,385104,Boston Center-Youth & Families,BCYF Site Councils,102.57
2941599,2,1,8/3/2020,8,2,August,2021,2021,"S & S WorldWide, Inc.",53909,MiscSup Other,385104,Boston Center-Youth & Families,BCYF Site Councils,34.47
2941599,1,1,8/3/2020,8,2,August,2021,2021,"S & S WorldWide, Inc.",53909,MiscSup Other,385104,Boston Center-Youth & Families,BCYF Site Councils,13.98
2941600,3,1,8/3/2020,8,2,August,2021,2021,"W.B. Mason Co., Inc.",53909,MiscSup Other,385104,Boston Center-Youth & Families,BCYF Site Councils,1075.95
2941600,2,1,8/3/2020,8,2,August,2021,2021,"W.B. Mason Co., Inc.",53909,MiscSup Other,385104,Boston Center-Youth & Families,BCYF Site Councils,295
2941600,1,1,8/3/2020,8,2,August,2021,2021,"W.B. Mason Co., Inc.",53909,MiscSup Other,385104,Boston Center-Youth & Families,BCYF Site Councils,585
2941601,1,1,8/3/2020,8,2,August,2021,2021,TRANSDEV SERVICES. INC,52805,TransTrvl Controlled Choice,101081,Boston Public School Dept,BPS Transportation,3401
2941602,1,1,8/3/2020,8,2,August,2021,2021,Fastenal Company,53909,MiscSup Other,311500,Public Works Department,Highway Field Operations,533.2
2941605,1,1,8/3/2020,8,2,August,2021,2021,TRANSDEV SERVICES. INC,52805,TransTrvl Controlled Choice,101081,Boston Public School Dept,BPS Transportation,7221.51
2941606,1,1,8/3/2020,8,2,August,2021,2021,"Landmark School, Inc.",52301,CntrtEduc Services/Tuitions,101188,Boston Public School Dept,BPS Sped Contracted Ed Service,1281.6
2941608,1,1,8/3/2020,8,2,August,2021,2021,TRANSDEV SERVICES. INC,52805,TransTrvl Controlled Choice,101081,Boston Public School Dept,BPS Transportation,2721.38
2941609,1,1,8/3/2020,8,2,August,2021,2021,D.J. Quirk Ford Inc,52703,RepairSer Vehicles,221500,Fire Department,Maintenance,3060.41
2941610,1,1,8/3/2020,8,2,August,2021,2021,NSTAR Electric Gas,52202,Utilities Electric,188300,Neighborhood Development,Housing Development,430.52
2941611,1,1,8/3/2020,8,2,August,2021,2021,New England School Services,52604,RepairMnt Bldg Other,10196K,Boston Public School Dept,Facilities  Fund,4962
2941612,1,1,8/3/2020,8,2,August,2021,2021,NSTAR Electric Gas,52202,Utilities Electric,188300,Neighborhood Development,Housing Development,40.64
2941613,1,1,8/3/2020,8,2,August,2021,2021,New England School Services,52604,RepairMnt Bldg Other,10196K,Boston Public School Dept,Facilities  Fund,885
2941614,1,1,8/3/2020,8,2,August,2021,2021,"Hydro-Test Products, Inc.",52701,RepairSer Office Equip,221203,Fire Department,Technical Rescue,2893.14
2941615,1,1,8/3/2020,8,2,August,2021,2021,The Resource Connection Inc.,52907,Cont Serv Other,151100,Law Department,Law  Operations,752.85
2941616,1,1,8/3/2020,8,2,August,2021,2021,YourMembership.com Inc,52908,ContServ Advertising,151200,Law Department,Litigation,450
2941617,2,1,8/3/2020,8,2,August,2021,2021,"Brand Company, Inc",53909,MiscSup Other,188100,Neighborhood Development,Administration,10
2941617,1,1,8/3/2020,8,2,August,2021,2021,"Brand Company, Inc",53909,MiscSup Other,188100,Neighborhood Development,Administration,21.12
2941619,4,1,8/3/2020,8,2,August,2021,2021,Health Training Ed. Services dba Life,53909,MiscSup Other,385101,Boston Center-Youth & Families,Administrative Services,0
2941619,3,1,8/3/2020,8,2,August,2021,2021,Health Training Ed. Services dba Life,53909,MiscSup Other,385101,Boston Center-Youth & Families,Administrative Services,528
2941619,2,1,8/3/2020,8,2,August,2021,2021,Health Training Ed. Services dba Life,53909,MiscSup Other,385101,Boston Center-Youth & Families,Administrative Services,528
2941619,1,1,8/3/2020,8,2,August,2021,2021,Health Training Ed. Services dba Life,53909,MiscSup Other,385101,Boston Center-Youth & Families,Administrative Services,528
2941620,2,1,8/3/2020,8,2,August,2021,2021,"Hillyard, Inc. DBA Rovic",55911,Equipment Other,180201,Property Management,Building Maintenance,1632.95
2941621,1,1,8/3/2020,8,2,August,2021,2021,"RAUTIOLA, GARY",53909,MiscSup Other,211203,Police Department,FACILITIES MANAGEMENT DIVISION,403.75
2941625,1,1,8/3/2020,8,2,August,2021,2021,Yale Electric Supply Company,53909,MiscSup Other,311200,Public Works Department,Building/Facility Maintence,478.7
2941626,1,1,8/3/2020,8,2,August,2021,2021,Yale Electric Supply Company,53909,MiscSup Other,311200,Public Works Department,Building/Facility Maintence,497.8
2941627,1,1,8/3/2020,8,2,August,2021,2021,Yale Electric Supply Company,53909,MiscSup Other,311200,Public Works Department,Building/Facility Maintence,20.4
2941628,1,1,8/3/2020,8,2,August,2021,2021,"Educational Networks, Inc.",53909,MiscSup Other,101641,Boston Public School Dept,East Boston High School,4200
2941629,1,1,8/4/2020,8,2,August,2021,2021,McChrystal Group LLC,52907,Cont Serv Other,141100,Budget Management,Administration,229061
2941630,1,1,8/4/2020,8,2,August,2021,2021,New England School Services,52604,RepairMnt Bldg Other,101000,Boston Public School Dept,Boston Public Schools,11793
2941631,1,1,8/4/2020,8,2,August,2021,2021,New England School Services,52604,RepairMnt Bldg Other,101000,Boston Public School Dept,Boston Public Schools,2056
2941633,1,1,8/4/2020,8,2,August,2021,2021,"Beacon Hill Staffing Group,LLC",52906,ContServ IT Services,149000,Dpt of Innovation & Technology,Dpt of Innovation & Technology,6493.5
2941635,1,1,8/4/2020,8,2,August,2021,2021,Ace Employment Unlimited Corp,52907,Cont Serv Other,101069,Boston Public School Dept,Research Assess & Eval,597.45
2941636,1,1,8/4/2020,8,2,August,2021,2021,AT&T Mobility,52113,Telecom Cell Phones,260101,Inspectional Services Dept,Commissioner's Office,191.96
2941637,2,1,8/4/2020,8,2,August,2021,2021,Industrial Protection Services LLC,56201,Special Appr Other,143100,Procurement,Administration,6240
2941638,1,1,8/4/2020,8,2,August,2021,2021,Ace Employment Unlimited Corp,52907,Cont Serv Other,101069,Boston Public School Dept,Research Assess & Eval,238.98
2941639,1,1,8/4/2020,8,2,August,2021,2021,Ace Employment Unlimited Corp,52907,Cont Serv Other,101069,Boston Public School Dept,Research Assess & Eval,238.98
2941640,1,1,8/4/2020,8,2,August,2021,2021,Ace Employment Unlimited Corp,52907,Cont Serv Other,101069,Boston Public School Dept,Research Assess & Eval,238.98
2941641,1,1,8/4/2020,8,2,August,2021,2021,Ace Employment Unlimited Corp,52907,Cont Serv Other,101069,Boston Public School Dept,Research Assess & Eval,238.98
2941642,1,1,8/4/2020,8,2,August,2021,2021,G.A. Blanco & Sons Inc.,53602,Office Supplies General,142500,Human Resources,Workers' Compensation,200
2941643,1,1,8/4/2020,8,2,August,2021,2021,Fire Equipment Inc.,52603,RepairMnt Annual Maint Bldg,300201,Parks & Recreation Department,Parks Maintenance,468
2941644,1,1,8/4/2020,8,2,August,2021,2021,Fire Equipment Inc.,52603,RepairMnt Annual Maint Bldg,300201,Parks & Recreation Department,Parks Maintenance,468
2941645,1,1,8/4/2020,8,2,August,2021,2021,"W.B. Mason Co., Inc.",53909,MiscSup Other,221203,Fire Department,Technical Rescue,4408.8
2941646,1,1,8/4/2020,8,2,August,2021,2021,"ScerIS, Inc.",54906,Current Software Licen/Maint,149400,Dpt of Innovation & Technology,Core Infrastructure,66060
2941647,1,1,8/4/2020,8,2,August,2021,2021,TRANSDEV SERVICES. INC,52805,TransTrvl Controlled Choice,101081,Boston Public School Dept,BPS Transportation,508.75
2941648,1,1,8/4/2020,8,2,August,2021,2021,TRANSDEV SERVICES. INC,52805,TransTrvl Controlled Choice,101081,Boston Public School Dept,BPS Transportation,272.73
2941649,1,1,8/4/2020,8,2,August,2021,2021,"Geriatric Medical & Surgical Supply, Inc",55911,Equipment Other,211311,Police Department,CENTRAL SUPPLY UNIT,2880
2941650,1,1,8/4/2020,8,2,August,2021,2021,Rosetta Languages,52907,Cont Serv Other,260101,Inspectional Services Dept,Commissioner's Office,615.2
2941651,1,1,8/4/2020,8,2,August,2021,2021,"American Sweeping Co, LLC",52907,Cont Serv Other,311500,Public Works Department,Highway Field Operations,237570.32
2941652,1,1,8/4/2020,8,2,August,2021,2021,TRANSDEV SERVICES. INC,52805,TransTrvl Controlled Choice,101081,Boston Public School Dept,BPS Transportation,426.88
2941653,1,1,8/4/2020,8,2,August,2021,2021,"American Sweeping Co, LLC",52907,Cont Serv Other,311500,Public Works Department,Highway Field Operations,56816.66
2941654,1,1,8/4/2020,8,2,August,2021,2021,Millennium Maintenance & Power Sweeping,52907,Cont Serv Other,311500,Public Works Department,Highway Field Operations,119925.3
2941655,1,1,8/4/2020,8,2,August,2021,2021,"M.Susi HMA, LLC",53909,MiscSup Other,311500,Public Works Department,Highway Field Operations,784.36
2941656,1,1,8/4/2020,8,2,August,2021,2021,TRANSDEV SERVICES. INC,52805,TransTrvl Controlled Choice,101081,Boston Public School Dept,BPS Transportation,1525.3
2941657,1,1,8/4/2020,8,2,August,2021,2021,"T.L Edwards, Inc.",52907,Cont Serv Other,221202,Fire Department,HazMat Response,605.83
2941658,1,1,8/4/2020,8,2,August,2021,2021,"T.L Edwards, Inc.",52907,Cont Serv Other,221202,Fire Department,HazMat Response,1292.56
2941659,2,1,8/4/2020,8,2,August,2021,2021,"Community Playthings, LLC",53802,EducSup Instructional Other,101256,Boston Public School Dept,Curley School K-8,828
2941659,1,1,8/4/2020,8,2,August,2021,2021,"Community Playthings, LLC",53802,EducSup Instructional Other,101256,Boston Public School Dept,Curley School K-8,258
2941660,7,1,8/4/2020,8,2,August,2021,2021,Heinemann Educational Books,53802,EducSup Instructional Other,101394,Boston Public School Dept,Philbrick Elementary School,59.39
2941660,6,1,8/4/2020,8,2,August,2021,2021,Heinemann Educational Books,53802,EducSup Instructional Other,101394,Boston Public School Dept,Philbrick Elementary School,98.35
2941660,5,1,8/4/2020,8,2,August,2021,2021,Heinemann Educational Books,53802,EducSup Instructional Other,101394,Boston Public School Dept,Philbrick Elementary School,99.33
2941660,4,1,8/4/2020,8,2,August,2021,2021,Heinemann Educational Books,53802,EducSup Instructional Other,101394,Boston Public School Dept,Philbrick Elementary School,98.35
2941660,3,1,8/4/2020,8,2,August,2021,2021,Heinemann Educational Books,53802,EducSup Instructional Other,101394,Boston Public School Dept,Philbrick Elementary School,99.32
2941660,2,1,8/4/2020,8,2,August,2021,2021,Heinemann Educational Books,53802,EducSup Instructional Other,101394,Boston Public School Dept,Philbrick Elementary School,99.33
2941660,1,1,8/4/2020,8,2,August,2021,2021,Heinemann Educational Books,53802,EducSup Instructional Other,101394,Boston Public School Dept,Philbrick Elementary School,99.33
2941661,1,1,8/4/2020,8,2,August,2021,2021,New England School Services,52604,RepairMnt Bldg Other,10196K,Boston Public School Dept,Facilities  Fund,1115.82
2941662,1,1,8/4/2020,8,2,August,2021,2021,New England School Services,52604,RepairMnt Bldg Other,10196K,Boston Public School Dept,Facilities  Fund,1832
2941663,1,1,8/4/2020,8,2,August,2021,2021,New England School Services,52604,RepairMnt Bldg Other,10196K,Boston Public School Dept,Facilities  Fund,1447
2941664,1,1,8/4/2020,8,2,August,2021,2021,New England School Services,52604,RepairMnt Bldg Other,10196K,Boston Public School Dept,Facilities  Fund,111.5
2941665,1,1,8/4/2020,8,2,August,2021,2021,Mr. Drain Inc,52604,RepairMnt Bldg Other,180300,Property Management,Alteration & Repair,499
2941666,1,1,8/4/2020,8,2,August,2021,2021,Robert W. Irvine & Sons Inc.,52904,ContSer  Architect/Engineering,180300,Property Management,Alteration & Repair,921.8
2941667,1,1,8/4/2020,8,2,August,2021,2021,Napco Security Technologies Inc,52111,Telecom Other,180500,Property Management,Security Systems,24.1
2941668,8,1,8/4/2020,8,2,August,2021,2021,Univar USA Inc.,53909,MiscSup Other,260401,Inspectional Services Dept,Environment,442.36
2941668,7,1,8/4/2020,8,2,August,2021,2021,Univar USA Inc.,53909,MiscSup Other,260401,Inspectional Services Dept,Environment,1924.5
2941668,6,1,8/4/2020,8,2,August,2021,2021,Univar USA Inc.,53909,MiscSup Other,260401,Inspectional Services Dept,Environment,189.5
2941668,5,1,8/4/2020,8,2,August,2021,2021,Univar USA Inc.,53909,MiscSup Other,260401,Inspectional Services Dept,Environment,350.6
2941668,4,1,8/4/2020,8,2,August,2021,2021,Univar USA Inc.,53909,MiscSup Other,260401,Inspectional Services Dept,Environment,162.36
2941668,3,1,8/4/2020,8,2,August,2021,2021,Univar USA Inc.,53909,MiscSup Other,260401,Inspectional Services Dept,Environment,649.44
2941668,2,1,8/4/2020,8,2,August,2021,2021,Univar USA Inc.,53909,MiscSup Other,260401,Inspectional Services Dept,Environment,1386
2941668,1,1,8/4/2020,8,2,August,2021,2021,Univar USA Inc.,53909,MiscSup Other,260401,Inspectional Services Dept,Environment,3069.6
2941669,1,1,8/4/2020,8,2,August,2021,2021,Associated Mechanical Services Inc.,52601,RepairMnt Serv Building,221501,Fire Department,Facilities Maintenance,5000
2941670,1,1,8/4/2020,8,2,August,2021,2021,LV HOME IMPROVEMENT AND CLEANING INC,52604,RepairMnt Bldg Other,311600,Public Works Department,Bridge Operations/Maintenance,3302.4
2941671,2,1,8/4/2020,8,2,August,2021,2021,"W.B. Mason Co., Inc.",53602,Office Supplies General,741100,Veterans' Services,Veterans' Services,124.6
2941674,1,1,8/4/2020,8,2,August,2021,2021,"W.B. Mason Co., Inc.",53602,Office Supplies General,111100,Mayor's Office,Administration,24.9
2941675,1,1,8/4/2020,8,2,August,2021,2021,"W.B. Mason Co., Inc.",55601,Furniture Office,251400,Transportation Department,Traffic Enforcement,8135
2941676,2,1,8/4/2020,8,2,August,2021,2021,"W.B. Mason Co., Inc.",54905,Current Water Coolers/Bottled,221100,Fire Department,Administration,77.6
2941678,1,1,8/4/2020,8,2,August,2021,2021,"Finegold Alexander + Associates, Inc.",52904,ContSer  Architect/Engineering,110000,Library Department,Library Department,23120
2941679,1,1,8/4/2020,8,2,August,2021,2021,"W.B. Mason Co., Inc.",54905,Current Water Coolers/Bottled,211203,Police Department,FACILITIES MANAGEMENT DIVISION,116.4
2941681,1,1,8/4/2020,8,2,August,2021,2021,Vast Communications,52907,Cont Serv Other,211206,Police Department,TELECOM. MGMT. GROUP,1216.59
2941682,1,1,8/4/2020,8,2,August,2021,2021,Garafalo Francesco,52904,ContSer  Architect/Engineering,101000,Boston Public School Dept,Boston Public Schools,1870.55
2941683,2,1,8/4/2020,8,2,August,2021,2021,Leers Weinzapfel Associates,52904,ContSer  Architect/Engineering,211000,Police Department,Police Department,5247.61
2941683,1,1,8/4/2020,8,2,August,2021,2021,Leers Weinzapfel Associates,52904,ContSer  Architect/Engineering,211000,Police Department,Police Department,72891.89
2941684,1,1,8/4/2020,8,2,August,2021,2021,Leers Weinzapfel Associates,52904,ContSer  Architect/Engineering,211000,Police Department,Police Department,27108.11
2941685,1,1,8/4/2020,8,2,August,2021,2021,TRANSDEV SERVICES. INC,52805,TransTrvl Controlled Choice,101081,Boston Public School Dept,BPS Transportation,2802.69
2941686,14,1,8/4/2020,8,2,August,2021,2021,Viga Eatery Inc.,53204,Food  Catering,101190,Boston Public School Dept,Newcomers Academy,59.76
2941686,13,1,8/4/2020,8,2,August,2021,2021,Viga Eatery Inc.,53204,Food  Catering,101190,Boston Public School Dept,Newcomers Academy,79.64
2941686,12,1,8/4/2020,8,2,August,2021,2021,Viga Eatery Inc.,53204,Food  Catering,101190,Boston Public School Dept,Newcomers Academy,44.78
2941686,11,1,8/4/2020,8,2,August,2021,2021,Viga Eatery Inc.,53204,Food  Catering,101190,Boston Public School Dept,Newcomers Academy,89.55
2941686,10,1,8/4/2020,8,2,August,2021,2021,Viga Eatery Inc.,53204,Food  Catering,101190,Boston Public School Dept,Newcomers Academy,89.55
2941686,9,1,8/4/2020,8,2,August,2021,2021,Viga Eatery Inc.,53204,Food  Catering,101190,Boston Public School Dept,Newcomers Academy,44.78
2941686,8,1,8/4/2020,8,2,August,2021,2021,Viga Eatery Inc.,53204,Food  Catering,101190,Boston Public School Dept,Newcomers Academy,89.55
2941686,7,1,8/4/2020,8,2,August,2021,2021,Viga Eatery Inc.,53204,Food  Catering,101190,Boston Public School Dept,Newcomers Academy,89.56
2941686,6,1,8/4/2020,8,2,August,2021,2021,Viga Eatery Inc.,53204,Food  Catering,101190,Boston Public School Dept,Newcomers Academy,44.78
2941686,5,1,8/4/2020,8,2,August,2021,2021,Viga Eatery Inc.,53204,Food  Catering,101190,Boston Public School Dept,Newcomers Academy,89.55
2941686,4,1,8/4/2020,8,2,August,2021,2021,Viga Eatery Inc.,53204,Food  Catering,101190,Boston Public School Dept,Newcomers Academy,89.55
2941686,3,1,8/4/2020,8,2,August,2021,2021,Viga Eatery Inc.,53204,Food  Catering,101190,Boston Public School Dept,Newcomers Academy,44.78
2941686,2,1,8/4/2020,8,2,August,2021,2021,Viga Eatery Inc.,53204,Food  Catering,101190,Boston Public School Dept,Newcomers Academy,89.55
2941686,1,1,8/4/2020,8,2,August,2021,2021,Viga Eatery Inc.,53204,Food  Catering,101190,Boston Public School Dept,Newcomers Academy,89.55
2941687,1,1,8/4/2020,8,2,August,2021,2021,"A1 Datashred, LLC",52504,WasteRmvl Other Services,311801,Public Works Department,PWD Waste Reduction,893.75
2941688,1,1,8/4/2020,8,2,August,2021,2021,"A1 Datashred, LLC",52504,WasteRmvl Other Services,311801,Public Works Department,PWD Waste Reduction,893.75
2941689,8,1,8/4/2020,8,2,August,2021,2021,Viga Eatery Inc.,53204,Food  Catering,101190,Boston Public School Dept,Newcomers Academy,22.51
2941689,7,1,8/4/2020,8,2,August,2021,2021,Viga Eatery Inc.,53204,Food  Catering,101190,Boston Public School Dept,Newcomers Academy,127.83
2941689,6,1,8/4/2020,8,2,August,2021,2021,Viga Eatery Inc.,53204,Food  Catering,101190,Boston Public School Dept,Newcomers Academy,221.47
2941689,5,1,8/4/2020,8,2,August,2021,2021,Viga Eatery Inc.,53204,Food  Catering,101190,Boston Public School Dept,Newcomers Academy,158.45
2941689,4,1,8/4/2020,8,2,August,2021,2021,Viga Eatery Inc.,53204,Food  Catering,101190,Boston Public School Dept,Newcomers Academy,110.74
2941689,3,1,8/4/2020,8,2,August,2021,2021,Viga Eatery Inc.,53204,Food  Catering,101190,Boston Public School Dept,Newcomers Academy,117.04
2941689,2,1,8/4/2020,8,2,August,2021,2021,Viga Eatery Inc.,53204,Food  Catering,101190,Boston Public School Dept,Newcomers Academy,117.04
2941689,1,1,8/4/2020,8,2,August,2021,2021,Viga Eatery Inc.,53204,Food  Catering,101190,Boston Public School Dept,Newcomers Academy,111.63
2941690,1,1,8/4/2020,8,2,August,2021,2021,TRANSDEV SERVICES. INC,52805,TransTrvl Controlled Choice,101081,Boston Public School Dept,BPS Transportation,9360.6
2941691,5,1,8/4/2020,8,2,August,2021,2021,Viga Eatery Inc.,53204,Food  Catering,101009,Boston Public School Dept,Achievement Gap,36.99
2941691,4,1,8/4/2020,8,2,August,2021,2021,Viga Eatery Inc.,53204,Food  Catering,101009,Boston Public School Dept,Achievement Gap,88.99
2941691,3,1,8/4/2020,8,2,August,2021,2021,Viga Eatery Inc.,53204,Food  Catering,101009,Boston Public School Dept,Achievement Gap,26.99
2941691,2,1,8/4/2020,8,2,August,2021,2021,Viga Eatery Inc.,53204,Food  Catering,101009,Boston Public School Dept,Achievement Gap,25
2941691,1,1,8/4/2020,8,2,August,2021,2021,Viga Eatery Inc.,53204,Food  Catering,101009,Boston Public School Dept,Achievement Gap,28.99
2941692,1,1,8/4/2020,8,2,August,2021,2021,Rose Law Partners LLP,52907,Cont Serv Other,303100,Environment Department,Environment,6661.55
2941693,7,1,8/4/2020,8,2,August,2021,2021,Viga Eatery Inc.,53204,Food  Catering,101624,Boston Public School Dept,Brighton High School,25
2941693,6,1,8/4/2020,8,2,August,2021,2021,Viga Eatery Inc.,53204,Food  Catering,101624,Boston Public School Dept,Brighton High School,73.98
2941693,5,1,8/4/2020,8,2,August,2021,2021,Viga Eatery Inc.,53204,Food  Catering,101624,Boston Public School Dept,Brighton High School,69.5
2941693,4,1,8/4/2020,8,2,August,2021,2021,Viga Eatery Inc.,53204,Food  Catering,101624,Boston Public School Dept,Brighton High School,107.88
2941693,3,1,8/4/2020,8,2,August,2021,2021,Viga Eatery Inc.,53204,Food  Catering,101624,Boston Public School Dept,Brighton High School,107.88
2941693,2,1,8/4/2020,8,2,August,2021,2021,Viga Eatery Inc.,53204,Food  Catering,101624,Boston Public School Dept,Brighton High School,107.88
2941693,1,1,8/4/2020,8,2,August,2021,2021,Viga Eatery Inc.,53204,Food  Catering,101624,Boston Public School Dept,Brighton High School,107.88
2941694,1,1,8/4/2020,8,2,August,2021,2021,"A1 Datashred, LLC",52504,WasteRmvl Other Services,311801,Public Works Department,PWD Waste Reduction,893.75
2941695,1,1,8/4/2020,8,2,August,2021,2021,Rose Law Partners LLP,52907,Cont Serv Other,303100,Environment Department,Environment,2423.5
2941696,1,1,8/4/2020,8,2,August,2021,2021,TRANSDEV SERVICES. INC,52805,TransTrvl Controlled Choice,101081,Boston Public School Dept,BPS Transportation,27631.62
2941697,1,1,8/4/2020,8,2,August,2021,2021,"CliftonLarsonAllen, LLP",59301,TrustClear Other,138950,Treas Dept - Treasury Division,Trust Fund Clearing Org,3500
2941698,1,1,8/4/2020,8,2,August,2021,2021,"Cardinal Cushing Centers, Inc d/b/a",52301,CntrtEduc Services/Tuitions,101188,Boston Public School Dept,BPS Sped Contracted Ed Service,3500
2941699,6,1,8/4/2020,8,2,August,2021,2021,"Safeware Inc,",53909,MiscSup Other,221206,Fire Department,Hazmat,37.32
2941701,1,1,8/4/2020,8,2,August,2021,2021,Cross Cultural Communication Systems Inc,52908,ContServ Advertising,412400,Neighborhood Services,Constiuent Engagement,50
2941702,1,1,8/4/2020,8,2,August,2021,2021,Boston Building Consultants,52904,ContSer  Architect/Engineering,180300,Property Management,Alteration & Repair,2400
2941703,1,1,8/4/2020,8,2,August,2021,2021,TRANSDEV SERVICES. INC,52807,TransTrvl Youth Special Ed,101081,Boston Public School Dept,BPS Transportation,39003.2
2941704,1,1,8/4/2020,8,2,August,2021,2021,Sanibel Electrical Corporation,52904,ContSer  Architect/Engineering,180300,Property Management,Alteration & Repair,8741
2941705,1,1,8/4/2020,8,2,August,2021,2021,"Cardinal Cushing Centers, Inc d/b/a",52301,CntrtEduc Services/Tuitions,101188,Boston Public School Dept,BPS Sped Contracted Ed Service,8828.4
2941706,1,1,8/4/2020,8,2,August,2021,2021,"Cardinal Cushing Centers, Inc d/b/a",52301,CntrtEduc Services/Tuitions,101188,Boston Public School Dept,BPS Sped Contracted Ed Service,8828.4
2941707,1,1,8/4/2020,8,2,August,2021,2021,Jackson Glass Inc,52604,RepairMnt Bldg Other,180203,Property Management,Asset Management,1350
2941708,1,1,8/4/2020,8,2,August,2021,2021,"Cardinal Cushing Centers, Inc d/b/a",52301,CntrtEduc Services/Tuitions,101188,Boston Public School Dept,BPS Sped Contracted Ed Service,9711.24
2941709,1,1,8/4/2020,8,2,August,2021,2021,Mr. Drain Inc,52604,RepairMnt Bldg Other,180300,Property Management,Alteration & Repair,55
2941710,1,1,8/4/2020,8,2,August,2021,2021,"ABCD, Incorporated",52907,Cont Serv Other,101043,Boston Public School Dept,BPS Alternative Education,125000
2941711,1,1,8/4/2020,8,2,August,2021,2021,"Cardinal Cushing Centers, Inc d/b/a",52301,CntrtEduc Services/Tuitions,101188,Boston Public School Dept,BPS Sped Contracted Ed Service,8828.4
2941712,1,1,8/4/2020,8,2,August,2021,2021,DOOR SYSTEMS INC,52601,RepairMnt Serv Building,221501,Fire Department,Facilities Maintenance,280
2941713,1,1,8/4/2020,8,2,August,2021,2021,"Cardinal Cushing Centers, Inc d/b/a",52301,CntrtEduc Services/Tuitions,101188,Boston Public School Dept,BPS Sped Contracted Ed Service,21146.03
2941714,1,1,8/4/2020,8,2,August,2021,2021,"Cardinal Cushing Centers, Inc d/b/a",52301,CntrtEduc Services/Tuitions,101188,Boston Public School Dept,BPS Sped Contracted Ed Service,8828.4
2941715,1,1,8/4/2020,8,2,August,2021,2021,"LinguaLinx Language Solutions, Inc.",52908,ContServ Advertising,412400,Neighborhood Services,Constiuent Engagement,60
2941717,1,1,8/4/2020,8,2,August,2021,2021,"Cardinal Cushing Center, Inc. d/b/a",52301,CntrtEduc Services/Tuitions,101188,Boston Public School Dept,BPS Sped Contracted Ed Service,3750
2941718,1,1,8/4/2020,8,2,August,2021,2021,"Cardinal Cushing Center, Inc. d/b/a",52301,CntrtEduc Services/Tuitions,101188,Boston Public School Dept,BPS Sped Contracted Ed Service,8262.4
2941719,2,1,8/4/2020,8,2,August,2021,2021,"MInahan, Jessica",52907,Cont Serv Other,101624,Boston Public School Dept,Brighton High School,125
2941719,1,1,8/4/2020,8,2,August,2021,2021,"MInahan, Jessica",52907,Cont Serv Other,101624,Boston Public School Dept,Brighton High School,1800
2941720,1,1,8/4/2020,8,2,August,2021,2021,"Cardinal Cushing Center, Inc. d/b/a",52301,CntrtEduc Services/Tuitions,101188,Boston Public School Dept,BPS Sped Contracted Ed Service,8262.4
2941721,1,1,8/4/2020,8,2,August,2021,2021,Boston Groundwater Trust,52907,Cont Serv Other,303100,Environment Department,Environment,169373
2941723,1,1,8/4/2020,8,2,August,2021,2021,Mr. Drain Inc,52604,RepairMnt Bldg Other,180300,Property Management,Alteration & Repair,375
2941724,1,1,8/4/2020,8,2,August,2021,2021,Mr. Drain Inc,52604,RepairMnt Bldg Other,180300,Property Management,Alteration & Repair,499
2941725,2,1,8/4/2020,8,2,August,2021,2021,F.W. Webb Co.,57201,Strtlights Street Lighting,311700,Public Works Department,Street Lights,350
2941725,1,1,8/4/2020,8,2,August,2021,2021,F.W. Webb Co.,57201,Strtlights Street Lighting,311700,Public Works Department,Street Lights,3126.9
2941726,1,1,8/4/2020,8,2,August,2021,2021,Language Connections,52908,ContServ Advertising,412400,Neighborhood Services,Constiuent Engagement,500
2941728,1,1,8/4/2020,8,2,August,2021,2021,At Your Service Landscaping,52503,WasteRmvl Recycle,311801,Public Works Department,PWD Waste Reduction,11500
2941729,1,1,8/4/2020,8,2,August,2021,2021,Pasek Corp,52604,RepairMnt Bldg Other,180300,Property Management,Alteration & Repair,1439.64
2941736,1,1,8/4/2020,8,2,August,2021,2021,NStar Electric,52202,Utilities Electric,385101,Boston Center-Youth & Families,Administrative Services,55.29
2941739,1,1,8/4/2020,8,2,August,2021,2021,RSI Inc.,52913,ContServ Judicial/Recording,151100,Law Department,Law  Operations,337.3
2941741,1,1,8/4/2020,8,2,August,2021,2021,FM Generator Inc.,52940,Subreceipt Contract  Services,231100,Emergency Management,Homeland Security,300
2941743,1,1,8/4/2020,8,2,August,2021,2021,"Jostens, Inc.",53802,EducSup Instructional Other,101030,Boston Public School Dept,BPS Business Service,66.75
2941745,1,1,8/4/2020,8,2,August,2021,2021,Massachusetts Envelope Co. Inc d/b/a,53602,Office Supplies General,211107,Police Department,OFFICE MULTI-MEDIA PRODUCTION,1500
2941746,1,1,8/4/2020,8,2,August,2021,2021,"Green Environmental, Inc.",52502,WasteRmvl Disposal,221501,Fire Department,Facilities Maintenance,3800
2941747,1,1,8/4/2020,8,2,August,2021,2021,"Green Environmental, Inc.",52502,WasteRmvl Disposal,221501,Fire Department,Facilities Maintenance,3800
2941748,1,1,8/4/2020,8,2,August,2021,2021,"Green Environmental, Inc.",52502,WasteRmvl Disposal,221501,Fire Department,Facilities Maintenance,3800
2941749,1,1,8/4/2020,8,2,August,2021,2021,"Green Environmental, Inc.",52502,WasteRmvl Disposal,221501,Fire Department,Facilities Maintenance,3800
2941750,1,1,8/4/2020,8,2,August,2021,2021,"Green Environmental, Inc.",52502,WasteRmvl Disposal,221501,Fire Department,Facilities Maintenance,3800
2941751,1,1,8/4/2020,8,2,August,2021,2021,Boston Business Journal,54902,Current Subscriptions,112200,City Council,City Councilors,130
2941753,5,1,8/4/2020,8,2,August,2021,2021,"Brand Company, Inc",53602,Office Supplies General,111100,Mayor's Office,Administration,13
2941753,4,1,8/4/2020,8,2,August,2021,2021,"Brand Company, Inc",53602,Office Supplies General,111100,Mayor's Office,Administration,46.02
2941753,3,1,8/4/2020,8,2,August,2021,2021,"Brand Company, Inc",53602,Office Supplies General,111100,Mayor's Office,Administration,7.92
2941753,2,1,8/4/2020,8,2,August,2021,2021,"Brand Company, Inc",53602,Office Supplies General,111100,Mayor's Office,Administration,10.56
2941753,1,1,8/4/2020,8,2,August,2021,2021,"Brand Company, Inc",53602,Office Supplies General,111100,Mayor's Office,Administration,24
2941754,7,1,8/4/2020,8,2,August,2021,2021,"Brand Company, Inc",53909,MiscSup Other,180300,Property Management,Alteration & Repair,24
2941754,6,1,8/4/2020,8,2,August,2021,2021,"Brand Company, Inc",53909,MiscSup Other,180300,Property Management,Alteration & Repair,44
2941754,5,1,8/4/2020,8,2,August,2021,2021,"Brand Company, Inc",53909,MiscSup Other,180300,Property Management,Alteration & Repair,50
2941754,4,1,8/4/2020,8,2,August,2021,2021,"Brand Company, Inc",53909,MiscSup Other,180400,Property Management,Enforcement,44
2941754,3,1,8/4/2020,8,2,August,2021,2021,"Brand Company, Inc",53909,MiscSup Other,180400,Property Management,Enforcement,50
2941754,2,1,8/4/2020,8,2,August,2021,2021,"Brand Company, Inc",53909,MiscSup Other,180201,Property Management,Building Maintenance,26.4
2941754,1,1,8/4/2020,8,2,August,2021,2021,"Brand Company, Inc",53909,MiscSup Other,180201,Property Management,Building Maintenance,30
2941756,1,1,8/4/2020,8,2,August,2021,2021,JEOL USA Inc.,52705,RepairSer Equip Other,211703,Police Department,CRIME LABORATORY UNIT,33395.93
2941757,5,1,8/4/2020,8,2,August,2021,2021,"Safeware Inc,",53909,MiscSup Other,221206,Fire Department,Hazmat,11.23
2941757,4,1,8/4/2020,8,2,August,2021,2021,"Safeware Inc,",53909,MiscSup Other,221206,Fire Department,Hazmat,24.99
2941757,2,1,8/4/2020,8,2,August,2021,2021,"Safeware Inc,",53909,MiscSup Other,221206,Fire Department,Hazmat,2.65
2941757,1,1,8/4/2020,8,2,August,2021,2021,"Safeware Inc,",53909,MiscSup Other,221206,Fire Department,Hazmat,34.73
2941758,1,1,8/4/2020,8,2,August,2021,2021,Associated Mechanical Services Inc.,52601,RepairMnt Serv Building,221501,Fire Department,Facilities Maintenance,9988.72
2941759,1,1,8/4/2020,8,2,August,2021,2021,The Collier Connection,52907,Cont Serv Other,182200,Office of Economic Development,Equity & Inclusion,400
2941760,1,1,8/4/2020,8,2,August,2021,2021,Heartline Fitness Products,52705,RepairSer Equip Other,221501,Fire Department,Facilities Maintenance,166
2941761,1,1,8/4/2020,8,2,August,2021,2021,"Hillyard, Inc. DBA Rovic",55911,Equipment Other,180201,Property Management,Building Maintenance,16329.5
2941762,1,1,8/4/2020,8,2,August,2021,2021,Independent Taxi Operators Association,52801,TransTrvl Emp Local Trvl,131100,Auditing Department,Administration,17
2941763,1,1,8/4/2020,8,2,August,2021,2021,Toshiba Business Solutions,55901,Equipment Photocopy,141100,Budget Management,Administration,15128
2941764,1,1,8/4/2020,8,2,August,2021,2021,"Sid Tool Co.,Inc",53908,MiscSup Wearing Apparel,260401,Inspectional Services Dept,Environment,126.1
2941766,1,1,8/4/2020,8,2,August,2021,2021,"Motorola Solutions, Inc.",53909,MiscSup Other,221302,Fire Department,Radio Shop,73.02
2941768,1,1,8/4/2020,8,2,August,2021,2021,"Defender Industries, Inc.",55911,Equipment Other,221203,Fire Department,Technical Rescue,19164
2941769,1,1,8/4/2020,8,2,August,2021,2021,Dri - Stick Decal Copr./dba Rydin Decal,52901,ContServ  Printing/Binding,26096A,Inspectional Services Dept,Weights & Measures Enforce Fnd,753
2941770,1,1,8/4/2020,8,2,August,2021,2021,"Morabito, Melissa",52940,Subreceipt Contract  Services,211506,Police Department,BFS- FIELD SERVICES,7200
2941773,3,1,8/4/2020,8,2,August,2021,2021,"Boston Automatic Time Clock Co, Inc",52706,RepairSer Equip Maint,131200,Auditing Department,Accounting,150
2941773,2,1,8/4/2020,8,2,August,2021,2021,"Boston Automatic Time Clock Co, Inc",52706,RepairSer Equip Maint,131500,Auditing Department,Accounts Payable,150
2941773,1,1,8/4/2020,8,2,August,2021,2021,"Boston Automatic Time Clock Co, Inc",52706,RepairSer Equip Maint,131100,Auditing Department,Administration,150
2941774,1,1,8/4/2020,8,2,August,2021,2021,Infra-Red Building and Power Service,52907,Cont Serv Other,221501,Fire Department,Facilities Maintenance,4866.06
2941775,1,1,8/4/2020,8,2,August,2021,2021,Dorchester Tire Services Inc.,52704,RepairSer Hvy Equip,138910,Treas Dept - Treasury Division,Treasurer - Non-Expendable,123.5
2941776,1,1,8/4/2020,8,2,August,2021,2021,BOCH HONDA,53901,MiscSup Automotive Sup/Parts,211202,Police Department,FLEET MANAGEMENT DIVISION,85.99
2941777,1,1,8/4/2020,8,2,August,2021,2021,Associated Mechanical Services Inc.,52601,RepairMnt Serv Building,221501,Fire Department,Facilities Maintenance,1053.16
2941783,1,1,8/4/2020,8,2,August,2021,2021,"Cardinal Cushing Centers, Inc d/b/a",52301,CntrtEduc Services/Tuitions,101188,Boston Public School Dept,BPS Sped Contracted Ed Service,2450
2941784,1,1,8/4/2020,8,2,August,2021,2021,"Cardinal Cushing Centers, Inc d/b/a",52301,CntrtEduc Services/Tuitions,101188,Boston Public School Dept,BPS Sped Contracted Ed Service,6179.88
2941785,1,1,8/4/2020,8,2,August,2021,2021,"Cardinal Cushing Centers, Inc d/b/a",52301,CntrtEduc Services/Tuitions,101188,Boston Public School Dept,BPS Sped Contracted Ed Service,6179.88
2941786,1,1,8/4/2020,8,2,August,2021,2021,"Cardinal Cushing Centers, Inc d/b/a",52301,CntrtEduc Services/Tuitions,101188,Boston Public School Dept,BPS Sped Contracted Ed Service,6179.88
2941787,1,1,8/4/2020,8,2,August,2021,2021,"Cardinal Cushing Centers, Inc d/b/a",52301,CntrtEduc Services/Tuitions,101188,Boston Public School Dept,BPS Sped Contracted Ed Service,20463.9
2941788,1,1,8/4/2020,8,2,August,2021,2021,"Cardinal Cushing Centers, Inc d/b/a",52301,CntrtEduc Services/Tuitions,101188,Boston Public School Dept,BPS Sped Contracted Ed Service,6179.88
2941789,2,1,8/4/2020,8,2,August,2021,2021,NETCO Construction Project Managers Inc,52904,ContSer  Architect/Engineering,101000,Boston Public School Dept,Boston Public Schools,12378
2941789,1,1,8/4/2020,8,2,August,2021,2021,NETCO Construction Project Managers Inc,52904,ContSer  Architect/Engineering,101000,Boston Public School Dept,Boston Public Schools,7622
2943004,1,1,8/10/2020,8,2,August,2021,2021,MacShamrock LLC,56201,Special Appr Other,143100,Procurement,Administration,1254.96
2941790,1,1,8/4/2020,8,2,August,2021,2021,"Cardinal Cushing Center, Inc. d/b/a",52301,CntrtEduc Services/Tuitions,101188,Boston Public School Dept,BPS Sped Contracted Ed Service,2812.5
2941791,1,1,8/4/2020,8,2,August,2021,2021,"Cardinal Cushing Center, Inc. d/b/a",52301,CntrtEduc Services/Tuitions,101188,Boston Public School Dept,BPS Sped Contracted Ed Service,6196.8
2941792,1,1,8/4/2020,8,2,August,2021,2021,"Cardinal Cushing Center, Inc. d/b/a",52301,CntrtEduc Services/Tuitions,101188,Boston Public School Dept,BPS Sped Contracted Ed Service,6196.8
2941793,1,1,8/4/2020,8,2,August,2021,2021,Murphy Specialties Inc,52601,RepairMnt Serv Building,221501,Fire Department,Facilities Maintenance,540.41
2941794,1,1,8/4/2020,8,2,August,2021,2021,CDW Government LLC,52906,ContServ IT Services,211206,Police Department,TELECOM. MGMT. GROUP,125800
2941795,1,1,8/4/2020,8,2,August,2021,2021,CDW Government LLC,55905,Equipment Computer Other,211703,Police Department,CRIME LABORATORY UNIT,875
2941796,1,1,8/4/2020,8,2,August,2021,2021,CDW Government LLC,55911,Equipment Other,221301,Fire Department,BFD-MIS,580
2941797,1,1,8/4/2020,8,2,August,2021,2021,MHQ Inc.,55040,Vehicles - Subrecipient,231851,Emergency Management,MOHSP - Brookline,99072
2941798,1,1,8/4/2020,8,2,August,2021,2021,"Capitol Waste Services, Inc.",52501,WasteRmvl Collection,311801,Public Works Department,PWD Waste Reduction,600968.7
2941799,1,1,8/4/2020,8,2,August,2021,2021,"Capitol Waste Services, Inc.",52501,WasteRmvl Collection,311801,Public Works Department,PWD Waste Reduction,384831.03
2941800,1,1,8/4/2020,8,2,August,2021,2021,"Capitol Waste Services, Inc.",52501,WasteRmvl Collection,311801,Public Works Department,PWD Waste Reduction,425729.43
2941801,1,1,8/4/2020,8,2,August,2021,2021,"Kittelson & Associates, Inc.",52904,ContSer  Architect/Engineering,251000,Transportation Department,Traffic Department,38336.86
2941802,1,1,8/4/2020,8,2,August,2021,2021,Howard/Stein Hudson Assoc. Inc.,52904,ContSer  Architect/Engineering,251000,Transportation Department,Traffic Department,19511.5
2941803,1,1,8/4/2020,8,2,August,2021,2021,UHOMES REALTY LLC,52925,ContServ Grants,182300,Office of Economic Development,Small & Local Business,-2500
2941804,1,1,8/4/2020,8,2,August,2021,2021,Howard/Stein Hudson Assoc. Inc.,52904,ContSer  Architect/Engineering,251000,Transportation Department,Traffic Department,104958.53
2941805,1,1,8/4/2020,8,2,August,2021,2021,"Toole Design Group, LLC",52904,ContSer  Architect/Engineering,251000,Transportation Department,Traffic Department,42805.97
2941806,1,1,8/4/2020,8,2,August,2021,2021,"Toole Design Group, LLC",52904,ContSer  Architect/Engineering,251000,Transportation Department,Traffic Department,100665.33
2941807,1,1,8/4/2020,8,2,August,2021,2021,"Toole Design Group, LLC",52904,ContSer  Architect/Engineering,251000,Transportation Department,Traffic Department,119611.87
2941808,1,1,8/4/2020,8,2,August,2021,2021,"Toole Design Group, LLC",52904,ContSer  Architect/Engineering,251000,Transportation Department,Traffic Department,195628.25
2941809,1,1,8/4/2020,8,2,August,2021,2021,Blue Hill Auto Supply/dba Blue Hill Powe,52705,RepairSer Equip Other,221203,Fire Department,Technical Rescue,466.39
2941810,1,1,8/4/2020,8,2,August,2021,2021,IEH Auto Parts LLC,53909,MiscSup Other,221500,Fire Department,Maintenance,274.19
2941811,1,1,8/4/2020,8,2,August,2021,2021,IEH Auto Parts LLC,53909,MiscSup Other,221500,Fire Department,Maintenance,437.76
2941812,1,1,8/4/2020,8,2,August,2021,2021,IEH Auto Parts LLC,53909,MiscSup Other,221500,Fire Department,Maintenance,3176.79
2941813,1,1,8/4/2020,8,2,August,2021,2021,IEH Auto Parts LLC,53909,MiscSup Other,221500,Fire Department,Maintenance,1037.63
2941814,1,1,8/4/2020,8,2,August,2021,2021,IEH Auto Parts LLC,53909,MiscSup Other,221500,Fire Department,Maintenance,185.81
2941815,1,1,8/4/2020,8,2,August,2021,2021,IEH Auto Parts LLC,53909,MiscSup Other,221500,Fire Department,Maintenance,94.72
2941816,1,1,8/4/2020,8,2,August,2021,2021,IEH Auto Parts LLC,53909,MiscSup Other,221500,Fire Department,Maintenance,176.8
2941817,1,1,8/4/2020,8,2,August,2021,2021,IEH Auto Parts LLC,53909,MiscSup Other,221500,Fire Department,Maintenance,1110.02
2941818,1,1,8/4/2020,8,2,August,2021,2021,"Green Environmental, Inc.",52502,WasteRmvl Disposal,221501,Fire Department,Facilities Maintenance,8595
2941819,1,1,8/4/2020,8,2,August,2021,2021,A & H Co Inc,52703,RepairSer Vehicles,211202,Police Department,FLEET MANAGEMENT DIVISION,552
2941820,1,1,8/5/2020,8,2,August,2021,2021,Boston Herald,52908,ContServ Advertising,311300,Public Works Department,Engineering,3387.73
2941821,1,1,8/5/2020,8,2,August,2021,2021,The Home For Little Wanderers Inc,52940,Subreceipt Contract  Services,188300,Neighborhood Development,Housing Development,1431.17
2941822,40,1,8/5/2020,8,2,August,2021,2021,"W.B. Mason Co., Inc.",53602,Office Supplies General,211311,Police Department,CENTRAL SUPPLY UNIT,128.85
2941822,39,1,8/5/2020,8,2,August,2021,2021,"W.B. Mason Co., Inc.",53602,Office Supplies General,211311,Police Department,CENTRAL SUPPLY UNIT,132.7
2941822,38,1,8/5/2020,8,2,August,2021,2021,"W.B. Mason Co., Inc.",53602,Office Supplies General,211311,Police Department,CENTRAL SUPPLY UNIT,59.04
2941822,37,1,8/5/2020,8,2,August,2021,2021,"W.B. Mason Co., Inc.",53602,Office Supplies General,211311,Police Department,CENTRAL SUPPLY UNIT,265.4
2941822,36,1,8/5/2020,8,2,August,2021,2021,"W.B. Mason Co., Inc.",53602,Office Supplies General,211311,Police Department,CENTRAL SUPPLY UNIT,265.4
2941822,35,1,8/5/2020,8,2,August,2021,2021,"W.B. Mason Co., Inc.",53602,Office Supplies General,211311,Police Department,CENTRAL SUPPLY UNIT,65.52
2941822,34,1,8/5/2020,8,2,August,2021,2021,"W.B. Mason Co., Inc.",53909,MiscSup Other,211311,Police Department,CENTRAL SUPPLY UNIT,390.6
2941822,33,1,8/5/2020,8,2,August,2021,2021,"W.B. Mason Co., Inc.",53602,Office Supplies General,211311,Police Department,CENTRAL SUPPLY UNIT,167.52
2941822,32,1,8/5/2020,8,2,August,2021,2021,"W.B. Mason Co., Inc.",53602,Office Supplies General,211311,Police Department,CENTRAL SUPPLY UNIT,158.4
2941822,31,1,8/5/2020,8,2,August,2021,2021,"W.B. Mason Co., Inc.",53602,Office Supplies General,211311,Police Department,CENTRAL SUPPLY UNIT,331.75
2941822,30,1,8/5/2020,8,2,August,2021,2021,"W.B. Mason Co., Inc.",53602,Office Supplies General,211311,Police Department,CENTRAL SUPPLY UNIT,265.4
2941822,29,1,8/5/2020,8,2,August,2021,2021,"W.B. Mason Co., Inc.",53602,Office Supplies General,211311,Police Department,CENTRAL SUPPLY UNIT,479.92
2941822,28,1,8/5/2020,8,2,August,2021,2021,"W.B. Mason Co., Inc.",53602,Office Supplies General,211311,Police Department,CENTRAL SUPPLY UNIT,90.9
2941822,27,1,8/5/2020,8,2,August,2021,2021,"W.B. Mason Co., Inc.",53602,Office Supplies General,211311,Police Department,CENTRAL SUPPLY UNIT,65.52
2941822,26,1,8/5/2020,8,2,August,2021,2021,"W.B. Mason Co., Inc.",53602,Office Supplies General,211311,Police Department,CENTRAL SUPPLY UNIT,29.28
2941822,25,1,8/5/2020,8,2,August,2021,2021,"W.B. Mason Co., Inc.",53601,Office Paper General,211311,Police Department,CENTRAL SUPPLY UNIT,225.72
2941822,24,1,8/5/2020,8,2,August,2021,2021,"W.B. Mason Co., Inc.",53602,Office Supplies General,211311,Police Department,CENTRAL SUPPLY UNIT,61.92
2941822,23,1,8/5/2020,8,2,August,2021,2021,"W.B. Mason Co., Inc.",53602,Office Supplies General,211311,Police Department,CENTRAL SUPPLY UNIT,138
2941822,22,1,8/5/2020,8,2,August,2021,2021,"W.B. Mason Co., Inc.",53602,Office Supplies General,211311,Police Department,CENTRAL SUPPLY UNIT,70.56
2941822,21,1,8/5/2020,8,2,August,2021,2021,"W.B. Mason Co., Inc.",53602,Office Supplies General,211311,Police Department,CENTRAL SUPPLY UNIT,113.76
2941823,1,1,8/5/2020,8,2,August,2021,2021,The Office of The Inspector General,52920,ContServ Training,181100,Public Facilities Dept,PFD Capital Construction,-40
2941824,1,1,8/5/2020,8,2,August,2021,2021,J.M. Mechanical Services Inc,52604,RepairMnt Bldg Other,101046,Boston Public School Dept,BPS Planning & Engineering,1609.25
2941825,1,1,8/5/2020,8,2,August,2021,2021,Boston Mechanical Inc,52604,RepairMnt Bldg Other,101046,Boston Public School Dept,BPS Planning & Engineering,1783
2941826,1,1,8/5/2020,8,2,August,2021,2021,Boston Mechanical Inc,52604,RepairMnt Bldg Other,101046,Boston Public School Dept,BPS Planning & Engineering,1567
2941827,1,1,8/5/2020,8,2,August,2021,2021,Boston Mechanical Inc,52604,RepairMnt Bldg Other,101046,Boston Public School Dept,BPS Planning & Engineering,1803
2941828,1,1,8/5/2020,8,2,August,2021,2021,Boston Mechanical Inc,52604,RepairMnt Bldg Other,101046,Boston Public School Dept,BPS Planning & Engineering,1903
2941829,1,1,8/5/2020,8,2,August,2021,2021,Boston Mechanical Inc,52604,RepairMnt Bldg Other,101046,Boston Public School Dept,BPS Planning & Engineering,1368
2941830,1,1,8/5/2020,8,2,August,2021,2021,Boston Mechanical Inc,52604,RepairMnt Bldg Other,101046,Boston Public School Dept,BPS Planning & Engineering,1767
2941831,1,1,8/5/2020,8,2,August,2021,2021,Boston Mechanical Inc,52604,RepairMnt Bldg Other,101046,Boston Public School Dept,BPS Planning & Engineering,1477
2941832,1,1,8/5/2020,8,2,August,2021,2021,Boston Mechanical Inc,52604,RepairMnt Bldg Other,101046,Boston Public School Dept,BPS Planning & Engineering,1993
2941833,1,1,8/5/2020,8,2,August,2021,2021,United States Postal Service,56201,Special Appr Other,152200,Major Vendor Clearing Account,Postage Clearing,15166.18
2941835,1,1,8/5/2020,8,2,August,2021,2021,A & H Co Inc,52703,RepairSer Vehicles,211202,Police Department,FLEET MANAGEMENT DIVISION,727.68
2941836,1,1,8/5/2020,8,2,August,2021,2021,A & H Co Inc,52703,RepairSer Vehicles,211202,Police Department,FLEET MANAGEMENT DIVISION,761.85
2941837,1,1,8/5/2020,8,2,August,2021,2021,A & H Co Inc,52703,RepairSer Vehicles,211202,Police Department,FLEET MANAGEMENT DIVISION,994.1
2941838,1,1,8/5/2020,8,2,August,2021,2021,A & H Co Inc,52703,RepairSer Vehicles,211202,Police Department,FLEET MANAGEMENT DIVISION,592.21
2941839,1,1,8/5/2020,8,2,August,2021,2021,A & H Co Inc,52703,RepairSer Vehicles,211202,Police Department,FLEET MANAGEMENT DIVISION,1984
2941840,1,1,8/5/2020,8,2,August,2021,2021,A & H Co Inc,52703,RepairSer Vehicles,211202,Police Department,FLEET MANAGEMENT DIVISION,354.54
2941841,1,1,8/5/2020,8,2,August,2021,2021,Unifirst Corp,54904,Current Space/Facility Rental,211202,Police Department,FLEET MANAGEMENT DIVISION,246.63
2941842,1,1,8/5/2020,8,2,August,2021,2021,Anytime Auto Glass LLC,52703,RepairSer Vehicles,211202,Police Department,FLEET MANAGEMENT DIVISION,359.07
2941843,1,1,8/5/2020,8,2,August,2021,2021,"Dynasty Upholstery, Inc.",52703,RepairSer Vehicles,211202,Police Department,FLEET MANAGEMENT DIVISION,1640
2941844,1,1,8/5/2020,8,2,August,2021,2021,Global Montello Group Corp,53001,MVEngySup Gasoline,211202,Police Department,FLEET MANAGEMENT DIVISION,5025.96
2941845,1,1,8/5/2020,8,2,August,2021,2021,Global Montello Group Corp,53001,MVEngySup Gasoline,211202,Police Department,FLEET MANAGEMENT DIVISION,4188.3
2941846,1,1,8/5/2020,8,2,August,2021,2021,Bowdoin/Geneva Main Street Inc.,52940,Subreceipt Contract  Services,182300,Office of Economic Development,Small & Local Business,4791.74
2941847,1,1,8/5/2020,8,2,August,2021,2021,Field Corner Main Street,52940,Subreceipt Contract  Services,182300,Office of Economic Development,Small & Local Business,12677
2941848,1,1,8/5/2020,8,2,August,2021,2021,"Main Streets, Allston Village",52940,Subreceipt Contract  Services,182300,Office of Economic Development,Small & Local Business,4725.73
2941849,1,1,8/5/2020,8,2,August,2021,2021,"Hammond Paint & Chemical Co., Inc.",53909,MiscSup Other,138910,Treas Dept - Treasury Division,Treasurer - Non-Expendable,89.15
2941850,3,1,8/5/2020,8,2,August,2021,2021,"RAUTIOLA, GARY",53909,MiscSup Other,211202,Police Department,FLEET MANAGEMENT DIVISION,140.25
2941850,2,1,8/5/2020,8,2,August,2021,2021,"RAUTIOLA, GARY",53909,MiscSup Other,211202,Police Department,FLEET MANAGEMENT DIVISION,20.4
2941850,1,1,8/5/2020,8,2,August,2021,2021,"RAUTIOLA, GARY",53909,MiscSup Other,211203,Police Department,FACILITIES MANAGEMENT DIVISION,637.5
2941851,1,1,8/5/2020,8,2,August,2021,2021,F.W. Webb Co.,53909,MiscSup Other,211203,Police Department,FACILITIES MANAGEMENT DIVISION,82.7
2941852,1,1,8/5/2020,8,2,August,2021,2021,"Four Corners Main Street, Inc.",52940,Subreceipt Contract  Services,182300,Office of Economic Development,Small & Local Business,9583.32
2941853,1,1,8/5/2020,8,2,August,2021,2021,SiteOne Landscape Supply,52705,RepairSer Equip Other,138910,Treas Dept - Treasury Division,Treasurer - Non-Expendable,157.55
2941854,1,1,8/5/2020,8,2,August,2021,2021,Northeast Nursery Inc.,52705,RepairSer Equip Other,138910,Treas Dept - Treasury Division,Treasurer - Non-Expendable,1785
2941860,1,1,8/5/2020,8,2,August,2021,2021,"W.B. Mason Co., Inc.",53802,EducSup Instructional Other,101309,Boston Public School Dept,Holmes Elementary School,40.34
2941861,1,1,8/5/2020,8,2,August,2021,2021,Cross Cultural Communication Systems Inc,52907,Cont Serv Other,188300,Neighborhood Development,Housing Development,162.5
2941862,2,1,8/5/2020,8,2,August,2021,2021,"W.B. Mason Co., Inc.",53802,EducSup Instructional Other,101309,Boston Public School Dept,Holmes Elementary School,67.99
2941862,1,1,8/5/2020,8,2,August,2021,2021,"W.B. Mason Co., Inc.",53802,EducSup Instructional Other,101309,Boston Public School Dept,Holmes Elementary School,40.34
2941866,1,1,8/5/2020,8,2,August,2021,2021,"R. Mullen & Associates, Inc.",52601,RepairMnt Serv Building,211203,Police Department,FACILITIES MANAGEMENT DIVISION,6606
2941867,1,1,8/5/2020,8,2,August,2021,2021,"Barnes & Noble Booksellers, Inc.",53802,EducSup Instructional Other,101649,Boston Public School Dept,Boston International High Schl,5.99
2941868,2,1,8/5/2020,8,2,August,2021,2021,"Barnes & Noble Booksellers, Inc.",53802,EducSup Instructional Other,101113,Boston Public School Dept,Career & Technical Ed,45.5
2941868,1,1,8/5/2020,8,2,August,2021,2021,"Barnes & Noble Booksellers, Inc.",53802,EducSup Instructional Other,101113,Boston Public School Dept,Career & Technical Ed,35
2941870,1,1,8/5/2020,8,2,August,2021,2021,"DiSano, James J.",52604,RepairMnt Bldg Other,211203,Police Department,FACILITIES MANAGEMENT DIVISION,1430
2941872,2,1,8/5/2020,8,2,August,2021,2021,"W.B. Mason Co., Inc.",53802,EducSup Instructional Other,101376,Boston Public School Dept,Ohrenberger Elementary School,93
2941872,1,1,8/5/2020,8,2,August,2021,2021,"W.B. Mason Co., Inc.",53802,EducSup Instructional Other,101376,Boston Public School Dept,Ohrenberger Elementary School,1335
2941873,1,1,8/5/2020,8,2,August,2021,2021,Atlantic Golf and Turf LLC,53909,MiscSup Other,138910,Treas Dept - Treasury Division,Treasurer - Non-Expendable,5796
2941874,1,1,8/5/2020,8,2,August,2021,2021,"W.B. Mason Co., Inc.",53802,EducSup Instructional Other,101376,Boston Public School Dept,Ohrenberger Elementary School,2745.36
2941875,1,1,8/5/2020,8,2,August,2021,2021,"Winding Brook Turf Farm, Inc.",53909,MiscSup Other,138910,Treas Dept - Treasury Division,Treasurer - Non-Expendable,2776.68
2941878,1,1,8/5/2020,8,2,August,2021,2021,"Hammond Paint & Chemical Co., Inc.",53909,MiscSup Other,138910,Treas Dept - Treasury Division,Treasurer - Non-Expendable,212.8
2941879,1,1,8/5/2020,8,2,August,2021,2021,Northeast Nursery Inc.,52705,RepairSer Equip Other,138910,Treas Dept - Treasury Division,Treasurer - Non-Expendable,234.57
2941880,1,1,8/5/2020,8,2,August,2021,2021,"W.B. Mason Co., Inc.",53909,MiscSup Other,101170,Boston Public School Dept,BPS Special Education,257.4
2941883,1,1,8/5/2020,8,2,August,2021,2021,Northeast Nursery Inc.,52705,RepairSer Equip Other,138910,Treas Dept - Treasury Division,Treasurer - Non-Expendable,49.53
2941885,1,1,8/5/2020,8,2,August,2021,2021,"R & R Products, Inc.",52704,RepairSer Hvy Equip,138910,Treas Dept - Treasury Division,Treasurer - Non-Expendable,663.06
2941886,1,1,8/5/2020,8,2,August,2021,2021,"W.B. Mason Co., Inc.",53802,EducSup Instructional Other,101364,Boston Public School Dept,Mozart Elementary School,31.9
2941887,1,1,8/5/2020,8,2,August,2021,2021,Seeton Turf Warehouse d/b/a,53909,MiscSup Other,138910,Treas Dept - Treasury Division,Treasurer - Non-Expendable,450
2941888,1,1,8/5/2020,8,2,August,2021,2021,"Norfolk Power Equipment, Inc.",52704,RepairSer Hvy Equip,138910,Treas Dept - Treasury Division,Treasurer - Non-Expendable,9.44
2941889,1,1,8/5/2020,8,2,August,2021,2021,Seeton Turf Warehouse d/b/a,53909,MiscSup Other,138910,Treas Dept - Treasury Division,Treasurer - Non-Expendable,1297
2941891,1,1,8/5/2020,8,2,August,2021,2021,Club Prophet Systems,53909,MiscSup Other,138910,Treas Dept - Treasury Division,Treasurer - Non-Expendable,1300
2941893,1,1,8/5/2020,8,2,August,2021,2021,Dorchester Tire Services Inc.,52704,RepairSer Hvy Equip,138910,Treas Dept - Treasury Division,Treasurer - Non-Expendable,67
2941894,1,1,8/5/2020,8,2,August,2021,2021,"Finch Services, Inc.",52704,RepairSer Hvy Equip,138910,Treas Dept - Treasury Division,Treasurer - Non-Expendable,96.52
2941895,1,1,8/5/2020,8,2,August,2021,2021,Boris Pest Control,52603,RepairMnt Annual Maint Bldg,138910,Treas Dept - Treasury Division,Treasurer - Non-Expendable,75
2941897,1,1,8/5/2020,8,2,August,2021,2021,"W.W. Grainger, Inc.",53909,MiscSup Other,138910,Treas Dept - Treasury Division,Treasurer - Non-Expendable,9.96
2941898,1,1,8/5/2020,8,2,August,2021,2021,Seeton Turf Warehouse d/b/a,53909,MiscSup Other,138910,Treas Dept - Treasury Division,Treasurer - Non-Expendable,1437.6
2941899,1,1,8/5/2020,8,2,August,2021,2021,"Finch Services, Inc.",52704,RepairSer Hvy Equip,138910,Treas Dept - Treasury Division,Treasurer - Non-Expendable,64.96
2941900,1,1,8/5/2020,8,2,August,2021,2021,New England School Services,52604,RepairMnt Bldg Other,10196K,Boston Public School Dept,Facilities  Fund,507
2941902,1,1,8/5/2020,8,2,August,2021,2021,New England School Services,52604,RepairMnt Bldg Other,10196K,Boston Public School Dept,Facilities  Fund,526.5
2941903,1,1,8/5/2020,8,2,August,2021,2021,Read Custom Soils LLC,53909,MiscSup Other,138910,Treas Dept - Treasury Division,Treasurer - Non-Expendable,1490.75
2941904,1,1,8/5/2020,8,2,August,2021,2021,Vast Communications,52907,Cont Serv Other,211206,Police Department,TELECOM. MGMT. GROUP,1001.75
2941905,1,1,8/5/2020,8,2,August,2021,2021,"W.B. Mason Co., Inc.",53802,EducSup Instructional Other,101309,Boston Public School Dept,Holmes Elementary School,67.38
2941906,2,1,8/5/2020,8,2,August,2021,2021,"Heingartner, Sarah",52907,Cont Serv Other,101044,Boston Public School Dept,BPS Health and Wellness,309.09
2941906,1,1,8/5/2020,8,2,August,2021,2021,"Heingartner, Sarah",52907,Cont Serv Other,101044,Boston Public School Dept,BPS Health and Wellness,1050.91
2941908,1,1,8/5/2020,8,2,August,2021,2021,"Finch Services, Inc.",52704,RepairSer Hvy Equip,138910,Treas Dept - Treasury Division,Treasurer - Non-Expendable,14.39
2941909,1,1,8/5/2020,8,2,August,2021,2021,RCN,52110,Telecom Data Lines,400100,Cemetery Division,Cemetery,15.57
2941911,1,1,8/5/2020,8,2,August,2021,2021,Northeast Nursery Inc.,52705,RepairSer Equip Other,138910,Treas Dept - Treasury Division,Treasurer - Non-Expendable,1564
2941912,1,1,8/5/2020,8,2,August,2021,2021,New England School Services,52604,RepairMnt Bldg Other,10196K,Boston Public School Dept,Facilities  Fund,1657
2941913,1,1,8/5/2020,8,2,August,2021,2021,Northeast Nursery Inc.,52705,RepairSer Equip Other,138910,Treas Dept - Treasury Division,Treasurer - Non-Expendable,156.3
2941914,1,1,8/5/2020,8,2,August,2021,2021,New England School Services,52604,RepairMnt Bldg Other,10196K,Boston Public School Dept,Facilities  Fund,1185.5
2941915,1,1,8/5/2020,8,2,August,2021,2021,Harrell's LLC,53909,MiscSup Other,138910,Treas Dept - Treasury Division,Treasurer - Non-Expendable,543.9
2941916,1,1,8/5/2020,8,2,August,2021,2021,"Patrick J Kennedy & Sons, Inc.",52704,RepairSer Hvy Equip,251200,Transportation Department,Traffic Management & Engineer,12137
2941917,1,1,8/5/2020,8,2,August,2021,2021,Turf Enhancement Enterprises,52704,RepairSer Hvy Equip,138910,Treas Dept - Treasury Division,Treasurer - Non-Expendable,85.1
2941918,1,1,8/5/2020,8,2,August,2021,2021,New England School Services,52604,RepairMnt Bldg Other,10196K,Boston Public School Dept,Facilities  Fund,529
2941919,3,1,8/5/2020,8,2,August,2021,2021,Sherwin Williams Co.,53909,MiscSup Other,221501,Fire Department,Facilities Maintenance,369.6
2941919,2,1,8/5/2020,8,2,August,2021,2021,Sherwin Williams Co.,53909,MiscSup Other,221501,Fire Department,Facilities Maintenance,1181.4
2941919,1,1,8/5/2020,8,2,August,2021,2021,Sherwin Williams Co.,53909,MiscSup Other,221501,Fire Department,Facilities Maintenance,235
2941920,1,1,8/5/2020,8,2,August,2021,2021,New England School Services,52604,RepairMnt Bldg Other,10196K,Boston Public School Dept,Facilities  Fund,448.5
2941921,2,1,8/5/2020,8,2,August,2021,2021,"W.B. Mason Co., Inc.",53802,EducSup Instructional Other,101009,Boston Public School Dept,Achievement Gap,19.12
2941921,1,1,8/5/2020,8,2,August,2021,2021,"W.B. Mason Co., Inc.",53802,EducSup Instructional Other,101009,Boston Public School Dept,Achievement Gap,65.8
2941922,1,1,8/5/2020,8,2,August,2021,2021,"SHANAHAN SOUND & ELECTRONICS, INC",55911,Equipment Other,41496C,Office of Arts & Culture,Strand Theater,1246.25
2941924,1,1,8/5/2020,8,2,August,2021,2021,"Moffett Turf Equipment, Inc.",55911,Equipment Other,138910,Treas Dept - Treasury Division,Treasurer - Non-Expendable,2419.85
2941925,1,1,8/5/2020,8,2,August,2021,2021,Cora Operations Inc,52606,RepairMnt Bridges,311600,Public Works Department,Bridge Operations/Maintenance,13827.91
2941926,1,1,8/5/2020,8,2,August,2021,2021,"W.B. Mason Co., Inc.",53802,EducSup Instructional Other,101376,Boston Public School Dept,Ohrenberger Elementary School,153.66
2941927,1,1,8/5/2020,8,2,August,2021,2021,Cora Operations Inc,52606,RepairMnt Bridges,311600,Public Works Department,Bridge Operations/Maintenance,6956.59
2941928,1,1,8/5/2020,8,2,August,2021,2021,"Moffett Turf Equipment, Inc.",52704,RepairSer Hvy Equip,138910,Treas Dept - Treasury Division,Treasurer - Non-Expendable,65
2941929,1,1,8/5/2020,8,2,August,2021,2021,"ABCD, Incorporated",52907,Cont Serv Other,101043,Boston Public School Dept,BPS Alternative Education,8198.81
2941931,1,1,8/5/2020,8,2,August,2021,2021,Acushnet Company,53909,MiscSup Other,138910,Treas Dept - Treasury Division,Treasurer - Non-Expendable,1640.25
2941932,1,1,8/5/2020,8,2,August,2021,2021,"ABCD, Incorporated",52907,Cont Serv Other,101043,Boston Public School Dept,BPS Alternative Education,6923.09
2941934,1,1,8/5/2020,8,2,August,2021,2021,Cora Operations Inc,52606,RepairMnt Bridges,311600,Public Works Department,Bridge Operations/Maintenance,18802.11
2941935,1,1,8/5/2020,8,2,August,2021,2021,Northeast Nursery Inc.,52705,RepairSer Equip Other,138910,Treas Dept - Treasury Division,Treasurer - Non-Expendable,412.57
2941936,1,1,8/5/2020,8,2,August,2021,2021,Cora Operations Inc,52606,RepairMnt Bridges,311600,Public Works Department,Bridge Operations/Maintenance,2542
2941937,1,1,8/5/2020,8,2,August,2021,2021,"ABCD, Incorporated",52907,Cont Serv Other,101043,Boston Public School Dept,BPS Alternative Education,7491.03
2941938,1,1,8/5/2020,8,2,August,2021,2021,"W.B. Mason Co., Inc.",53802,EducSup Instructional Other,101684,Boston Public School Dept,Boston Collaborative High,8.64
2941939,1,1,8/5/2020,8,2,August,2021,2021,New England School Services,52604,RepairMnt Bldg Other,10196K,Boston Public School Dept,Facilities  Fund,526.5
2941941,1,1,8/5/2020,8,2,August,2021,2021,"ABCD, Incorporated",52907,Cont Serv Other,101043,Boston Public School Dept,BPS Alternative Education,24793.59
2941942,1,1,8/5/2020,8,2,August,2021,2021,"Moffett Turf Equipment, Inc.",52704,RepairSer Hvy Equip,138910,Treas Dept - Treasury Division,Treasurer - Non-Expendable,655.47
2941943,1,1,8/5/2020,8,2,August,2021,2021,New England School Services,52604,RepairMnt Bldg Other,10196K,Boston Public School Dept,Facilities  Fund,1108.5
2941945,1,1,8/5/2020,8,2,August,2021,2021,New England School Services,52604,RepairMnt Bldg Other,10196K,Boston Public School Dept,Facilities  Fund,526.5
2941946,1,1,8/5/2020,8,2,August,2021,2021,"W.B. Mason Co., Inc.",53802,EducSup Instructional Other,101309,Boston Public School Dept,Holmes Elementary School,69.08
2941947,1,1,8/5/2020,8,2,August,2021,2021,New England School Services,52604,RepairMnt Bldg Other,10196K,Boston Public School Dept,Facilities  Fund,3247.5
2941949,1,1,8/5/2020,8,2,August,2021,2021,"W.B. Mason Co., Inc.",53802,EducSup Instructional Other,101684,Boston Public School Dept,Boston Collaborative High,8.64
2941950,1,1,8/5/2020,8,2,August,2021,2021,New England School Services,52604,RepairMnt Bldg Other,10196K,Boston Public School Dept,Facilities  Fund,5800
2941952,1,1,8/5/2020,8,2,August,2021,2021,"AHEAD, INC.",52602,Bldg Repair Svcs; Interior(Plu,138910,Treas Dept - Treasury Division,Treasurer - Non-Expendable,1253.27
2941953,1,1,8/5/2020,8,2,August,2021,2021,New England School Services,52604,RepairMnt Bldg Other,10196K,Boston Public School Dept,Facilities  Fund,351
2941954,1,1,8/5/2020,8,2,August,2021,2021,New England School Services,52604,RepairMnt Bldg Other,10196K,Boston Public School Dept,Facilities  Fund,670
2941955,1,1,8/5/2020,8,2,August,2021,2021,"R.J. Shepherd Company, Inc.",53909,MiscSup Other,138910,Treas Dept - Treasury Division,Treasurer - Non-Expendable,402.26
2941956,1,1,8/5/2020,8,2,August,2021,2021,New England School Services,52604,RepairMnt Bldg Other,10196K,Boston Public School Dept,Facilities  Fund,1150.93
2941957,1,1,8/5/2020,8,2,August,2021,2021,Acushnet Company,53909,MiscSup Other,138910,Treas Dept - Treasury Division,Treasurer - Non-Expendable,585.04
2941959,1,1,8/5/2020,8,2,August,2021,2021,New England School Services,52604,RepairMnt Bldg Other,10196K,Boston Public School Dept,Facilities  Fund,2007.6
2941960,1,1,8/5/2020,8,2,August,2021,2021,NStar Electric,52202,Utilities Electric,138910,Treas Dept - Treasury Division,Treasurer - Non-Expendable,27.64
2941961,1,1,8/5/2020,8,2,August,2021,2021,New England School Services,52604,RepairMnt Bldg Other,10196K,Boston Public School Dept,Facilities  Fund,822
2941962,1,1,8/5/2020,8,2,August,2021,2021,Mr. Drain Inc,52602,Bldg Repair Svcs; Interior(Plu,138910,Treas Dept - Treasury Division,Treasurer - Non-Expendable,349
2941963,1,1,8/5/2020,8,2,August,2021,2021,New England School Services,52604,RepairMnt Bldg Other,10196K,Boston Public School Dept,Facilities  Fund,429
2941965,1,1,8/5/2020,8,2,August,2021,2021,Center for Collaborative Education,52907,Cont Serv Other,101551,Boston Public School Dept,Quincy Upper School,1445.61
2941966,1,1,8/5/2020,8,2,August,2021,2021,New England School Services,52604,RepairMnt Bldg Other,10196K,Boston Public School Dept,Facilities  Fund,1134.26
2941967,1,1,8/5/2020,8,2,August,2021,2021,"Middlesex Gases & Technologies, Inc.",52907,Cont Serv Other,211703,Police Department,CRIME LABORATORY UNIT,18.41
2941968,1,1,8/5/2020,8,2,August,2021,2021,Reliable Janitorial Services,52910,ContServ Cleaning,138910,Treas Dept - Treasury Division,Treasurer - Non-Expendable,1852
2941969,1,1,8/5/2020,8,2,August,2021,2021,New England School Services,52604,RepairMnt Bldg Other,10196K,Boston Public School Dept,Facilities  Fund,2875
2941970,1,1,8/5/2020,8,2,August,2021,2021,"Motorola Solutions, Inc.",52705,RepairSer Equip Other,221302,Fire Department,Radio Shop,560
2941971,1,1,8/5/2020,8,2,August,2021,2021,Atco Supply Co. Inc.,53402,Custodial Cleaning Supplies,138910,Treas Dept - Treasury Division,Treasurer - Non-Expendable,184.94
2941972,1,1,8/5/2020,8,2,August,2021,2021,Hartnett Co Inc.,52907,Cont Serv Other,211311,Police Department,CENTRAL SUPPLY UNIT,1666.34
2941975,1,1,8/5/2020,8,2,August,2021,2021,Boris Pest Control,52603,RepairMnt Annual Maint Bldg,138910,Treas Dept - Treasury Division,Treasurer - Non-Expendable,75
2941977,1,1,8/5/2020,8,2,August,2021,2021,"R.W. Fire Protection, Inc. DBA",52603,RepairMnt Annual Maint Bldg,138910,Treas Dept - Treasury Division,Treasurer - Non-Expendable,253
2941994,1,1,8/5/2020,8,2,August,2021,2021,Wells Fargo Financial Leasing Inc,52907,Cont Serv Other,138910,Treas Dept - Treasury Division,Treasurer - Non-Expendable,8765
2941995,1,1,8/5/2020,8,2,August,2021,2021,"Winding Brook Turf Farm, Inc.",53909,MiscSup Other,138910,Treas Dept - Treasury Division,Treasurer - Non-Expendable,493.66
2941996,1,1,8/5/2020,8,2,August,2021,2021,Ellis Memorial,52940,Subreceipt Contract  Services,101013,Boston Public School Dept,Early Learning Services,19069.2
2941997,2,1,8/5/2020,8,2,August,2021,2021,"W.B. Mason Co., Inc.",53909,MiscSup Other,101095,Boston Public School Dept,BPS School Safety Service,6.02
2941997,1,1,8/5/2020,8,2,August,2021,2021,"W.B. Mason Co., Inc.",53909,MiscSup Other,101095,Boston Public School Dept,BPS School Safety Service,9.98
2941998,1,1,8/5/2020,8,2,August,2021,2021,"Reliable Roofing & Sheet Metal, LLC",52922,ContServ Construction Capital,101000,Boston Public School Dept,Boston Public Schools,43406.98
2942000,4,1,8/5/2020,8,2,August,2021,2021,"W.B. Mason Co., Inc.",53802,EducSup Instructional Other,101009,Boston Public School Dept,Achievement Gap,13.9
2942000,3,1,8/5/2020,8,2,August,2021,2021,"W.B. Mason Co., Inc.",53802,EducSup Instructional Other,101009,Boston Public School Dept,Achievement Gap,32.31
2942000,2,1,8/5/2020,8,2,August,2021,2021,"W.B. Mason Co., Inc.",53802,EducSup Instructional Other,101009,Boston Public School Dept,Achievement Gap,69.44
2942000,1,1,8/5/2020,8,2,August,2021,2021,"W.B. Mason Co., Inc.",53802,EducSup Instructional Other,101009,Boston Public School Dept,Achievement Gap,19.88
2942001,1,1,8/5/2020,8,2,August,2021,2021,"W.B. Mason Co., Inc.",53802,EducSup Instructional Other,101309,Boston Public School Dept,Holmes Elementary School,60.51
2942002,2,1,8/5/2020,8,2,August,2021,2021,"Reliable Roofing & Sheet Metal, LLC",52922,ContServ Construction Capital,101000,Boston Public School Dept,Boston Public Schools,242267.39
2942002,1,1,8/5/2020,8,2,August,2021,2021,"Reliable Roofing & Sheet Metal, LLC",52922,ContServ Construction Capital,101000,Boston Public School Dept,Boston Public Schools,127777.74
2942004,1,1,8/5/2020,8,2,August,2021,2021,"Elizabeth Stone House, Inc.",52940,Subreceipt Contract  Services,188300,Neighborhood Development,Housing Development,13372.35
2942005,1,1,8/5/2020,8,2,August,2021,2021,"Elizabeth Stone House, Inc.",52907,Cont Serv Other,188300,Neighborhood Development,Housing Development,1416.25
2942006,2,1,8/5/2020,8,2,August,2021,2021,"W.B. Mason Co., Inc.",53802,EducSup Instructional Other,101376,Boston Public School Dept,Ohrenberger Elementary School,111
2942006,1,1,8/5/2020,8,2,August,2021,2021,"W.B. Mason Co., Inc.",53802,EducSup Instructional Other,101376,Boston Public School Dept,Ohrenberger Elementary School,445
2942009,1,1,8/5/2020,8,2,August,2021,2021,National Grid Energy Services,52203,Utilities Gas,188200,Neighborhood Development,Real Estate Management & Sales,27.63
2942010,1,1,8/5/2020,8,2,August,2021,2021,Technical Assistance Collaborative Inc.,52940,Subreceipt Contract  Services,188300,Neighborhood Development,Housing Development,645
2942011,1,1,8/5/2020,8,2,August,2021,2021,"W.B. Mason Co., Inc.",53909,MiscSup Other,101070,Boston Public School Dept,BPS Human Resource Team,63.84
2942013,1,1,8/5/2020,8,2,August,2021,2021,The Mufflerman,52703,RepairSer Vehicles,101040,Boston Public School Dept,BPS Facility Management,45.24
2942016,1,1,8/5/2020,8,2,August,2021,2021,"Flying Colors Charters, LLC",52907,Cont Serv Other,30396A,Environment Department,Municipal Waterway,12579.19
2942017,1,1,8/5/2020,8,2,August,2021,2021,The Mufflerman,52703,RepairSer Vehicles,101040,Boston Public School Dept,BPS Facility Management,45.24
2942018,1,1,8/5/2020,8,2,August,2021,2021,Broco Oil,52207,Utilities Heating Oil,138910,Treas Dept - Treasury Division,Treasurer - Non-Expendable,422.11
2942019,1,1,8/5/2020,8,2,August,2021,2021,Anytime Auto Glass LLC,52703,RepairSer Vehicles,101040,Boston Public School Dept,BPS Facility Management,516.45
2942022,1,1,8/5/2020,8,2,August,2021,2021,Atco Supply Co. Inc.,53402,Custodial Cleaning Supplies,138910,Treas Dept - Treasury Division,Treasurer - Non-Expendable,372.52
2942024,1,1,8/5/2020,8,2,August,2021,2021,"W.B. Mason Co., Inc.",54905,Current Water Coolers/Bottled,101040,Boston Public School Dept,BPS Facility Management,28511.56
2942027,1,1,8/5/2020,8,2,August,2021,2021,The Eagle Leasing Company,52907,Cont Serv Other,251501,Transportation Department,Parking Meters,238
2942028,1,1,8/5/2020,8,2,August,2021,2021,Star Building Services Inc,52910,ContServ Cleaning,251400,Transportation Department,Traffic Enforcement,2250
2942029,1,1,8/5/2020,8,2,August,2021,2021,"Sullivan & McLaughlin Elect Contr, Inc",52906,ContServ IT Services,211308,Police Department,INFORMATION SYSTEMS GROUP,41500
2942030,1,1,8/5/2020,8,2,August,2021,2021,"Ashmont Cycles, Inc.",52705,RepairSer Equip Other,211506,Police Department,BFS- FIELD SERVICES,348.95
2942031,1,1,8/5/2020,8,2,August,2021,2021,"Ashmont Cycles, Inc.",52705,RepairSer Equip Other,211506,Police Department,BFS- FIELD SERVICES,218.97
2942032,1,1,8/5/2020,8,2,August,2021,2021,Boston Medical Center,52907,Cont Serv Other,211314,Police Department,BPD Strategic Planning & Resch,71039.17
2942033,1,1,8/5/2020,8,2,August,2021,2021,"Ashmont Cycles, Inc.",52705,RepairSer Equip Other,211506,Police Department,BFS- FIELD SERVICES,472.91
2942034,1,1,8/5/2020,8,2,August,2021,2021,MHQ Inc,53909,MiscSup Other,211206,Police Department,TELECOM. MGMT. GROUP,279
2942035,1,1,8/5/2020,8,2,August,2021,2021,Murphy Specialties Inc,52601,RepairMnt Serv Building,221501,Fire Department,Facilities Maintenance,3230.17
2942036,2,1,8/5/2020,8,2,August,2021,2021,AMAZON.COM LLC,52907,Cont Serv Other,385300,Boston Center-Youth & Families,Youth & Family Services,48
2942037,1,1,8/5/2020,8,2,August,2021,2021,Final Gift USA LLC,52907,Cont Serv Other,311500,Public Works Department,Highway Field Operations,68
2942038,1,1,8/5/2020,8,2,August,2021,2021,Language Connections,52907,Cont Serv Other,303100,Environment Department,Environment,1200
2942039,1,1,8/5/2020,8,2,August,2021,2021,"Central Paint & Supply Co., Inc.",53909,MiscSup Other,211402,Police Department,ACADEMY,449.85
2942040,1,1,8/5/2020,8,2,August,2021,2021,J.F. White Contracting Co.,52922,ContServ Construction Capital,311000,Public Works Department,Public Works Department,11953.98
2942042,1,1,8/5/2020,8,2,August,2021,2021,Greenman Pederson Inc,52904,ContSer  Architect/Engineering,311000,Public Works Department,Public Works Department,68930.18
2942043,1,1,8/5/2020,8,2,August,2021,2021,"Widgix, LLC dba Survey Gizmo",54906,Current Software Licen/Maint,110118,Library Department,BPL Information Technology,3060
2942044,1,1,8/5/2020,8,2,August,2021,2021,"Widgix, LLC dba Survey Gizmo",54906,Current Software Licen/Maint,110118,Library Department,BPL Information Technology,300
2942045,1,1,8/5/2020,8,2,August,2021,2021,Seeton Turf Warehouse d/b/a,53909,MiscSup Other,138910,Treas Dept - Treasury Division,Treasurer - Non-Expendable,1046
2942046,1,1,8/5/2020,8,2,August,2021,2021,Mayflower Medalist Inc.,53909,MiscSup Other,138910,Treas Dept - Treasury Division,Treasurer - Non-Expendable,52
2942047,1,1,8/5/2020,8,2,August,2021,2021,Wells Fargo Financial Leasing Inc,52907,Cont Serv Other,138910,Treas Dept - Treasury Division,Treasurer - Non-Expendable,9967.01
2942048,1,1,8/5/2020,8,2,August,2021,2021,Howard/Stein Hudson Assoc. Inc.,52904,ContSer  Architect/Engineering,251000,Transportation Department,Traffic Department,2747.37
2942050,1,1,8/5/2020,8,2,August,2021,2021,Howard/Stein Hudson Assoc. Inc.,52904,ContSer  Architect/Engineering,251000,Transportation Department,Traffic Department,1013.73
2942051,1,1,8/5/2020,8,2,August,2021,2021,Howard/Stein Hudson Assoc. Inc.,52904,ContSer  Architect/Engineering,251000,Transportation Department,Traffic Department,769.49
2942052,10,1,8/5/2020,8,2,August,2021,2021,Integration Partners Corporation,55905,Equipment Computer Other,149000,Dpt of Innovation & Technology,Dpt of Innovation & Technology,9525.6
2942052,9,1,8/5/2020,8,2,August,2021,2021,Integration Partners Corporation,55905,Equipment Computer Other,149000,Dpt of Innovation & Technology,Dpt of Innovation & Technology,3477.6
2942052,8,1,8/5/2020,8,2,August,2021,2021,Integration Partners Corporation,55905,Equipment Computer Other,149000,Dpt of Innovation & Technology,Dpt of Innovation & Technology,3116.4
2942052,7,1,8/5/2020,8,2,August,2021,2021,Integration Partners Corporation,55905,Equipment Computer Other,149000,Dpt of Innovation & Technology,Dpt of Innovation & Technology,8480
2942052,6,1,8/5/2020,8,2,August,2021,2021,Integration Partners Corporation,55905,Equipment Computer Other,149000,Dpt of Innovation & Technology,Dpt of Innovation & Technology,6678
2942052,5,1,8/5/2020,8,2,August,2021,2021,Integration Partners Corporation,55905,Equipment Computer Other,149000,Dpt of Innovation & Technology,Dpt of Innovation & Technology,66780
2942052,4,1,8/5/2020,8,2,August,2021,2021,Integration Partners Corporation,55905,Equipment Computer Other,149000,Dpt of Innovation & Technology,Dpt of Innovation & Technology,116865
2942052,3,1,8/5/2020,8,2,August,2021,2021,Integration Partners Corporation,55905,Equipment Computer Other,149000,Dpt of Innovation & Technology,Dpt of Innovation & Technology,105
2942052,2,1,8/5/2020,8,2,August,2021,2021,Integration Partners Corporation,55905,Equipment Computer Other,149000,Dpt of Innovation & Technology,Dpt of Innovation & Technology,5000
2942052,1,1,8/5/2020,8,2,August,2021,2021,Integration Partners Corporation,55905,Equipment Computer Other,149000,Dpt of Innovation & Technology,Dpt of Innovation & Technology,41195
2942055,1,1,8/5/2020,8,2,August,2021,2021,Friendship Works,52941,Subreceipt Grants,387100,Age Strong,Administration,2282
2942056,1,1,8/5/2020,8,2,August,2021,2021,Jacobs Engineering Group Inc.,52904,ContSer  Architect/Engineering,311000,Public Works Department,Public Works Department,180177.55
2942057,1,1,8/5/2020,8,2,August,2021,2021,"HDR Engineering, Inc.",52922,ContServ Construction Capital,311000,Public Works Department,Public Works Department,26142.39
2942058,15,1,8/5/2020,8,2,August,2021,2021,Integration Partners Corporation,55905,Equipment Computer Other,149000,Dpt of Innovation & Technology,Dpt of Innovation & Technology,9525.6
2942058,14,1,8/5/2020,8,2,August,2021,2021,Integration Partners Corporation,55905,Equipment Computer Other,149000,Dpt of Innovation & Technology,Dpt of Innovation & Technology,3477.6
2942058,13,1,8/5/2020,8,2,August,2021,2021,Integration Partners Corporation,55905,Equipment Computer Other,149000,Dpt of Innovation & Technology,Dpt of Innovation & Technology,3116.4
2942058,12,1,8/5/2020,8,2,August,2021,2021,Integration Partners Corporation,55905,Equipment Computer Other,149000,Dpt of Innovation & Technology,Dpt of Innovation & Technology,2120
2942058,11,1,8/5/2020,8,2,August,2021,2021,Integration Partners Corporation,55905,Equipment Computer Other,149000,Dpt of Innovation & Technology,Dpt of Innovation & Technology,8480
2942058,10,1,8/5/2020,8,2,August,2021,2021,Integration Partners Corporation,55905,Equipment Computer Other,149000,Dpt of Innovation & Technology,Dpt of Innovation & Technology,13356
2942058,9,1,8/5/2020,8,2,August,2021,2021,Integration Partners Corporation,55905,Equipment Computer Other,149000,Dpt of Innovation & Technology,Dpt of Innovation & Technology,33390
2942058,8,1,8/5/2020,8,2,August,2021,2021,Integration Partners Corporation,55905,Equipment Computer Other,149000,Dpt of Innovation & Technology,Dpt of Innovation & Technology,116865
2942058,7,1,8/5/2020,8,2,August,2021,2021,Integration Partners Corporation,55905,Equipment Computer Other,149000,Dpt of Innovation & Technology,Dpt of Innovation & Technology,0.04
2942058,6,1,8/5/2020,8,2,August,2021,2021,Integration Partners Corporation,55905,Equipment Computer Other,149000,Dpt of Innovation & Technology,Dpt of Innovation & Technology,0.01
2942058,5,1,8/5/2020,8,2,August,2021,2021,Integration Partners Corporation,55905,Equipment Computer Other,149000,Dpt of Innovation & Technology,Dpt of Innovation & Technology,105
2942058,4,1,8/5/2020,8,2,August,2021,2021,Integration Partners Corporation,55905,Equipment Computer Other,149000,Dpt of Innovation & Technology,Dpt of Innovation & Technology,5000
2942058,3,1,8/5/2020,8,2,August,2021,2021,Integration Partners Corporation,55905,Equipment Computer Other,149000,Dpt of Innovation & Technology,Dpt of Innovation & Technology,0.02
2942058,2,1,8/5/2020,8,2,August,2021,2021,Integration Partners Corporation,55905,Equipment Computer Other,149000,Dpt of Innovation & Technology,Dpt of Innovation & Technology,2
2942058,1,1,8/5/2020,8,2,August,2021,2021,Integration Partners Corporation,55905,Equipment Computer Other,149000,Dpt of Innovation & Technology,Dpt of Innovation & Technology,41195
2942059,1,1,8/5/2020,8,2,August,2021,2021,"HDR Engineering, Inc.",52922,ContServ Construction Capital,311000,Public Works Department,Public Works Department,23088.27
2942060,1,1,8/5/2020,8,2,August,2021,2021,Mass Turnpike Authority,52801,TransTrvl Emp Local Trvl,311500,Public Works Department,Highway Field Operations,868.65
2942061,6,1,8/5/2020,8,2,August,2021,2021,Integration Partners Corporation,55905,Equipment Computer Other,414000,Office of Arts & Culture,Office of Arts & Culture,721
2942061,5,1,8/5/2020,8,2,August,2021,2021,Integration Partners Corporation,55905,Equipment Computer Other,414000,Office of Arts & Culture,Office of Arts & Culture,1435
2942061,4,1,8/5/2020,8,2,August,2021,2021,Integration Partners Corporation,55905,Equipment Computer Other,414000,Office of Arts & Culture,Office of Arts & Culture,95
2942061,3,1,8/5/2020,8,2,August,2021,2021,Integration Partners Corporation,55905,Equipment Computer Other,414000,Office of Arts & Culture,Office of Arts & Culture,700
2942061,2,1,8/5/2020,8,2,August,2021,2021,Integration Partners Corporation,55905,Equipment Computer Other,414000,Office of Arts & Culture,Office of Arts & Culture,17.5
2942061,1,1,8/5/2020,8,2,August,2021,2021,Integration Partners Corporation,55905,Equipment Computer Other,414000,Office of Arts & Culture,Office of Arts & Culture,364
2942062,1,1,8/5/2020,8,2,August,2021,2021,PJ Systems Inc. d/b/a,54906,Current Software Licen/Maint,221301,Fire Department,BFD-MIS,12600
2942063,1,1,8/5/2020,8,2,August,2021,2021,PJ Systems Inc. d/b/a,54906,Current Software Licen/Maint,211107,Police Department,OFFICE MULTI-MEDIA PRODUCTION,7680
2942064,1,1,8/5/2020,8,2,August,2021,2021,AMAZON.COM LLC,52907,Cont Serv Other,385300,Boston Center-Youth & Families,Youth & Family Services,329.99
2942065,2,1,8/5/2020,8,2,August,2021,2021,"W.W. Grainger, Inc.",53909,MiscSup Other,211702,Police Department,FIREARMS ANALYSIS UNIT,264.72
2942066,1,1,8/5/2020,8,2,August,2021,2021,BINDR LLC,52906,ContServ IT Services,188100,Neighborhood Development,Administration,1320
2942067,1,1,8/5/2020,8,2,August,2021,2021,Arimann Building Services,52910,ContServ Cleaning,188200,Neighborhood Development,Real Estate Management & Sales,400
2942068,1,1,8/5/2020,8,2,August,2021,2021,Aetna Fire Alarm Service Co Inc,52603,RepairMnt Annual Maint Bldg,188200,Neighborhood Development,Real Estate Management & Sales,570
2942069,1,1,8/5/2020,8,2,August,2021,2021,Aetna Fire Alarm Service Co Inc,52603,RepairMnt Annual Maint Bldg,188200,Neighborhood Development,Real Estate Management & Sales,315
2942071,1,1,8/5/2020,8,2,August,2021,2021,"Metro Boston Housing Partnership, Inc.",52940,Subreceipt Contract  Services,188300,Neighborhood Development,Housing Development,2507.45
2942072,1,1,8/5/2020,8,2,August,2021,2021,"Housing Corporation, Urban Edge",52907,Cont Serv Other,188300,Neighborhood Development,Housing Development,4153.46
2942073,1,1,8/5/2020,8,2,August,2021,2021,Warakurna LLC,52940,Subreceipt Contract  Services,188300,Neighborhood Development,Housing Development,2695
2942074,1,1,8/5/2020,8,2,August,2021,2021,"Pine Street Inn, Inc.",52940,Subreceipt Contract  Services,188300,Neighborhood Development,Housing Development,113267.74
2942075,1,1,8/6/2020,8,2,August,2021,2021,"Housing Corporation, Urban Edge",52604,RepairMnt Bldg Other,101046,Boston Public School Dept,BPS Planning & Engineering,44116.72
2942076,2,1,8/6/2020,8,2,August,2021,2021,Circular Blu LLC,56201,Special Appr Other,143100,Procurement,Administration,35985.6
2942077,1,1,8/6/2020,8,2,August,2021,2021,"Beta Group, Inc.",52904,ContSer  Architect/Engineering,251000,Transportation Department,Traffic Department,2079.24
2942078,1,1,8/6/2020,8,2,August,2021,2021,"Metro Boston Housing Partnership, Inc.",52940,Subreceipt Contract  Services,188300,Neighborhood Development,Housing Development,1279.17
2942079,1,1,8/6/2020,8,2,August,2021,2021,Judge Rotenberg Educational Center,52301,CntrtEduc Services/Tuitions,101188,Boston Public School Dept,BPS Sped Contracted Ed Service,31597.5
2942080,1,1,8/6/2020,8,2,August,2021,2021,Judge Rotenberg Educational Center,52301,CntrtEduc Services/Tuitions,101188,Boston Public School Dept,BPS Sped Contracted Ed Service,31597.5
2942081,1,1,8/6/2020,8,2,August,2021,2021,Judge Rotenberg Educational Center,52301,CntrtEduc Services/Tuitions,101188,Boston Public School Dept,BPS Sped Contracted Ed Service,31597.5
2942082,1,1,8/6/2020,8,2,August,2021,2021,"Kaufman Company, Inc.",53909,MiscSup Other,251502,Transportation Department,Signs & Markings,73.6
2942083,1,1,8/6/2020,8,2,August,2021,2021,Judge Rotenberg Educational Center,52301,CntrtEduc Services/Tuitions,101188,Boston Public School Dept,BPS Sped Contracted Ed Service,50317.5
2942084,2,1,8/6/2020,8,2,August,2021,2021,"Kaufman Company, Inc.",53909,MiscSup Other,251502,Transportation Department,Signs & Markings,612.5
2942084,1,1,8/6/2020,8,2,August,2021,2021,"Kaufman Company, Inc.",53909,MiscSup Other,251502,Transportation Department,Signs & Markings,1856.4
2942085,1,1,8/6/2020,8,2,August,2021,2021,"ABCD, Incorporated",52907,Cont Serv Other,101043,Boston Public School Dept,BPS Alternative Education,8346.3
2942086,1,1,8/6/2020,8,2,August,2021,2021,"ABCD, Incorporated",52907,Cont Serv Other,101043,Boston Public School Dept,BPS Alternative Education,8702.36
2942087,1,1,8/6/2020,8,2,August,2021,2021,"ABCD, Incorporated",52907,Cont Serv Other,101043,Boston Public School Dept,BPS Alternative Education,25930.63
2942088,1,1,8/6/2020,8,2,August,2021,2021,"ABCD, Incorporated",52907,Cont Serv Other,101043,Boston Public School Dept,BPS Alternative Education,7865.51
2942089,1,1,8/6/2020,8,2,August,2021,2021,Republic Services-Allied Waste Services,52907,Cont Serv Other,180201,Property Management,Building Maintenance,394.45
2942090,1,1,8/6/2020,8,2,August,2021,2021,"ABCD, Incorporated",52907,Cont Serv Other,101043,Boston Public School Dept,BPS Alternative Education,11886.82
2942091,1,1,8/6/2020,8,2,August,2021,2021,"M.Susi HMA, LLC",53909,MiscSup Other,311500,Public Works Department,Highway Field Operations,248.42
2942092,1,1,8/6/2020,8,2,August,2021,2021,"Caribe Communications & Publications,Inc",52908,ContServ Advertising,150100,Intergovernmental Relations,Intergovernmental Relations,350
2942093,1,1,8/6/2020,8,2,August,2021,2021,"MasTV/ El Planeta, LLC",52908,ContServ Advertising,150100,Intergovernmental Relations,Intergovernmental Relations,3463
2942094,1,1,8/6/2020,8,2,August,2021,2021,"W.B. Mason Co., Inc.",54905,Current Water Coolers/Bottled,211203,Police Department,FACILITIES MANAGEMENT DIVISION,19.4
2942095,1,1,8/6/2020,8,2,August,2021,2021,Banner Publications,52908,ContServ Advertising,150100,Intergovernmental Relations,Intergovernmental Relations,1722
2942096,1,1,8/6/2020,8,2,August,2021,2021,Gois Broadcasting,52908,ContServ Advertising,150100,Intergovernmental Relations,Intergovernmental Relations,1350
2942097,1,1,8/6/2020,8,2,August,2021,2021,"Asian American Civic Association, Inc",52908,ContServ Advertising,150100,Intergovernmental Relations,Intergovernmental Relations,300
2942098,1,1,8/6/2020,8,2,August,2021,2021,Mass Immigrant & Refugee Advocacy (MIRA),52908,ContServ Advertising,150100,Intergovernmental Relations,Intergovernmental Relations,3000
2942100,1,1,8/6/2020,8,2,August,2021,2021,Interboro Packaging Corporation,53909,MiscSup Other,221203,Fire Department,Technical Rescue,499.62
2942101,1,1,8/6/2020,8,2,August,2021,2021,"Weston and Sampson Engineers, Inc",52601,RepairMnt Serv Building,311200,Public Works Department,Building/Facility Maintence,45947.13
2942102,1,1,8/6/2020,8,2,August,2021,2021,Boston Neighborhood News Inc. d/b/a,52908,ContServ Advertising,150100,Intergovernmental Relations,Intergovernmental Relations,700
2942104,1,1,8/6/2020,8,2,August,2021,2021,NADAAA Inc.,52922,ContServ Construction Capital,110000,Library Department,Library Department,17166.92
2942105,1,1,8/6/2020,8,2,August,2021,2021,Essex Horticulture LLC,52922,ContServ Construction Capital,300000,Parks & Recreation Department,Parks & Recreation Department,3360
2942106,1,1,8/6/2020,8,2,August,2021,2021,"Neptune Uniform & Equipment, Inc.",53909,MiscSup Other,101095,Boston Public School Dept,BPS School Safety Service,116
2942108,10,1,8/6/2020,8,2,August,2021,2021,"Neptune Uniform & Equipment, Inc.",53909,MiscSup Other,101095,Boston Public School Dept,BPS School Safety Service,20
2942108,9,1,8/6/2020,8,2,August,2021,2021,"Neptune Uniform & Equipment, Inc.",53909,MiscSup Other,101095,Boston Public School Dept,BPS School Safety Service,116
2942108,8,1,8/6/2020,8,2,August,2021,2021,"Neptune Uniform & Equipment, Inc.",53909,MiscSup Other,101095,Boston Public School Dept,BPS School Safety Service,108
2942108,7,1,8/6/2020,8,2,August,2021,2021,"Neptune Uniform & Equipment, Inc.",53909,MiscSup Other,101095,Boston Public School Dept,BPS School Safety Service,99.99
2942108,6,1,8/6/2020,8,2,August,2021,2021,"Neptune Uniform & Equipment, Inc.",53909,MiscSup Other,101095,Boston Public School Dept,BPS School Safety Service,119
2942108,5,1,8/6/2020,8,2,August,2021,2021,"Neptune Uniform & Equipment, Inc.",53909,MiscSup Other,101095,Boston Public School Dept,BPS School Safety Service,116
2942108,4,1,8/6/2020,8,2,August,2021,2021,"Neptune Uniform & Equipment, Inc.",53909,MiscSup Other,101095,Boston Public School Dept,BPS School Safety Service,99.99
2942108,3,1,8/6/2020,8,2,August,2021,2021,"Neptune Uniform & Equipment, Inc.",53909,MiscSup Other,101095,Boston Public School Dept,BPS School Safety Service,100
2942108,2,1,8/6/2020,8,2,August,2021,2021,"Neptune Uniform & Equipment, Inc.",53909,MiscSup Other,101095,Boston Public School Dept,BPS School Safety Service,108
2942108,1,1,8/6/2020,8,2,August,2021,2021,"Neptune Uniform & Equipment, Inc.",53909,MiscSup Other,101095,Boston Public School Dept,BPS School Safety Service,116
2942109,1,1,8/6/2020,8,2,August,2021,2021,Inquilinos Boricuas En Accion,52940,Subreceipt Contract  Services,101013,Boston Public School Dept,Early Learning Services,4700.12
2942110,1,1,8/6/2020,8,2,August,2021,2021,"Galante, Anthony",52907,Cont Serv Other,300000,Parks & Recreation Department,Parks & Recreation Department,1075
2942112,1,1,8/6/2020,8,2,August,2021,2021,"Weston and Sampson Engineers, Inc",52904,ContSer  Architect/Engineering,300000,Parks & Recreation Department,Parks & Recreation Department,18500
2942114,1,1,8/6/2020,8,2,August,2021,2021,"Weston and Sampson Engineers, Inc",52904,ContSer  Architect/Engineering,300000,Parks & Recreation Department,Parks & Recreation Department,761
2942115,1,1,8/6/2020,8,2,August,2021,2021,Inquilinos Boricuas En Accion,52940,Subreceipt Contract  Services,101013,Boston Public School Dept,Early Learning Services,5571.8
2942116,1,1,8/6/2020,8,2,August,2021,2021,"Systemwide Environmental Company, LLC",52604,RepairMnt Bldg Other,101000,Boston Public School Dept,Boston Public Schools,2749
2942117,1,1,8/6/2020,8,2,August,2021,2021,Foster Appraisal & Consulting Co. Inc.,52907,Cont Serv Other,300000,Parks & Recreation Department,Parks & Recreation Department,5200
2942118,1,1,8/6/2020,8,2,August,2021,2021,"Fratrs, David A",52504,WasteRmvl Other Services,311801,Public Works Department,PWD Waste Reduction,1434
2942122,1,1,8/6/2020,8,2,August,2021,2021,"Fratrs, David A",52504,WasteRmvl Other Services,311801,Public Works Department,PWD Waste Reduction,1110
2942123,1,1,8/6/2020,8,2,August,2021,2021,SHI International Corp.,54906,Current Software Licen/Maint,311300,Public Works Department,Engineering,679
2942125,1,1,8/6/2020,8,2,August,2021,2021,Inquilinos Boricuas En Accion,52940,Subreceipt Contract  Services,101013,Boston Public School Dept,Early Learning Services,10201.75
2942126,1,1,8/6/2020,8,2,August,2021,2021,Inquilinos Boricuas En Accion,52940,Subreceipt Contract  Services,101013,Boston Public School Dept,Early Learning Services,8080.45
2942127,1,1,8/6/2020,8,2,August,2021,2021,Associated Mechanical Services Inc.,52603,RepairMnt Annual Maint Bldg,221501,Fire Department,Facilities Maintenance,248
2942128,1,1,8/6/2020,8,2,August,2021,2021,"BSC Companies, Inc d/b/a BSC Group, Inc",52904,ContSer  Architect/Engineering,300000,Parks & Recreation Department,Parks & Recreation Department,4202
2942129,1,1,8/6/2020,8,2,August,2021,2021,"SPS New England, Inc.",52904,ContSer  Architect/Engineering,311000,Public Works Department,Public Works Department,357023.71
2942129,1,1,8/6/2020,8,2,August,2021,2021,"SPS New England, Inc.",52904,ContSer  Architect/Engineering,311000,Public Works Department,Public Works Department,357023.71
2942130,1,1,8/6/2020,8,2,August,2021,2021,"Ashmont Cycles, Inc.",52705,RepairSer Equip Other,211506,Police Department,BFS- FIELD SERVICES,352.96
2942131,1,1,8/6/2020,8,2,August,2021,2021,Rental Depot Equipment and Party,54907,Current Other Charges,211402,Police Department,ACADEMY,2749.5
2942132,1,1,8/6/2020,8,2,August,2021,2021,Boys & Girls Clubs of Boston,59101,Award/Gift Trust Fund,138910,Treas Dept - Treasury Division,Treasurer - Non-Expendable,1500
2942134,1,1,8/6/2020,8,2,August,2021,2021,"Ashmont Cycles, Inc.",52705,RepairSer Equip Other,211506,Police Department,BFS- FIELD SERVICES,901.9
2942136,1,1,8/6/2020,8,2,August,2021,2021,"Ashmont Cycles, Inc.",52705,RepairSer Equip Other,211506,Police Department,BFS- FIELD SERVICES,622.45
2942137,1,1,8/6/2020,8,2,August,2021,2021,Trunetex LLC,54906,Current Software Licen/Maint,211206,Police Department,TELECOM. MGMT. GROUP,9600
2942143,1,1,8/6/2020,8,2,August,2021,2021,GDI Services Inc.,52910,ContServ Cleaning,180201,Property Management,Building Maintenance,45379
2942145,1,1,8/6/2020,8,2,August,2021,2021,GDI Services Inc.,52910,ContServ Cleaning,112200,City Council,City Councilors,1833.08
2942146,6,1,8/6/2020,8,2,August,2021,2021,"Motorola Solutions, Inc.",53909,MiscSup Other,221302,Fire Department,Radio Shop,421.27
2942147,1,1,8/6/2020,8,2,August,2021,2021,Republic Services-Allied Waste Services,52501,WasteRmvl Collection,180201,Property Management,Building Maintenance,263.46
2942149,1,1,8/6/2020,8,2,August,2021,2021,Susi Autobody Inc.,52703,RepairSer Vehicles,211202,Police Department,FLEET MANAGEMENT DIVISION,10034.5
2942150,1,1,8/6/2020,8,2,August,2021,2021,Susi Autobody Inc.,52703,RepairSer Vehicles,211202,Police Department,FLEET MANAGEMENT DIVISION,437.7
2942151,1,1,8/6/2020,8,2,August,2021,2021,"Weston and Sampson Engineers, Inc",52904,ContSer  Architect/Engineering,300000,Parks & Recreation Department,Parks & Recreation Department,37875
2942152,4,1,8/6/2020,8,2,August,2021,2021,Eduporium Inc,53802,EducSup Instructional Other,101113,Boston Public School Dept,Career & Technical Ed,546.11
2942152,3,1,8/6/2020,8,2,August,2021,2021,Eduporium Inc,53802,EducSup Instructional Other,101113,Boston Public School Dept,Career & Technical Ed,229.9
2942152,2,1,8/6/2020,8,2,August,2021,2021,Eduporium Inc,53802,EducSup Instructional Other,101113,Boston Public School Dept,Career & Technical Ed,464.75
2942152,1,1,8/6/2020,8,2,August,2021,2021,Eduporium Inc,53802,EducSup Instructional Other,101113,Boston Public School Dept,Career & Technical Ed,3465
2942153,1,1,8/6/2020,8,2,August,2021,2021,Susi Autobody Inc.,52703,RepairSer Vehicles,211202,Police Department,FLEET MANAGEMENT DIVISION,1084.93
2942154,1,1,8/6/2020,8,2,August,2021,2021,Susi Autobody Inc.,52703,RepairSer Vehicles,211202,Police Department,FLEET MANAGEMENT DIVISION,1729.46
2942155,1,1,8/6/2020,8,2,August,2021,2021,Susi Autobody Inc.,52703,RepairSer Vehicles,211202,Police Department,FLEET MANAGEMENT DIVISION,3572.07
2942156,1,1,8/6/2020,8,2,August,2021,2021,"Quincy Small Engine Repair, Inc.",52705,RepairSer Equip Other,211203,Police Department,FACILITIES MANAGEMENT DIVISION,65
2942157,1,1,8/6/2020,8,2,August,2021,2021,"RD REALTY GROUP , LLC.",54904,Current Space/Facility Rental,211203,Police Department,FACILITIES MANAGEMENT DIVISION,6000
2942158,1,1,8/6/2020,8,2,August,2021,2021,"RD REALTY GROUP , LLC.",54904,Current Space/Facility Rental,211203,Police Department,FACILITIES MANAGEMENT DIVISION,2333.33
2942159,1,1,8/6/2020,8,2,August,2021,2021,"RD REALTY GROUP , LLC.",54904,Current Space/Facility Rental,211203,Police Department,FACILITIES MANAGEMENT DIVISION,2333.33
2942160,1,1,8/6/2020,8,2,August,2021,2021,"BSC Companies, Inc d/b/a BSC Group, Inc",52904,ContSer  Architect/Engineering,300000,Parks & Recreation Department,Parks & Recreation Department,2822.13
2942161,1,1,8/6/2020,8,2,August,2021,2021,"RD REALTY GROUP , LLC.",54904,Current Space/Facility Rental,211203,Police Department,FACILITIES MANAGEMENT DIVISION,6000
2942162,1,1,8/6/2020,8,2,August,2021,2021,NCH Corporation,52705,RepairSer Equip Other,211202,Police Department,FLEET MANAGEMENT DIVISION,409.5
2942163,1,1,8/6/2020,8,2,August,2021,2021,Mansfield Paper Company,53909,MiscSup Other,211203,Police Department,FACILITIES MANAGEMENT DIVISION,2174.75
2942164,1,1,8/6/2020,8,2,August,2021,2021,Fleming Bros Inc,52922,ContServ Construction Capital,300000,Parks & Recreation Department,Parks & Recreation Department,1000
2942165,1,1,8/6/2020,8,2,August,2021,2021,Republic Services-Allied Waste Services,52501,WasteRmvl Collection,180201,Property Management,Building Maintenance,375
2942167,1,1,8/6/2020,8,2,August,2021,2021,Harry Smith Consulting,52907,Cont Serv Other,414100,Office of Arts & Culture,Arts & Culture,500
2942170,1,1,8/6/2020,8,2,August,2021,2021,Airgas East Inc.,52705,RepairSer Equip Other,221203,Fire Department,Technical Rescue,55.72
2942171,2,1,8/6/2020,8,2,August,2021,2021,Little Voices Early Care and Education,52940,Subreceipt Contract  Services,101013,Boston Public School Dept,Early Learning Services,11000
2942171,1,1,8/6/2020,8,2,August,2021,2021,Little Voices Early Care and Education,52940,Subreceipt Contract  Services,101013,Boston Public School Dept,Early Learning Services,29026.43
2942174,2,1,8/6/2020,8,2,August,2021,2021,"Boston Private Industry Council, Inc.",52907,Cont Serv Other,101059,Boston Public School Dept,BPS Welcome Services,134.55
2942174,1,1,8/6/2020,8,2,August,2021,2021,"Boston Private Industry Council, Inc.",52907,Cont Serv Other,101059,Boston Public School Dept,BPS Welcome Services,1121.25
2942175,1,1,8/6/2020,8,2,August,2021,2021,B & H Photo & Electronics Corp,55905,Equipment Computer Other,111100,Mayor's Office,Administration,1292.51
2942176,1,1,8/6/2020,8,2,August,2021,2021,"Baystate Interpreters, Inc.",52907,Cont Serv Other,101107,Boston Public School Dept,English Language Learn,1932
2942177,1,1,8/6/2020,8,2,August,2021,2021,"Baystate Interpreters, Inc.",52907,Cont Serv Other,101107,Boston Public School Dept,English Language Learn,286.5
2942178,1,1,8/6/2020,8,2,August,2021,2021,"Baystate Interpreters, Inc.",52907,Cont Serv Other,101107,Boston Public School Dept,English Language Learn,427.5
2942179,1,1,8/6/2020,8,2,August,2021,2021,Covanta Sustainable Solutions LLC,52502,WasteRmvl Disposal,311801,Public Works Department,PWD Waste Reduction,207879.63
2942180,1,1,8/6/2020,8,2,August,2021,2021,"Baystate Interpreters, Inc.",52907,Cont Serv Other,101107,Boston Public School Dept,English Language Learn,885
2942181,1,1,8/6/2020,8,2,August,2021,2021,Covanta Sustainable Solutions LLC,52502,WasteRmvl Disposal,311801,Public Works Department,PWD Waste Reduction,91306.05
2942183,1,1,8/6/2020,8,2,August,2021,2021,Covanta Sustainable Solutions LLC,52502,WasteRmvl Disposal,311801,Public Works Department,PWD Waste Reduction,118650.2
2942184,1,1,8/6/2020,8,2,August,2021,2021,Covanta Sustainable Solutions LLC,52502,WasteRmvl Disposal,311801,Public Works Department,PWD Waste Reduction,126429.24
2942185,1,1,8/6/2020,8,2,August,2021,2021,Elite Pest Solutions Inc,52907,Cont Serv Other,211203,Police Department,FACILITIES MANAGEMENT DIVISION,96.88
2942186,1,1,8/6/2020,8,2,August,2021,2021,Custom Products Corp.,53909,MiscSup Other,311100,Public Works Department,Commissioner's Office,7606.5
2942188,1,1,8/6/2020,8,2,August,2021,2021,Elite Pest Solutions Inc,52907,Cont Serv Other,211203,Police Department,FACILITIES MANAGEMENT DIVISION,116.25
2942189,1,1,8/6/2020,8,2,August,2021,2021,ARAMARK Uniform&Career Apparel Group Inc,52907,Cont Serv Other,251400,Transportation Department,Traffic Enforcement,38.67
2942191,1,1,8/6/2020,8,2,August,2021,2021,"Baystate Interpreters, Inc.",52907,Cont Serv Other,101107,Boston Public School Dept,English Language Learn,4342
2942193,1,1,8/6/2020,8,2,August,2021,2021,Airgas East Inc.,52705,RepairSer Equip Other,221203,Fire Department,Technical Rescue,103.48
2942194,1,1,8/6/2020,8,2,August,2021,2021,"Baystate Interpreters, Inc.",52907,Cont Serv Other,101107,Boston Public School Dept,English Language Learn,5707.2
2942195,1,1,8/6/2020,8,2,August,2021,2021,"Baystate Interpreters, Inc.",52907,Cont Serv Other,101107,Boston Public School Dept,English Language Learn,2889
2942197,1,1,8/6/2020,8,2,August,2021,2021,Airgas East Inc.,52705,RepairSer Equip Other,221203,Fire Department,Technical Rescue,59.7
2942199,6,1,8/6/2020,8,2,August,2021,2021,Waterside 303 Corp,52603,RepairMnt Annual Maint Bldg,152100,Major Vendor Clearing Account,Major Vendor Clearing Account,24070.74
2942199,5,1,8/6/2020,8,2,August,2021,2021,Waterside 303 Corp,52603,RepairMnt Annual Maint Bldg,300300,Parks & Recreation Department,City Wide Recreation,2794.42
2942199,4,1,8/6/2020,8,2,August,2021,2021,Waterside 303 Corp,52603,RepairMnt Annual Maint Bldg,300100,Parks & Recreation Department,Administration,8382.5
2942199,3,1,8/6/2020,8,2,August,2021,2021,Waterside 303 Corp,52603,RepairMnt Annual Maint Bldg,180203,Property Management,Asset Management,17084.34
2942199,2,1,8/6/2020,8,2,August,2021,2021,Waterside 303 Corp,52603,RepairMnt Annual Maint Bldg,260201,Inspectional Services Dept,ISD Adm & Finan,19501.17
2942199,1,1,8/6/2020,8,2,August,2021,2021,Waterside 303 Corp,52603,RepairMnt Annual Maint Bldg,221600,Fire Department,Fire Prevention,3353.01
2942202,1,1,8/6/2020,8,2,August,2021,2021,Archmedia Solutions Group LLC,52907,Cont Serv Other,211107,Police Department,OFFICE MULTI-MEDIA PRODUCTION,2125
2942203,1,1,8/6/2020,8,2,August,2021,2021,Covanta Sustainable Solutions LLC,52502,WasteRmvl Disposal,311801,Public Works Department,PWD Waste Reduction,111154.61
2942204,1,1,8/6/2020,8,2,August,2021,2021,Archmedia Solutions Group LLC,52907,Cont Serv Other,211107,Police Department,OFFICE MULTI-MEDIA PRODUCTION,325
2942205,11,1,8/6/2020,8,2,August,2021,2021,BSN Sports Inc. DBA Passons & US Games,53801,EducSup Instructional Textbook,101105,Boston Public School Dept,BPS Athletics,67.45
2942205,10,1,8/6/2020,8,2,August,2021,2021,BSN Sports Inc. DBA Passons & US Games,53801,EducSup Instructional Textbook,101105,Boston Public School Dept,BPS Athletics,14.87
2942205,9,1,8/6/2020,8,2,August,2021,2021,BSN Sports Inc. DBA Passons & US Games,53801,EducSup Instructional Textbook,101105,Boston Public School Dept,BPS Athletics,7999.5
2942205,8,1,8/6/2020,8,2,August,2021,2021,BSN Sports Inc. DBA Passons & US Games,53801,EducSup Instructional Textbook,101105,Boston Public School Dept,BPS Athletics,142.14
2942205,7,1,8/6/2020,8,2,August,2021,2021,BSN Sports Inc. DBA Passons & US Games,53801,EducSup Instructional Textbook,101105,Boston Public School Dept,BPS Athletics,1347.3
2942205,6,1,8/6/2020,8,2,August,2021,2021,BSN Sports Inc. DBA Passons & US Games,53801,EducSup Instructional Textbook,101105,Boston Public School Dept,BPS Athletics,278.96
2942205,5,1,8/6/2020,8,2,August,2021,2021,BSN Sports Inc. DBA Passons & US Games,53801,EducSup Instructional Textbook,101105,Boston Public School Dept,BPS Athletics,2126.85
2942205,4,1,8/6/2020,8,2,August,2021,2021,BSN Sports Inc. DBA Passons & US Games,53801,EducSup Instructional Textbook,101105,Boston Public School Dept,BPS Athletics,262.56
2942205,3,1,8/6/2020,8,2,August,2021,2021,BSN Sports Inc. DBA Passons & US Games,53801,EducSup Instructional Textbook,101105,Boston Public School Dept,BPS Athletics,22.89
2942205,2,1,8/6/2020,8,2,August,2021,2021,BSN Sports Inc. DBA Passons & US Games,53801,EducSup Instructional Textbook,101105,Boston Public School Dept,BPS Athletics,104.76
2942205,1,1,8/6/2020,8,2,August,2021,2021,BSN Sports Inc. DBA Passons & US Games,53801,EducSup Instructional Textbook,101105,Boston Public School Dept,BPS Athletics,15.98
2942206,1,1,8/6/2020,8,2,August,2021,2021,"W.B. Mason Co., Inc.",53802,EducSup Instructional Other,101206,Boston Public School Dept,Alighieri Montessori School,5.33
2942208,1,1,8/6/2020,8,2,August,2021,2021,"Baystate Interpreters, Inc.",52907,Cont Serv Other,101107,Boston Public School Dept,English Language Learn,68.75
2942209,1,1,8/6/2020,8,2,August,2021,2021,Scholastic Sports Sales,53801,EducSup Instructional Textbook,101105,Boston Public School Dept,BPS Athletics,3493.8
2942210,2,1,8/6/2020,8,2,August,2021,2021,"Baystate Interpreters, Inc.",52907,Cont Serv Other,101107,Boston Public School Dept,English Language Learn,3792.75
2942210,1,1,8/6/2020,8,2,August,2021,2021,"Baystate Interpreters, Inc.",52907,Cont Serv Other,101107,Boston Public School Dept,English Language Learn,4144.75
2942212,1,1,8/6/2020,8,2,August,2021,2021,Mellon Financial Corporation,52907,Cont Serv Other,188100,Neighborhood Development,Administration,655.6
2942213,1,1,8/6/2020,8,2,August,2021,2021,"LaCapra, Richard",52905,ContServ Legal Outside Counsel,211305,Police Department,HACKNEY CARRIAGE UNIT,975
2942215,1,1,8/6/2020,8,2,August,2021,2021,"Lee Barry,Linda",52913,ContServ Judicial/Recording,211602,Police Department,INTERNAL AFFAIRS DIVISION,91
2942218,1,1,8/6/2020,8,2,August,2021,2021,Beers and Lane Landscaping,52907,Cont Serv Other,300000,Parks & Recreation Department,Parks & Recreation Department,1500
2942219,1,1,8/6/2020,8,2,August,2021,2021,Fleming Bros Inc,52907,Cont Serv Other,300000,Parks & Recreation Department,Parks & Recreation Department,47700
2942220,1,1,8/6/2020,8,2,August,2021,2021,Parterre Garden Services Inc,52922,ContServ Construction Capital,300000,Parks & Recreation Department,Parks & Recreation Department,1575
2942221,1,1,8/6/2020,8,2,August,2021,2021,Parterre Garden Services Inc,52907,Cont Serv Other,300000,Parks & Recreation Department,Parks & Recreation Department,1525
2942222,1,1,8/6/2020,8,2,August,2021,2021,Parterre Garden Services Inc,52907,Cont Serv Other,300000,Parks & Recreation Department,Parks & Recreation Department,1700
2942223,1,1,8/6/2020,8,2,August,2021,2021,Parterre Garden Services Inc,52907,Cont Serv Other,300000,Parks & Recreation Department,Parks & Recreation Department,1900
2942225,1,1,8/6/2020,8,2,August,2021,2021,Parterre Garden Services Inc,52907,Cont Serv Other,138910,Treas Dept - Treasury Division,Treasurer - Non-Expendable,525
2942226,1,1,8/6/2020,8,2,August,2021,2021,Voehl Kristen,52919,ContServ Medical,30096H,Parks & Recreation Department,Animal Control Fund,1350
2942229,1,1,8/6/2020,8,2,August,2021,2021,Smith-Blackmore Marta,52907,Cont Serv Other,300500,Parks & Recreation Department,Animal Care & Control,3400
2942230,1,1,8/6/2020,8,2,August,2021,2021,Parterre Garden Services Inc,52907,Cont Serv Other,138910,Treas Dept - Treasury Division,Treasurer - Non-Expendable,1675
2942235,1,1,8/6/2020,8,2,August,2021,2021,Ian Marie Inc.,52901,ContServ  Printing/Binding,253100,Parking Clerk,Parking Clerk,1692.16
2942236,1,1,8/6/2020,8,2,August,2021,2021,Agilent Technologies Inc,52705,RepairSer Equip Other,221600,Fire Department,Fire Prevention,14328
2942237,1,1,8/6/2020,8,2,August,2021,2021,Bunker Hill Community College,59101,Award/Gift Trust Fund,138910,Treas Dept - Treasury Division,Treasurer - Non-Expendable,29362
2942238,1,1,8/6/2020,8,2,August,2021,2021,"Boston Education and Skills Training, Co",59101,Award/Gift Trust Fund,138910,Treas Dept - Treasury Division,Treasurer - Non-Expendable,30000
2942239,1,1,8/6/2020,8,2,August,2021,2021,"Garment Machinery Company, Inc.",52706,RepairSer Equip Maint,221501,Fire Department,Facilities Maintenance,676
2942240,1,1,8/6/2020,8,2,August,2021,2021,Benjamin Franklin Institute of  Tech.,59101,Award/Gift Trust Fund,138910,Treas Dept - Treasury Division,Treasurer - Non-Expendable,2000
2942241,1,1,8/6/2020,8,2,August,2021,2021,"Garment Machinery Company, Inc.",52706,RepairSer Equip Maint,221501,Fire Department,Facilities Maintenance,99.95
2942242,1,1,8/6/2020,8,2,August,2021,2021,"ABCD, Incorporated",59101,Award/Gift Trust Fund,138910,Treas Dept - Treasury Division,Treasurer - Non-Expendable,25000
2942243,1,1,8/6/2020,8,2,August,2021,2021,"Garment Machinery Company, Inc.",52706,RepairSer Equip Maint,221501,Fire Department,Facilities Maintenance,1518
2942244,1,1,8/6/2020,8,2,August,2021,2021,"Garment Machinery Company, Inc.",52706,RepairSer Equip Maint,221501,Fire Department,Facilities Maintenance,99.95
2942245,1,1,8/6/2020,8,2,August,2021,2021,PH&S Products LLC,56201,Special Appr Other,143100,Procurement,Administration,1044
2942246,1,1,8/6/2020,8,2,August,2021,2021,"Garment Machinery Company, Inc.",52706,RepairSer Equip Maint,221501,Fire Department,Facilities Maintenance,395
2942247,1,1,8/6/2020,8,2,August,2021,2021,PH&S Products LLC,56201,Special Appr Other,143100,Procurement,Administration,1914
2942249,1,1,8/6/2020,8,2,August,2021,2021,"Garment Machinery Company, Inc.",52706,RepairSer Equip Maint,221501,Fire Department,Facilities Maintenance,1529
2942250,1,1,8/6/2020,8,2,August,2021,2021,"Garment Machinery Company, Inc.",52706,RepairSer Equip Maint,221501,Fire Department,Facilities Maintenance,99.95
2942251,1,1,8/6/2020,8,2,August,2021,2021,"Garment Machinery Company, Inc.",52706,RepairSer Equip Maint,221501,Fire Department,Facilities Maintenance,1179
2942252,1,1,8/6/2020,8,2,August,2021,2021,Schlager Auto  Body,52704,RepairSer Hvy Equip,221500,Fire Department,Maintenance,200
2942253,1,1,8/6/2020,8,2,August,2021,2021,"FamilyAid Boston, Inc.",52940,Subreceipt Contract  Services,188300,Neighborhood Development,Housing Development,60108.2
2942254,1,1,8/6/2020,8,2,August,2021,2021,Fastenal Company,53909,MiscSup Other,180700,Property Management,Building System,542.82
2942256,1,1,8/6/2020,8,2,August,2021,2021,"Garment Machinery Company, Inc.",52706,RepairSer Equip Maint,221501,Fire Department,Facilities Maintenance,676
2942257,1,1,8/6/2020,8,2,August,2021,2021,Foundation for Boston Centers for Youth,52925,ContServ Grants,385400,Boston Center-Youth & Families,Child Care & Out-of-School,6647.03
2942258,1,1,8/6/2020,8,2,August,2021,2021,"Garment Machinery Company, Inc.",52706,RepairSer Equip Maint,221501,Fire Department,Facilities Maintenance,1518
2942259,1,1,8/6/2020,8,2,August,2021,2021,Lan-Tel Communications Inc.,52940,Subreceipt Contract  Services,231100,Emergency Management,Homeland Security,7500
2942260,1,1,8/6/2020,8,2,August,2021,2021,West Publishing Corporation,52906,ContServ IT Services,147100,Labor Relations,Labor Relations,511.58
2942261,1,1,8/6/2020,8,2,August,2021,2021,"Stericycle, Inc  D/B/A Certco",52504,WasteRmvl Other Services,211703,Police Department,CRIME LABORATORY UNIT,301.47
2942262,1,1,8/6/2020,8,2,August,2021,2021,W & W Construction Corp.,52925,ContServ Grants,188300,Neighborhood Development,Housing Development,2278.5
2942263,1,1,8/6/2020,8,2,August,2021,2021,Hattie B.Cooper Community Center,52941,Subreceipt Grants,188200,Neighborhood Development,Real Estate Management & Sales,38800
2942264,1,1,8/6/2020,8,2,August,2021,2021,Thomson Reuters (Markets) LLC,54902,Current Subscriptions,147100,Labor Relations,Labor Relations,235.12
2942265,1,1,8/6/2020,8,2,August,2021,2021,Friendship Works,52941,Subreceipt Grants,387100,Age Strong,Administration,2282
2942266,1,1,8/6/2020,8,2,August,2021,2021,Town of Walpole,52301,CntrtEduc Services/Tuitions,101188,Boston Public School Dept,BPS Sped Contracted Ed Service,7219
2942267,1,1,8/6/2020,8,2,August,2021,2021,CDW Government LLC,55911,Equipment Other,231100,Emergency Management,Homeland Security,3451.58
2942268,1,1,8/6/2020,8,2,August,2021,2021,Shred It Boston,52907,Cont Serv Other,300100,Parks & Recreation Department,Administration,142.74
2942269,1,1,8/6/2020,8,2,August,2021,2021,"Stoss, Inc.",52904,ContSer  Architect/Engineering,300000,Parks & Recreation Department,Parks & Recreation Department,268255.45
2942270,1,1,8/6/2020,8,2,August,2021,2021,"Beacon Hill Staffing Group,LLC",52907,Cont Serv Other,231100,Emergency Management,Homeland Security,10273.6
2942271,2,1,8/6/2020,8,2,August,2021,2021,North American Rescue Inc.,55940,Equipment - Subrecipient,231851,Emergency Management,MOHSP - Brookline,10
2942271,1,1,8/6/2020,8,2,August,2021,2021,North American Rescue Inc.,55940,Equipment - Subrecipient,231851,Emergency Management,MOHSP - Brookline,1210
2942272,1,1,8/6/2020,8,2,August,2021,2021,Lederman Engineering Inc,52907,Cont Serv Other,251300,Transportation Department,Policy & Planning,7050
2942273,1,1,8/6/2020,8,2,August,2021,2021,Graybar Electric Company,55911,Equipment Other,231100,Emergency Management,Homeland Security,2013.2
2942274,1,1,8/6/2020,8,2,August,2021,2021,Industrial Protection Services LLC,56201,Special Appr Other,143100,Procurement,Administration,7150
2942275,1,1,8/6/2020,8,2,August,2021,2021,Simon And Company Inc,54904,Current Space/Facility Rental,150100,Intergovernmental Relations,Intergovernmental Relations,35
2942276,1,1,8/6/2020,8,2,August,2021,2021,Simon And Company Inc,54904,Current Space/Facility Rental,150100,Intergovernmental Relations,Intergovernmental Relations,2560
2942277,1,1,8/6/2020,8,2,August,2021,2021,Simon And Company Inc,54904,Current Space/Facility Rental,150100,Intergovernmental Relations,Intergovernmental Relations,2560
2942278,1,1,8/6/2020,8,2,August,2021,2021,"INSTA, TRAC",52907,Cont Serv Other,150100,Intergovernmental Relations,Intergovernmental Relations,4428
2942279,1,1,8/6/2020,8,2,August,2021,2021,IEH Auto Parts LLC,53909,MiscSup Other,221500,Fire Department,Maintenance,938.3
2942280,1,1,8/6/2020,8,2,August,2021,2021,IEH Auto Parts LLC,53909,MiscSup Other,221500,Fire Department,Maintenance,2082.31
2942281,1,1,8/6/2020,8,2,August,2021,2021,IEH Auto Parts LLC,53909,MiscSup Other,221500,Fire Department,Maintenance,1268.32
2942282,1,1,8/6/2020,8,2,August,2021,2021,IEH Auto Parts LLC,53909,MiscSup Other,221500,Fire Department,Maintenance,18227.42
2942284,1,1,8/6/2020,8,2,August,2021,2021,Pasek Corp,52601,RepairMnt Serv Building,221501,Fire Department,Facilities Maintenance,782.01
2942286,1,1,8/6/2020,8,2,August,2021,2021,Susi Autobody Inc.,52703,RepairSer Vehicles,211202,Police Department,FLEET MANAGEMENT DIVISION,6113.11
2942288,1,1,8/6/2020,8,2,August,2021,2021,Interstate Rental Service Inc.,54907,Current Other Charges,211311,Police Department,CENTRAL SUPPLY UNIT,64
2942289,1,1,8/6/2020,8,2,August,2021,2021,Interstate Rental Service Inc.,54907,Current Other Charges,211311,Police Department,CENTRAL SUPPLY UNIT,202.5
2942290,1,1,8/6/2020,8,2,August,2021,2021,Interstate Rental Service Inc.,54907,Current Other Charges,211311,Police Department,CENTRAL SUPPLY UNIT,1208
2942291,1,1,8/6/2020,8,2,August,2021,2021,Interstate Rental Service Inc.,54907,Current Other Charges,211311,Police Department,CENTRAL SUPPLY UNIT,10
2942292,1,1,8/6/2020,8,2,August,2021,2021,Interstate Rental Service Inc.,54907,Current Other Charges,211311,Police Department,CENTRAL SUPPLY UNIT,961.25
2942293,1,1,8/6/2020,8,2,August,2021,2021,Interstate Rental Service Inc.,54907,Current Other Charges,211311,Police Department,CENTRAL SUPPLY UNIT,52
2942294,1,1,8/6/2020,8,2,August,2021,2021,Interstate Rental Service Inc.,54907,Current Other Charges,211311,Police Department,CENTRAL SUPPLY UNIT,20
2942295,1,1,8/6/2020,8,2,August,2021,2021,Anytime Auto Glass LLC,52703,RepairSer Vehicles,211202,Police Department,FLEET MANAGEMENT DIVISION,345.16
2942296,1,1,8/6/2020,8,2,August,2021,2021,Motion Recruitment Partners ll,52906,ContServ IT Services,149000,Dpt of Innovation & Technology,Dpt of Innovation & Technology,6790
2942297,1,1,8/6/2020,8,2,August,2021,2021,PJ Systems Inc. d/b/a,54906,Current Software Licen/Maint,211308,Police Department,INFORMATION SYSTEMS GROUP,39990
2942298,1,1,8/6/2020,8,2,August,2021,2021,Massachusetts Continuing Legal Education,54901,Current Dues/Membership,147100,Labor Relations,Labor Relations,250
2942299,3,1,8/6/2020,8,2,August,2021,2021,"IMPACT RECOVERY SYSTEMS, INC.",53909,MiscSup Other,251502,Transportation Department,Signs & Markings,622.5
2942299,2,1,8/6/2020,8,2,August,2021,2021,"IMPACT RECOVERY SYSTEMS, INC.",53909,MiscSup Other,251502,Transportation Department,Signs & Markings,4273.5
2942299,1,1,8/6/2020,8,2,August,2021,2021,"IMPACT RECOVERY SYSTEMS, INC.",53909,MiscSup Other,251502,Transportation Department,Signs & Markings,2418.75
2942303,1,1,8/6/2020,8,2,August,2021,2021,"W.B. Mason Co., Inc.",53802,EducSup Instructional Other,101376,Boston Public School Dept,Ohrenberger Elementary School,689.75
2942304,1,1,8/6/2020,8,2,August,2021,2021,"W.B. Mason Co., Inc.",53802,EducSup Instructional Other,101364,Boston Public School Dept,Mozart Elementary School,94.11
2942308,2,1,8/6/2020,8,2,August,2021,2021,"Valley Communication Systems, Inc.",52907,Cont Serv Other,101633,Boston Public School Dept,Snowden International School,185
2942308,1,1,8/6/2020,8,2,August,2021,2021,"Valley Communication Systems, Inc.",52907,Cont Serv Other,101633,Boston Public School Dept,Snowden International School,115
2942312,1,1,8/6/2020,8,2,August,2021,2021,"W.B. Mason Co., Inc.",53802,EducSup Instructional Other,101009,Boston Public School Dept,Achievement Gap,119.22
2942314,1,1,8/6/2020,8,2,August,2021,2021,Republic Services-Allied Waste Services,52503,WasteRmvl Recycle,385101,Boston Center-Youth & Families,Administrative Services,6213.17
2942318,1,1,8/6/2020,8,2,August,2021,2021,"W.B. Mason Co., Inc.",53402,Custodial Cleaning Supplies,211203,Police Department,FACILITIES MANAGEMENT DIVISION,918
2942319,2,1,8/6/2020,8,2,August,2021,2021,"Valley Communication Systems, Inc.",53802,EducSup Instructional Other,101633,Boston Public School Dept,Snowden International School,277.5
2942319,1,1,8/6/2020,8,2,August,2021,2021,"Valley Communication Systems, Inc.",53802,EducSup Instructional Other,101633,Boston Public School Dept,Snowden International School,378
2942321,1,1,8/6/2020,8,2,August,2021,2021,"W.B. Mason Co., Inc.",54905,Current Water Coolers/Bottled,41496C,Office of Arts & Culture,Strand Theater,21.48
2942322,1,1,8/6/2020,8,2,August,2021,2021,"W.B. Mason Co., Inc.",54905,Current Water Coolers/Bottled,221100,Fire Department,Administration,77.6
2942323,2,1,8/6/2020,8,2,August,2021,2021,Townsend Press,53802,EducSup Instructional Other,101656,Boston Public School Dept,Community Academy of Science &,61.29
2942323,1,1,8/6/2020,8,2,August,2021,2021,Townsend Press,53802,EducSup Instructional Other,101656,Boston Public School Dept,Community Academy of Science &,2625
2942324,1,1,8/6/2020,8,2,August,2021,2021,"W.B. Mason Co., Inc.",54905,Current Water Coolers/Bottled,385101,Boston Center-Youth & Families,Administrative Services,77.6
2942325,4,1,8/6/2020,8,2,August,2021,2021,"W.B. Mason Co., Inc.",53909,MiscSup Other,385104,Boston Center-Youth & Families,BCYF Site Councils,56.1
2942325,3,1,8/6/2020,8,2,August,2021,2021,"W.B. Mason Co., Inc.",53909,MiscSup Other,385104,Boston Center-Youth & Families,BCYF Site Councils,322.98
2942327,4,1,8/6/2020,8,2,August,2021,2021,"W.B. Mason Co., Inc.",53402,Custodial Cleaning Supplies,211203,Police Department,FACILITIES MANAGEMENT DIVISION,177.6
2942328,2,1,8/6/2020,8,2,August,2021,2021,"W.B. Mason Co., Inc.",54905,Current Water Coolers/Bottled,221100,Fire Department,Administration,85.36
2942330,1,1,8/6/2020,8,2,August,2021,2021,"W.B. Mason Co., Inc.",54905,Current Water Coolers/Bottled,221100,Fire Department,Administration,62.08
2942334,2,1,8/6/2020,8,2,August,2021,2021,"W.B. Mason Co., Inc.",54905,Current Water Coolers/Bottled,221100,Fire Department,Administration,62.08
2942336,1,1,8/6/2020,8,2,August,2021,2021,James F Linnehan Consulting,52907,Cont Serv Other,136300,Assessing Department,Executive,1200
2942338,1,1,8/6/2020,8,2,August,2021,2021,New England Industrial Uniform Rental Se,52907,Cont Serv Other,385101,Boston Center-Youth & Families,Administrative Services,2398.35
2942339,1,1,8/6/2020,8,2,August,2021,2021,"W.B. Mason Co., Inc.",53802,EducSup Instructional Other,101426,Boston Public School Dept,Tobin K-8,399.96
2942340,1,1,8/6/2020,8,2,August,2021,2021,Always Open Automotive Inc,52907,Cont Serv Other,211202,Police Department,FLEET MANAGEMENT DIVISION,4112
2942342,1,1,8/6/2020,8,2,August,2021,2021,Global Montello Group Corp,53001,MVEngySup Gasoline,211202,Police Department,FLEET MANAGEMENT DIVISION,1640.1
2942346,1,1,8/6/2020,8,2,August,2021,2021,Global Montello Group Corp,53001,MVEngySup Gasoline,211202,Police Department,FLEET MANAGEMENT DIVISION,2439.97
2942347,1,1,8/6/2020,8,2,August,2021,2021,Global Montello Group Corp,53001,MVEngySup Gasoline,211202,Police Department,FLEET MANAGEMENT DIVISION,3991.49
2942348,1,1,8/6/2020,8,2,August,2021,2021,Global Montello Group Corp,53001,MVEngySup Gasoline,211202,Police Department,FLEET MANAGEMENT DIVISION,2443.23
2942349,1,1,8/6/2020,8,2,August,2021,2021,Global Montello Group Corp,53001,MVEngySup Gasoline,211202,Police Department,FLEET MANAGEMENT DIVISION,4468.48
2942350,1,1,8/6/2020,8,2,August,2021,2021,Global Montello Group Corp,53001,MVEngySup Gasoline,211202,Police Department,FLEET MANAGEMENT DIVISION,2619.71
2942351,1,1,8/6/2020,8,2,August,2021,2021,Norfolk Hardware,53909,MiscSup Other,211204,Police Department,ELECTRICAL MAINTENANCE SECTION,36.56
2942352,1,1,8/6/2020,8,2,August,2021,2021,Norfolk Hardware,53909,MiscSup Other,211204,Police Department,ELECTRICAL MAINTENANCE SECTION,137.49
2942354,1,1,8/7/2020,8,2,August,2021,2021,"LA Alianza Hispana, Inc.",52941,Subreceipt Grants,387100,Age Strong,Administration,889.52
2942355,1,1,8/7/2020,8,2,August,2021,2021,"Metro Boston Housing Partnership, Inc.",52940,Subreceipt Contract  Services,188300,Neighborhood Development,Housing Development,3872
2942356,1,1,8/7/2020,8,2,August,2021,2021,"Metro Boston Housing Partnership, Inc.",52940,Subreceipt Contract  Services,188300,Neighborhood Development,Housing Development,3872
2942357,1,1,8/7/2020,8,2,August,2021,2021,"Metro Boston Housing Partnership, Inc.",52940,Subreceipt Contract  Services,188300,Neighborhood Development,Housing Development,14306
2942358,1,1,8/7/2020,8,2,August,2021,2021,"Metro Boston Housing Partnership, Inc.",52940,Subreceipt Contract  Services,188300,Neighborhood Development,Housing Development,5431
2942359,1,1,8/7/2020,8,2,August,2021,2021,"Metro Boston Housing Partnership, Inc.",52940,Subreceipt Contract  Services,188300,Neighborhood Development,Housing Development,5431
2942360,2,1,8/7/2020,8,2,August,2021,2021,"S & S WorldWide, Inc.",53909,MiscSup Other,385104,Boston Center-Youth & Families,BCYF Site Councils,384.95
2942360,1,1,8/7/2020,8,2,August,2021,2021,"S & S WorldWide, Inc.",53909,MiscSup Other,385104,Boston Center-Youth & Families,BCYF Site Councils,12.87
2942361,1,1,8/7/2020,8,2,August,2021,2021,"School Specialty, Inc.",53802,EducSup Instructional Other,101013,Boston Public School Dept,Early Learning Services,1544.42
2942362,1,1,8/7/2020,8,2,August,2021,2021,Mapbox Inc,52907,Cont Serv Other,101084,Boston Public School Dept,Info & Instr Technology,7800
2942363,1,1,8/7/2020,8,2,August,2021,2021,CTC Valve Nozzle and Gate Repair,52705,RepairSer Equip Other,221203,Fire Department,Technical Rescue,153
2942364,1,1,8/7/2020,8,2,August,2021,2021,"W.B. Mason Co., Inc.",53909,MiscSup Other,251400,Transportation Department,Traffic Enforcement,65.98
2942365,2,1,8/7/2020,8,2,August,2021,2021,"W.B. Mason Co., Inc.",54905,Current Water Coolers/Bottled,221100,Fire Department,Administration,42.68
2942366,1,1,8/7/2020,8,2,August,2021,2021,"W.B. Mason Co., Inc.",54905,Current Water Coolers/Bottled,221100,Fire Department,Administration,42.68
2942367,2,1,8/7/2020,8,2,August,2021,2021,"W.B. Mason Co., Inc.",54905,Current Water Coolers/Bottled,221100,Fire Department,Administration,46.56
2942369,1,1,8/7/2020,8,2,August,2021,2021,"W.B. Mason Co., Inc.",54905,Current Water Coolers/Bottled,111100,Mayor's Office,Administration,7.76
2942370,1,1,8/7/2020,8,2,August,2021,2021,"W.B. Mason Co., Inc.",54905,Current Water Coolers/Bottled,251100,Transportation Department,Traffic Commissioner's Office,3.88
2942371,1,1,8/7/2020,8,2,August,2021,2021,SHI International Corp.,52907,Cont Serv Other,101084,Boston Public School Dept,Info & Instr Technology,17098.2
2942372,1,1,8/7/2020,8,2,August,2021,2021,"W.B. Mason Co., Inc.",54905,Current Water Coolers/Bottled,111100,Mayor's Office,Administration,3.88
2942373,1,1,8/7/2020,8,2,August,2021,2021,"W.B. Mason Co., Inc.",54905,Current Water Coolers/Bottled,221100,Fire Department,Administration,155.2
2942374,1,1,8/7/2020,8,2,August,2021,2021,"W.B. Mason Co., Inc.",54905,Current Water Coolers/Bottled,412100,Neighborhood Services,Administration,3.88
2942376,2,1,8/7/2020,8,2,August,2021,2021,"W.B. Mason Co., Inc.",54905,Current Water Coolers/Bottled,221100,Fire Department,Administration,54.32
2942377,1,1,8/7/2020,8,2,August,2021,2021,"W.B. Mason Co., Inc.",54905,Current Water Coolers/Bottled,221100,Fire Department,Administration,31.04
2942378,1,1,8/7/2020,8,2,August,2021,2021,Clearway School,52301,CntrtEduc Services/Tuitions,101188,Boston Public School Dept,BPS Sped Contracted Ed Service,479.7
2942379,1,1,8/7/2020,8,2,August,2021,2021,Global Montello Group Corp,53001,MVEngySup Gasoline,221203,Fire Department,Technical Rescue,511.53
2942380,1,1,8/7/2020,8,2,August,2021,2021,Clearway School,52301,CntrtEduc Services/Tuitions,101188,Boston Public School Dept,BPS Sped Contracted Ed Service,2709.96
2942381,1,1,8/7/2020,8,2,August,2021,2021,Global Montello Group Corp,53004,MVEngySup Diesel Fuel,221203,Fire Department,Technical Rescue,326
2942382,1,1,8/7/2020,8,2,August,2021,2021,Clearway School,52301,CntrtEduc Services/Tuitions,101188,Boston Public School Dept,BPS Sped Contracted Ed Service,5420.14
2942383,1,1,8/7/2020,8,2,August,2021,2021,"Brack, Frederick C.",58001,Land & Non-Structural,221501,Fire Department,Facilities Maintenance,2200
2942384,1,1,8/7/2020,8,2,August,2021,2021,"Brack, Frederick C.",58001,Land & Non-Structural,221501,Fire Department,Facilities Maintenance,1600
2942385,1,1,8/7/2020,8,2,August,2021,2021,"Metro Boston Housing Partnership, Inc.",52940,Subreceipt Contract  Services,188300,Neighborhood Development,Housing Development,133996.11
2942386,1,1,8/7/2020,8,2,August,2021,2021,Heartline Fitness Products,52705,RepairSer Equip Other,221501,Fire Department,Facilities Maintenance,166
2942387,1,1,8/7/2020,8,2,August,2021,2021,Technical Assistance Collaborative Inc.,52940,Subreceipt Contract  Services,188300,Neighborhood Development,Housing Development,9276.95
2942388,1,1,8/7/2020,8,2,August,2021,2021,"America Scores New England, Inc",52907,Cont Serv Other,101299,Boston Public School Dept,Hennigan Elementary School,6500
2942389,1,1,8/7/2020,8,2,August,2021,2021,Mass. Housing & Shelter Alliance Inc.,52940,Subreceipt Contract  Services,188300,Neighborhood Development,Housing Development,10631.94
2942390,1,1,8/7/2020,8,2,August,2021,2021,"W.B. Mason Co., Inc.",53401,Custodial Paper Products,221501,Fire Department,Facilities Maintenance,3017.5
2942391,1,1,8/7/2020,8,2,August,2021,2021,Mass. Housing & Shelter Alliance Inc.,52940,Subreceipt Contract  Services,188300,Neighborhood Development,Housing Development,9578.36
2942392,1,1,8/7/2020,8,2,August,2021,2021,Mass. Housing & Shelter Alliance Inc.,52940,Subreceipt Contract  Services,188300,Neighborhood Development,Housing Development,10057.25
2942393,1,1,8/7/2020,8,2,August,2021,2021,"America Scores New England, Inc",52907,Cont Serv Other,101348,Boston Public School Dept,Mather Elementary School,3500
2942394,1,1,8/7/2020,8,2,August,2021,2021,Mass. Housing & Shelter Alliance Inc.,52940,Subreceipt Contract  Services,188300,Neighborhood Development,Housing Development,9169.82
2942395,1,1,8/7/2020,8,2,August,2021,2021,"Wilmington Cold Storage, Inc.",52907,Cont Serv Other,101097,Boston Public School Dept,Food & Nutrition Svc,1158.5
2942396,1,1,8/7/2020,8,2,August,2021,2021,Mass. Housing & Shelter Alliance Inc.,52940,Subreceipt Contract  Services,188300,Neighborhood Development,Housing Development,33759.07
2942397,1,1,8/7/2020,8,2,August,2021,2021,Skanska USA Building Inc.,52922,ContServ Construction Capital,180000,Property Management,Property Management,28920
2942398,1,1,8/7/2020,8,2,August,2021,2021,"W.B. Mason Co., Inc.",54905,Current Water Coolers/Bottled,221100,Fire Department,Administration,38.8
2942399,2,1,8/7/2020,8,2,August,2021,2021,"W.B. Mason Co., Inc.",54905,Current Water Coolers/Bottled,221100,Fire Department,Administration,54.32
2942400,1,1,8/7/2020,8,2,August,2021,2021,Cora Operations Inc,52606,RepairMnt Bridges,311600,Public Works Department,Bridge Operations/Maintenance,16689.29
2942401,1,1,8/7/2020,8,2,August,2021,2021,"Nashoba Learning Group, Inc.",52301,CntrtEduc Services/Tuitions,101188,Boston Public School Dept,BPS Sped Contracted Ed Service,35972
2942402,1,1,8/7/2020,8,2,August,2021,2021,"Apple, Inc.",55903,Equipment Computer/Desktop,101113,Boston Public School Dept,Career & Technical Ed,34427
2942403,1,1,8/7/2020,8,2,August,2021,2021,Janey Associates,52907,Cont Serv Other,101086,Boston Public School Dept,BPS Labor Relations,602.1
2942404,1,1,8/7/2020,8,2,August,2021,2021,"Lauterborn, Thomas J.",52907,Cont Serv Other,101170,Boston Public School Dept,BPS Special Education,715
2942405,1,1,8/7/2020,8,2,August,2021,2021,"Baystate Interpreters, Inc.",52907,Cont Serv Other,101107,Boston Public School Dept,English Language Learn,2563.65
2942407,1,1,8/7/2020,8,2,August,2021,2021,DOOR SYSTEMS INC,52601,RepairMnt Serv Building,221501,Fire Department,Facilities Maintenance,2242.41
2942408,1,1,8/7/2020,8,2,August,2021,2021,DOOR SYSTEMS INC,52601,RepairMnt Serv Building,221501,Fire Department,Facilities Maintenance,2744.11
2942409,1,1,8/7/2020,8,2,August,2021,2021,DOOR SYSTEMS INC,52601,RepairMnt Serv Building,221501,Fire Department,Facilities Maintenance,870.76
2942410,1,1,8/7/2020,8,2,August,2021,2021,DOOR SYSTEMS INC,52601,RepairMnt Serv Building,221501,Fire Department,Facilities Maintenance,1018.04
2942413,1,1,8/7/2020,8,2,August,2021,2021,"Young Audiences of Ma, Inc.",52907,Cont Serv Other,101664,Boston Public School Dept,New Mission High School,8879.99
2942414,1,1,8/7/2020,8,2,August,2021,2021,Autism Spectrum Therapies,52907,Cont Serv Other,101170,Boston Public School Dept,BPS Special Education,17873.09
2942415,1,1,8/7/2020,8,2,August,2021,2021,"PeopleServe, Inc.",52907,Cont Serv Other,101084,Boston Public School Dept,Info & Instr Technology,1187.5
2942416,2,1,8/7/2020,8,2,August,2021,2021,Near Shore Devs,52907,Cont Serv Other,101084,Boston Public School Dept,Info & Instr Technology,2900
2942416,1,1,8/7/2020,8,2,August,2021,2021,Near Shore Devs,52907,Cont Serv Other,101084,Boston Public School Dept,Info & Instr Technology,6400
2942417,2,1,8/7/2020,8,2,August,2021,2021,Raymond Design Associates Inc,52904,ContSer  Architect/Engineering,101000,Boston Public School Dept,Boston Public Schools,78847.86
2942417,1,1,8/7/2020,8,2,August,2021,2021,Raymond Design Associates Inc,52904,ContSer  Architect/Engineering,101000,Boston Public School Dept,Boston Public Schools,48552.14
2942418,1,1,8/7/2020,8,2,August,2021,2021,"keramati, shayan",52907,Cont Serv Other,101064,Boston Public School Dept,BPS Horace Mann,135
2942419,2,1,8/7/2020,8,2,August,2021,2021,Perkins & Will Inc,52904,ContSer  Architect/Engineering,101000,Boston Public School Dept,Boston Public Schools,32735
2942419,1,1,8/7/2020,8,2,August,2021,2021,Perkins & Will Inc,52904,ContSer  Architect/Engineering,101000,Boston Public School Dept,Boston Public Schools,17265
2942420,1,1,8/7/2020,8,2,August,2021,2021,Industrial Protection Services LLC,52705,RepairSer Equip Other,221203,Fire Department,Technical Rescue,300
2942421,1,1,8/7/2020,8,2,August,2021,2021,NStar Electric,52208,Utilities St Lt Elec Meter,311700,Public Works Department,Street Lights,43907.75
2942422,2,1,8/7/2020,8,2,August,2021,2021,NV5 Consultants Inc,52904,ContSer  Architect/Engineering,101000,Boston Public School Dept,Boston Public Schools,118173.35
2942422,1,1,8/7/2020,8,2,August,2021,2021,NV5 Consultants Inc,52904,ContSer  Architect/Engineering,101000,Boston Public School Dept,Boston Public Schools,62326.65
2942423,1,1,8/7/2020,8,2,August,2021,2021,"Crossroads School, Inc",52301,CntrtEduc Services/Tuitions,101188,Boston Public School Dept,BPS Sped Contracted Ed Service,10023.3
2942424,1,1,8/7/2020,8,2,August,2021,2021,"Crossroads School, Inc",52301,CntrtEduc Services/Tuitions,101188,Boston Public School Dept,BPS Sped Contracted Ed Service,10023.3
2942425,1,1,8/7/2020,8,2,August,2021,2021,"Crossroads School, Inc",52301,CntrtEduc Services/Tuitions,101188,Boston Public School Dept,BPS Sped Contracted Ed Service,4419.9
2942426,1,1,8/7/2020,8,2,August,2021,2021,"Crossroads School, Inc",52301,CntrtEduc Services/Tuitions,101188,Boston Public School Dept,BPS Sped Contracted Ed Service,10023.3
2942427,1,1,8/7/2020,8,2,August,2021,2021,Industrial Protection Services LLC,52705,RepairSer Equip Other,221203,Fire Department,Technical Rescue,300
2942428,1,1,8/7/2020,8,2,August,2021,2021,Industrial Protection Services LLC,52705,RepairSer Equip Other,221203,Fire Department,Technical Rescue,244.7
2942429,1,1,8/7/2020,8,2,August,2021,2021,Shawmut Design and Construction,52922,ContServ Construction Capital,180000,Property Management,Property Management,832535.75
2942430,1,1,8/7/2020,8,2,August,2021,2021,Industrial Protection Services LLC,52705,RepairSer Equip Other,221203,Fire Department,Technical Rescue,2092.75
2942431,1,1,8/7/2020,8,2,August,2021,2021,"J & J Contractors, Inc.",52922,ContServ Construction Capital,211000,Police Department,Police Department,622721.65
2942432,1,1,8/7/2020,8,2,August,2021,2021,Industrial Protection Services LLC,52705,RepairSer Equip Other,221203,Fire Department,Technical Rescue,1200
2942656,1,1,8/7/2020,8,2,August,2021,2021,"J & J Contractors, Inc.",52922,ContServ Construction Capital,110000,Library Department,Library Department,935596.48
2942657,1,1,8/7/2020,8,2,August,2021,2021,WCI CORP.,52922,ContServ Construction Capital,101000,Boston Public School Dept,Boston Public Schools,84914.78
2942658,1,1,8/7/2020,8,2,August,2021,2021,Life Technologies Corporation,52706,RepairSer Equip Maint,211703,Police Department,CRIME LABORATORY UNIT,13512
2942659,6,1,8/7/2020,8,2,August,2021,2021,Life Technologies Corporation,53909,MiscSup Other,211703,Police Department,CRIME LABORATORY UNIT,106.45
2942659,5,1,8/7/2020,8,2,August,2021,2021,Life Technologies Corporation,53909,MiscSup Other,211703,Police Department,CRIME LABORATORY UNIT,3340.8
2942659,4,1,8/7/2020,8,2,August,2021,2021,Life Technologies Corporation,53909,MiscSup Other,211703,Police Department,CRIME LABORATORY UNIT,489.3
2942659,3,1,8/7/2020,8,2,August,2021,2021,Life Technologies Corporation,53909,MiscSup Other,211703,Police Department,CRIME LABORATORY UNIT,771.84
2942659,2,1,8/7/2020,8,2,August,2021,2021,Life Technologies Corporation,53909,MiscSup Other,211703,Police Department,CRIME LABORATORY UNIT,1025.28
2942659,1,1,8/7/2020,8,2,August,2021,2021,Life Technologies Corporation,53909,MiscSup Other,211703,Police Department,CRIME LABORATORY UNIT,669.9
2942661,1,1,8/7/2020,8,2,August,2021,2021,WCI CORP.,52922,ContServ Construction Capital,385000,Boston Center-Youth & Families,Boston Center-Youth & Families,460858.25
2942662,1,1,8/7/2020,8,2,August,2021,2021,Community Therapeutic Day School,52301,CntrtEduc Services/Tuitions,101188,Boston Public School Dept,BPS Sped Contracted Ed Service,7269.95
2942663,1,1,8/7/2020,8,2,August,2021,2021,Digital Commonwealth Inc.,52907,Cont Serv Other,161300,City Clerk,Archives,100
2942664,1,1,8/7/2020,8,2,August,2021,2021,"Nashoba Learning Group, Inc.",52301,CntrtEduc Services/Tuitions,101188,Boston Public School Dept,BPS Sped Contracted Ed Service,33856
2942665,1,1,8/7/2020,8,2,August,2021,2021,Industrial Protection Services LLC,56201,Special Appr Other,143100,Procurement,Administration,6240
2942666,1,1,8/7/2020,8,2,August,2021,2021,Hopeful Journeys Educational Center Inc,52301,CntrtEduc Services/Tuitions,101188,Boston Public School Dept,BPS Sped Contracted Ed Service,9735.73
2942667,1,1,8/7/2020,8,2,August,2021,2021,Hopeful Journeys Educational Center Inc,52301,CntrtEduc Services/Tuitions,101188,Boston Public School Dept,BPS Sped Contracted Ed Service,9735.73
2942669,1,1,8/7/2020,8,2,August,2021,2021,Hopeful Journeys Educational Center Inc,52301,CntrtEduc Services/Tuitions,101188,Boston Public School Dept,BPS Sped Contracted Ed Service,9735.73
2942670,1,1,8/7/2020,8,2,August,2021,2021,Learning Ally Inc,52907,Cont Serv Other,101170,Boston Public School Dept,BPS Special Education,135136.5
2942781,2,1,8/8/2020,8,2,August,2021,2021,Fastenal Company,53909,MiscSup Other,311500,Public Works Department,Highway Field Operations,68.64
2942671,1,1,8/7/2020,8,2,August,2021,2021,"Lyric Stage Company of Boston, Inc.",52907,Cont Serv Other,101377,Boston Public School Dept,Orchard Gardens K-8 Pilot Schl,5000
2942672,1,1,8/7/2020,8,2,August,2021,2021,Time Clocks Unlimited LLC.,52701,RepairSer Office Equip,161100,City Clerk,Legislative Support,750
2942674,1,1,8/7/2020,8,2,August,2021,2021,Industrial Protection Services LLC,52705,RepairSer Equip Other,221203,Fire Department,Technical Rescue,387.5
2942676,1,1,8/7/2020,8,2,August,2021,2021,Industrial Protection Services LLC,52705,RepairSer Equip Other,221203,Fire Department,Technical Rescue,387.5
2942677,1,1,8/7/2020,8,2,August,2021,2021,Industrial Protection Services LLC,52705,RepairSer Equip Other,221203,Fire Department,Technical Rescue,1200
2942678,1,1,8/7/2020,8,2,August,2021,2021,Industrial Protection Services LLC,52705,RepairSer Equip Other,221203,Fire Department,Technical Rescue,300
2942680,1,1,8/7/2020,8,2,August,2021,2021,Industrial Protection Services LLC,52705,RepairSer Equip Other,221203,Fire Department,Technical Rescue,1200
2942681,1,1,8/7/2020,8,2,August,2021,2021,Industrial Protection Services LLC,52705,RepairSer Equip Other,221203,Fire Department,Technical Rescue,300
2942682,18,1,8/7/2020,8,2,August,2021,2021,NStar Electric,52211,Utilities Traffic Signals,251503,Transportation Department,Traffic Signals,73.19
2942682,17,1,8/7/2020,8,2,August,2021,2021,NStar Electric,52211,Utilities Traffic Signals,251503,Transportation Department,Traffic Signals,21161.17
2942682,16,1,8/7/2020,8,2,August,2021,2021,NStar Electric,52208,Utilities St Lt Elec Meter,311700,Public Works Department,Street Lights,81901.98
2942682,15,1,8/7/2020,8,2,August,2021,2021,NStar Electric,52203,Utilities Gas,221100,Fire Department,Administration,892.46
2942682,14,1,8/7/2020,8,2,August,2021,2021,NStar Electric,52203,Utilities Gas,180201,Property Management,Building Maintenance,3847.33
2942682,13,1,8/7/2020,8,2,August,2021,2021,NStar Electric,52202,Utilities Electric,25196C,Transportation Department,Parking Fac Fund,142.41
2942682,12,1,8/7/2020,8,2,August,2021,2021,NStar Electric,52202,Utilities Electric,414100,Office of Arts & Culture,Arts & Culture,3585.49
2942682,11,1,8/7/2020,8,2,August,2021,2021,NStar Electric,52202,Utilities Electric,400100,Cemetery Division,Cemetery,503.69
2942682,10,1,8/7/2020,8,2,August,2021,2021,NStar Electric,52202,Utilities Electric,385101,Boston Center-Youth & Families,Administrative Services,45153.51
2942682,9,1,8/7/2020,8,2,August,2021,2021,NStar Electric,52202,Utilities Electric,311200,Public Works Department,Building/Facility Maintence,21171.47
2942682,8,1,8/7/2020,8,2,August,2021,2021,NStar Electric,52202,Utilities Electric,300400,Parks & Recreation Department,Design & Construction,102742.47
2942682,7,1,8/7/2020,8,2,August,2021,2021,NStar Electric,52202,Utilities Electric,260101,Inspectional Services Dept,Commissioner's Office,8120.14
2942682,6,1,8/7/2020,8,2,August,2021,2021,NStar Electric,52202,Utilities Electric,251400,Transportation Department,Traffic Enforcement,3705.81
2942682,5,1,8/7/2020,8,2,August,2021,2021,NStar Electric,52202,Utilities Electric,221100,Fire Department,Administration,60158.3
2942682,4,1,8/7/2020,8,2,August,2021,2021,NStar Electric,52202,Utilities Electric,211309,Police Department,BA&T FINANCE,106192.76
2942682,3,1,8/7/2020,8,2,August,2021,2021,NStar Electric,52202,Utilities Electric,180201,Property Management,Building Maintenance,97974.77
2942682,2,1,8/7/2020,8,2,August,2021,2021,NStar Electric,52202,Utilities Electric,110101,Library Department,BPL Buildings Office,98062.85
2942682,1,1,8/7/2020,8,2,August,2021,2021,NStar Electric,52202,Utilities Electric,101040,Boston Public School Dept,BPS Facility Management,630495.57
2942683,1,1,8/7/2020,8,2,August,2021,2021,Industrial Protection Services LLC,52705,RepairSer Equip Other,221203,Fire Department,Technical Rescue,1200
2942684,1,1,8/7/2020,8,2,August,2021,2021,Industrial Protection Services LLC,52705,RepairSer Equip Other,221203,Fire Department,Technical Rescue,435
2942685,1,1,8/7/2020,8,2,August,2021,2021,Industrial Protection Services LLC,52705,RepairSer Equip Other,221203,Fire Department,Technical Rescue,300
2942686,1,1,8/7/2020,8,2,August,2021,2021,Industrial Protection Services LLC,52705,RepairSer Equip Other,221203,Fire Department,Technical Rescue,1200
2942687,1,1,8/7/2020,8,2,August,2021,2021,Industrial Protection Services LLC,52705,RepairSer Equip Other,221203,Fire Department,Technical Rescue,300
2942688,1,1,8/7/2020,8,2,August,2021,2021,"W.B. Mason Co., Inc.",54905,Current Water Coolers/Bottled,101040,Boston Public School Dept,BPS Facility Management,129077.26
2942689,1,1,8/7/2020,8,2,August,2021,2021,Segall Bryant & Hamill,59301,TrustClear Other,138950,Treas Dept - Treasury Division,Trust Fund Clearing Org,13927.15
2942690,1,1,8/7/2020,8,2,August,2021,2021,"Boston Business Printing, Inc.",52901,ContServ  Printing/Binding,151100,Law Department,Law  Operations,132.76
2942692,1,1,8/7/2020,8,2,August,2021,2021,"Baystate Interpreters, Inc.",52907,Cont Serv Other,101107,Boston Public School Dept,English Language Learn,1229.1
2942693,1,1,8/7/2020,8,2,August,2021,2021,CALLYO,54906,Current Software Licen/Maint,211705,Police Department,INVESTIGATIVE SERVICES,8828
2942695,1,1,8/7/2020,8,2,August,2021,2021,Ray Dunetz Landscape Architecture,52907,Cont Serv Other,101046,Boston Public School Dept,BPS Planning & Engineering,24750
2942696,1,1,8/7/2020,8,2,August,2021,2021,Ray Dunetz Landscape Architecture,52907,Cont Serv Other,101046,Boston Public School Dept,BPS Planning & Engineering,715
2942697,1,1,8/7/2020,8,2,August,2021,2021,"RCS Learning Center, Inc.",52301,CntrtEduc Services/Tuitions,101188,Boston Public School Dept,BPS Sped Contracted Ed Service,13169.86
2942698,1,1,8/7/2020,8,2,August,2021,2021,"RCS Learning Center, Inc.",52301,CntrtEduc Services/Tuitions,101188,Boston Public School Dept,BPS Sped Contracted Ed Service,13169.86
2942699,1,1,8/7/2020,8,2,August,2021,2021,Infra-Red Building and Power Service,52907,Cont Serv Other,221501,Fire Department,Facilities Maintenance,4754.98
2942700,1,1,8/7/2020,8,2,August,2021,2021,"RCS Learning Center, Inc.",52301,CntrtEduc Services/Tuitions,101188,Boston Public School Dept,BPS Sped Contracted Ed Service,9543.82
2942701,1,1,8/7/2020,8,2,August,2021,2021,"RCS Learning Center, Inc.",52301,CntrtEduc Services/Tuitions,101188,Boston Public School Dept,BPS Sped Contracted Ed Service,13169.86
2942702,1,1,8/7/2020,8,2,August,2021,2021,"RCS Learning Center, Inc.",52301,CntrtEduc Services/Tuitions,101188,Boston Public School Dept,BPS Sped Contracted Ed Service,9543.82
2942703,1,1,8/7/2020,8,2,August,2021,2021,"RCS Learning Center, Inc.",52301,CntrtEduc Services/Tuitions,101188,Boston Public School Dept,BPS Sped Contracted Ed Service,13169.86
2942706,1,1,8/7/2020,8,2,August,2021,2021,Oriental Massage Inc,52925,ContServ Grants,182300,Office of Economic Development,Small & Local Business,2000
2942707,1,1,8/7/2020,8,2,August,2021,2021,Clara Garcia,52925,ContServ Grants,182300,Office of Economic Development,Small & Local Business,2000
2942708,1,1,8/7/2020,8,2,August,2021,2021,D&G Brothers LLC,52925,ContServ Grants,182300,Office of Economic Development,Small & Local Business,1950
2942709,1,1,8/7/2020,8,2,August,2021,2021,East Boston Barre and Yoga LLC,52925,ContServ Grants,182300,Office of Economic Development,Small & Local Business,1990
2942710,1,1,8/7/2020,8,2,August,2021,2021,Rescor of Faneuil Hall,52925,ContServ Grants,182300,Office of Economic Development,Small & Local Business,2000
2942711,1,1,8/7/2020,8,2,August,2021,2021,T&S Nails Design,52925,ContServ Grants,182300,Office of Economic Development,Small & Local Business,2000
2942712,1,1,8/7/2020,8,2,August,2021,2021,BELLISSIMO NAIL & SPA LLC,52925,ContServ Grants,182300,Office of Economic Development,Small & Local Business,2000
2942713,1,1,8/7/2020,8,2,August,2021,2021,"Bdy Sqd, LLC",52925,ContServ Grants,182300,Office of Economic Development,Small & Local Business,2000
2942714,1,1,8/7/2020,8,2,August,2021,2021,Hancock Laundry,52925,ContServ Grants,182300,Office of Economic Development,Small & Local Business,1975
2942715,1,1,8/7/2020,8,2,August,2021,2021,Elegance Beauty Salon,52925,ContServ Grants,182300,Office of Economic Development,Small & Local Business,2000
2942716,1,1,8/7/2020,8,2,August,2021,2021,Spoonless Ventures LLC,52925,ContServ Grants,182300,Office of Economic Development,Small & Local Business,2000
2942717,1,1,8/7/2020,8,2,August,2021,2021,"88 Beach, LLC",52925,ContServ Grants,182300,Office of Economic Development,Small & Local Business,2000
2942718,1,1,8/7/2020,8,2,August,2021,2021,"Fajitas & Ritas, Inc",52925,ContServ Grants,182300,Office of Economic Development,Small & Local Business,1800
2942719,1,1,8/7/2020,8,2,August,2021,2021,boston eyeworks,52925,ContServ Grants,182300,Office of Economic Development,Small & Local Business,2000
2942720,1,1,8/7/2020,8,2,August,2021,2021,Pure Hair Design,52925,ContServ Grants,182300,Office of Economic Development,Small & Local Business,2000
2942721,1,1,8/7/2020,8,2,August,2021,2021,"BP Restaurants, Inc.",52925,ContServ Grants,182300,Office of Economic Development,Small & Local Business,800
2942722,1,1,8/7/2020,8,2,August,2021,2021,JV Kitchen LLC,52925,ContServ Grants,182300,Office of Economic Development,Small & Local Business,1950
2942723,1,1,8/7/2020,8,2,August,2021,2021,Plaza Cafe Abcg Inc,52925,ContServ Grants,182300,Office of Economic Development,Small & Local Business,2000
2942724,1,1,8/7/2020,8,2,August,2021,2021,Tangs Furniture,52925,ContServ Grants,182300,Office of Economic Development,Small & Local Business,2000
2942725,1,1,8/7/2020,8,2,August,2021,2021,Nectar & Green,52925,ContServ Grants,182300,Office of Economic Development,Small & Local Business,2000
2942726,1,1,8/7/2020,8,2,August,2021,2021,Lulu Green Beverage,52925,ContServ Grants,182300,Office of Economic Development,Small & Local Business,2000
2942727,1,1,8/7/2020,8,2,August,2021,2021,Cake Pops Boston Inc,52925,ContServ Grants,182300,Office of Economic Development,Small & Local Business,1750
2942728,1,1,8/7/2020,8,2,August,2021,2021,Cricket Wireless,52925,ContServ Grants,182300,Office of Economic Development,Small & Local Business,2000
2942729,1,1,8/7/2020,8,2,August,2021,2021,M1 Airport livery LLC,52925,ContServ Grants,182300,Office of Economic Development,Small & Local Business,2000
2942730,1,1,8/7/2020,8,2,August,2021,2021,Fairouz Restaurant,52925,ContServ Grants,182300,Office of Economic Development,Small & Local Business,2000
2942731,1,1,8/7/2020,8,2,August,2021,2021,JV Kitchen LLC,52925,ContServ Grants,182300,Office of Economic Development,Small & Local Business,3000
2942732,1,1,8/7/2020,8,2,August,2021,2021,Zaz Restaurant & Catering Corporation,52925,ContServ Grants,182300,Office of Economic Development,Small & Local Business,3000
2942734,1,1,8/7/2020,8,2,August,2021,2021,Totto South LLC,52925,ContServ Grants,182300,Office of Economic Development,Small & Local Business,5000
2942735,1,1,8/7/2020,8,2,August,2021,2021,"Lawrence and Company, LLC",52925,ContServ Grants,182300,Office of Economic Development,Small & Local Business,5000
2942737,2,1,8/7/2020,8,2,August,2021,2021,"Enterprise Equipment Co., Inc.",52922,ContServ Construction Capital,101000,Boston Public School Dept,Boston Public Schools,329019.48
2942737,1,1,8/7/2020,8,2,August,2021,2021,"Enterprise Equipment Co., Inc.",52922,ContServ Construction Capital,101000,Boston Public School Dept,Boston Public Schools,173530.52
2942739,2,1,8/7/2020,8,2,August,2021,2021,"C S S Architects, Inc",52904,ContSer  Architect/Engineering,101000,Boston Public School Dept,Boston Public Schools,36637.01
2942739,1,1,8/7/2020,8,2,August,2021,2021,"C S S Architects, Inc",52922,ContServ Construction Capital,101000,Boston Public School Dept,Boston Public Schools,19322.99
2942740,2,1,8/7/2020,8,2,August,2021,2021,"Valley Communication Systems, Inc.",52907,Cont Serv Other,101633,Boston Public School Dept,Snowden International School,862.28
2942740,1,1,8/7/2020,8,2,August,2021,2021,"Valley Communication Systems, Inc.",52907,Cont Serv Other,101633,Boston Public School Dept,Snowden International School,1308.75
2942741,1,1,8/7/2020,8,2,August,2021,2021,Valley Collaborative,52301,CntrtEduc Services/Tuitions,101188,Boston Public School Dept,BPS Sped Contracted Ed Service,7875
2942742,1,1,8/7/2020,8,2,August,2021,2021,"BSC Companies, Inc d/b/a BSC Group, Inc",52904,ContSer  Architect/Engineering,180000,Property Management,Property Management,6760
2942743,2,1,8/7/2020,8,2,August,2021,2021,"Enterprise Equipment Co., Inc.",52922,ContServ Construction Capital,101000,Boston Public School Dept,Boston Public Schools,373552.18
2942743,1,1,8/7/2020,8,2,August,2021,2021,"Enterprise Equipment Co., Inc.",52922,ContServ Construction Capital,101000,Boston Public School Dept,Boston Public Schools,197017.82
2942744,1,1,8/7/2020,8,2,August,2021,2021,"BSC Companies, Inc d/b/a BSC Group, Inc",52904,ContSer  Architect/Engineering,180000,Property Management,Property Management,23106.98
2942746,1,1,8/7/2020,8,2,August,2021,2021,Beacon Architectural Assoc,52904,ContSer  Architect/Engineering,181000,Public Facilities Dept,Public Faciilities Dept,11580
2942748,2,1,8/7/2020,8,2,August,2021,2021,Honeywell International Inc,52242,Utilities Power Purchase Contr,385101,Boston Center-Youth & Families,Administrative Services,1317.49
2942748,1,1,8/7/2020,8,2,August,2021,2021,Honeywell International Inc,52242,Utilities Power Purchase Contr,385101,Boston Center-Youth & Families,Administrative Services,792.22
2942749,8,1,8/7/2020,8,2,August,2021,2021,"W.B. Mason Co., Inc.",53802,EducSup Instructional Other,101684,Boston Public School Dept,Boston Collaborative High,16.29
2942749,7,1,8/7/2020,8,2,August,2021,2021,"W.B. Mason Co., Inc.",53802,EducSup Instructional Other,101684,Boston Public School Dept,Boston Collaborative High,43.12
2942749,6,1,8/7/2020,8,2,August,2021,2021,"W.B. Mason Co., Inc.",53802,EducSup Instructional Other,101684,Boston Public School Dept,Boston Collaborative High,19.98
2942749,5,1,8/7/2020,8,2,August,2021,2021,"W.B. Mason Co., Inc.",53802,EducSup Instructional Other,101684,Boston Public School Dept,Boston Collaborative High,20.5
2942749,4,1,8/7/2020,8,2,August,2021,2021,"W.B. Mason Co., Inc.",53802,EducSup Instructional Other,101684,Boston Public School Dept,Boston Collaborative High,13.5
2942749,3,1,8/7/2020,8,2,August,2021,2021,"W.B. Mason Co., Inc.",53802,EducSup Instructional Other,101684,Boston Public School Dept,Boston Collaborative High,13
2942749,2,1,8/7/2020,8,2,August,2021,2021,"W.B. Mason Co., Inc.",53802,EducSup Instructional Other,101684,Boston Public School Dept,Boston Collaborative High,1.82
2942749,1,1,8/7/2020,8,2,August,2021,2021,"W.B. Mason Co., Inc.",53802,EducSup Instructional Other,101684,Boston Public School Dept,Boston Collaborative High,2.85
2942750,1,1,8/7/2020,8,2,August,2021,2021,"Warner Larson, Inc.",52904,ContSer  Architect/Engineering,101000,Boston Public School Dept,Boston Public Schools,2250
2942751,1,1,8/7/2020,8,2,August,2021,2021,"FamilyAid Boston, Inc.",52940,Subreceipt Contract  Services,188300,Neighborhood Development,Housing Development,46421.41
2942752,1,1,8/7/2020,8,2,August,2021,2021,READS Collaborative,52301,CntrtEduc Services/Tuitions,101188,Boston Public School Dept,BPS Sped Contracted Ed Service,3795
2942753,2,1,8/7/2020,8,2,August,2021,2021,M. Neves Inc.,52922,ContServ Construction Capital,138910,Treas Dept - Treasury Division,Treasurer - Non-Expendable,12165
2942753,1,1,8/7/2020,8,2,August,2021,2021,M. Neves Inc.,52922,ContServ Construction Capital,300000,Parks & Recreation Department,Parks & Recreation Department,49632.5
2942754,1,1,8/7/2020,8,2,August,2021,2021,"United Medical Waste Management, Inc",52504,WasteRmvl Other Services,221203,Fire Department,Technical Rescue,1196.34
2942755,1,1,8/7/2020,8,2,August,2021,2021,"United Medical Waste Management, Inc",52504,WasteRmvl Other Services,221203,Fire Department,Technical Rescue,495.12
2942756,1,1,8/7/2020,8,2,August,2021,2021,"United Medical Waste Management, Inc",52504,WasteRmvl Other Services,221203,Fire Department,Technical Rescue,412.6
2942757,1,1,8/7/2020,8,2,August,2021,2021,"United Medical Waste Management, Inc",52504,WasteRmvl Other Services,221203,Fire Department,Technical Rescue,206.3
2942758,1,1,8/7/2020,8,2,August,2021,2021,City of Quincy,52920,ContServ Training,231856,Emergency Management,MOHSP - Quincy,59475.89
2942759,1,1,8/7/2020,8,2,August,2021,2021,"Metro Boston Housing Partnership, Inc.",52940,Subreceipt Contract  Services,188300,Neighborhood Development,Housing Development,2577
2942760,1,1,8/7/2020,8,2,August,2021,2021,"Metro Boston Housing Partnership, Inc.",52940,Subreceipt Contract  Services,188300,Neighborhood Development,Housing Development,2577
2942762,1,1,8/7/2020,8,2,August,2021,2021,City of Somerville,52940,Subreceipt Contract  Services,231858,Emergency Management,MOHSP - Somerville,4056.39
2942763,1,1,8/7/2020,8,2,August,2021,2021,Oudens Ello Architecture LLC,52904,ContSer  Architect/Engineering,110000,Library Department,Library Department,59967.45
2942764,1,1,8/7/2020,8,2,August,2021,2021,"Pine Street Inn, Inc.",52940,Subreceipt Contract  Services,188300,Neighborhood Development,Housing Development,9005.8
2942765,1,1,8/7/2020,8,2,August,2021,2021,"Pine Street Inn, Inc.",52940,Subreceipt Contract  Services,188300,Neighborhood Development,Housing Development,9066.15
2942770,1,1,8/7/2020,8,2,August,2021,2021,Motion Recruitment Partners ll,52940,Subreceipt Contract  Services,188000,Neighborhood Development,Neighborhood Development,7000
2942771,1,1,8/7/2020,8,2,August,2021,2021,Technical Assistance Collaborative Inc.,52940,Subreceipt Contract  Services,188300,Neighborhood Development,Housing Development,2740
2942772,1,1,8/7/2020,8,2,August,2021,2021,"Metro Boston Housing Partnership, Inc.",52940,Subreceipt Contract  Services,188300,Neighborhood Development,Housing Development,212350
2942773,1,1,8/7/2020,8,2,August,2021,2021,"Metro Boston Housing Partnership, Inc.",52940,Subreceipt Contract  Services,188300,Neighborhood Development,Housing Development,224505
2942774,1,1,8/7/2020,8,2,August,2021,2021,Macrides Michael G,52901,ContServ  Printing/Binding,300100,Parks & Recreation Department,Administration,422.6
2942775,1,1,8/7/2020,8,2,August,2021,2021,"Griffin Greenhouse Supplies,Inc.",53909,MiscSup Other,300201,Parks & Recreation Department,Parks Maintenance,237.6
2942776,1,1,8/7/2020,8,2,August,2021,2021,"Metro Boston Housing Partnership, Inc.",52940,Subreceipt Contract  Services,188300,Neighborhood Development,Housing Development,577029
2942777,1,1,8/7/2020,8,2,August,2021,2021,"Westfield Capital Management Co., L.P.",59301,TrustClear Other,138950,Treas Dept - Treasury Division,Trust Fund Clearing Org,7773.58
2942778,1,1,8/7/2020,8,2,August,2021,2021,Boston Water & Sewer Commission,52206,Utilities Water & Sewer,188300,Neighborhood Development,Housing Development,3.88
2942779,1,1,8/8/2020,8,2,August,2021,2021,Eliassen Group. LLC,52907,Cont Serv Other,188000,Neighborhood Development,Neighborhood Development,3325
2942780,1,1,8/8/2020,8,2,August,2021,2021,Eliassen Group. LLC,52907,Cont Serv Other,188000,Neighborhood Development,Neighborhood Development,3325
2942781,3,1,8/8/2020,8,2,August,2021,2021,Fastenal Company,53909,MiscSup Other,311500,Public Works Department,Highway Field Operations,1036.49
2942781,1,1,8/8/2020,8,2,August,2021,2021,Fastenal Company,53903,MiscSup Sm Tools/Instruments,311500,Public Works Department,Highway Field Operations,36.26
2942782,1,1,8/8/2020,8,2,August,2021,2021,Fastenal Company,53405,Custodial Other Supplies,211203,Police Department,FACILITIES MANAGEMENT DIVISION,1110.96
2942786,1,1,8/8/2020,8,2,August,2021,2021,"Leahy Landscaping, Inc.",58001,Land & Non-Structural,138900,Treas Dept - Treasury Division,Treasurer - Custodian,2750
2942787,1,1,8/8/2020,8,2,August,2021,2021,Massachusetts Municipal Association,54901,Current Dues/Membership,150100,Intergovernmental Relations,Intergovernmental Relations,88500
2942789,1,1,8/8/2020,8,2,August,2021,2021,"W.B. Mason Co., Inc.",54905,Current Water Coolers/Bottled,221100,Fire Department,Administration,54.32
2942791,1,1,8/8/2020,8,2,August,2021,2021,"W.B. Mason Co., Inc.",54905,Current Water Coolers/Bottled,221100,Fire Department,Administration,124.16
2942792,1,1,8/8/2020,8,2,August,2021,2021,"W.B. Mason Co., Inc.",54905,Current Water Coolers/Bottled,221100,Fire Department,Administration,62.08
2942793,1,1,8/8/2020,8,2,August,2021,2021,"W.B. Mason Co., Inc.",54905,Current Water Coolers/Bottled,221100,Fire Department,Administration,46.56
2942794,1,1,8/8/2020,8,2,August,2021,2021,"W.B. Mason Co., Inc.",54905,Current Water Coolers/Bottled,221100,Fire Department,Administration,46.56
2942795,1,1,8/8/2020,8,2,August,2021,2021,"W.B. Mason Co., Inc.",54905,Current Water Coolers/Bottled,137100,Collecting Division,General Management,11.64
2942796,1,1,8/8/2020,8,2,August,2021,2021,"W.B. Mason Co., Inc.",54905,Current Water Coolers/Bottled,141100,Budget Management,Administration,3.88
2942797,1,1,8/8/2020,8,2,August,2021,2021,"W.B. Mason Co., Inc.",54905,Current Water Coolers/Bottled,111100,Mayor's Office,Administration,3.88
2942798,1,1,8/8/2020,8,2,August,2021,2021,"W.B. Mason Co., Inc.",53601,Office Paper General,412100,Neighborhood Services,Administration,15.52
2942799,2,1,8/8/2020,8,2,August,2021,2021,"W.B. Mason Co., Inc.",54905,Current Water Coolers/Bottled,151100,Law Department,Law  Operations,7.76
2942800,1,1,8/8/2020,8,2,August,2021,2021,"W.B. Mason Co., Inc.",54905,Current Water Coolers/Bottled,221100,Fire Department,Administration,3.88
2942801,3,1,8/8/2020,8,2,August,2021,2021,"W.B. Mason Co., Inc.",53602,Office Supplies General,253100,Parking Clerk,Parking Clerk,73.3
2942801,2,1,8/8/2020,8,2,August,2021,2021,"W.B. Mason Co., Inc.",53909,MiscSup Other,253100,Parking Clerk,Parking Clerk,10.35
2942801,1,1,8/8/2020,8,2,August,2021,2021,"W.B. Mason Co., Inc.",53601,Office Paper General,253100,Parking Clerk,Parking Clerk,381.45
2942802,1,1,8/8/2020,8,2,August,2021,2021,"W.B. Mason Co., Inc.",53602,Office Supplies General,180100,Property Management,Administration,32.76
2942804,2,1,8/8/2020,8,2,August,2021,2021,"W.B. Mason Co., Inc.",53909,MiscSup Other,412100,Neighborhood Services,Administration,89.28
2942804,1,1,8/8/2020,8,2,August,2021,2021,"W.B. Mason Co., Inc.",53602,Office Supplies General,412100,Neighborhood Services,Administration,107.8
2942805,1,1,8/8/2020,8,2,August,2021,2021,City of Everett,52920,ContServ Training,231854,Emergency Management,MOHSP - Everett,21302.36
2942806,1,1,8/8/2020,8,2,August,2021,2021,LexisNexis Risk Solutions FL Inc.,54906,Current Software Licen/Maint,211100,Police Department,Police Commissioner's Office,800
2942807,1,1,8/8/2020,8,2,August,2021,2021,City of Somerville,52920,ContServ Training,231858,Emergency Management,MOHSP - Somerville,68000
2942808,1,1,8/8/2020,8,2,August,2021,2021,City of Somerville,52940,Subreceipt Contract  Services,231858,Emergency Management,MOHSP - Somerville,6612.09
2942809,1,1,8/8/2020,8,2,August,2021,2021,Comm-Tract Corp,52940,Subreceipt Contract  Services,231100,Emergency Management,Homeland Security,5900
2942810,1,1,8/8/2020,8,2,August,2021,2021,"Sigma Systems, Inc.",52907,Cont Serv Other,211100,Police Department,Police Commissioner's Office,2021
2942811,1,1,8/8/2020,8,2,August,2021,2021,Lan-Tel Communications Inc.,52907,Cont Serv Other,231100,Emergency Management,Homeland Security,59632.87
2942812,1,1,8/8/2020,8,2,August,2021,2021,Simon And Company Inc,54904,Current Space/Facility Rental,150100,Intergovernmental Relations,Intergovernmental Relations,2665
2942814,1,1,8/8/2020,8,2,August,2021,2021,Lan-Tel Communications Inc.,52907,Cont Serv Other,231100,Emergency Management,Homeland Security,63461.58
2942815,2,1,8/8/2020,8,2,August,2021,2021,Blue Hill Auto Supply/dba Blue Hill Powe,55911,Equipment Other,221100,Fire Department,Administration,5177.97
2942815,1,1,8/8/2020,8,2,August,2021,2021,Blue Hill Auto Supply/dba Blue Hill Powe,55911,Equipment Other,221100,Fire Department,Administration,1119.96
2942816,8,1,8/8/2020,8,2,August,2021,2021,CDW Government LLC,55911,Equipment Other,231100,Emergency Management,Homeland Security,6349.8
2942816,7,1,8/8/2020,8,2,August,2021,2021,CDW Government LLC,55911,Equipment Other,231100,Emergency Management,Homeland Security,4000
2942816,6,1,8/8/2020,8,2,August,2021,2021,CDW Government LLC,55911,Equipment Other,231100,Emergency Management,Homeland Security,6600
2942816,5,1,8/8/2020,8,2,August,2021,2021,CDW Government LLC,55911,Equipment Other,231100,Emergency Management,Homeland Security,520
2942816,4,1,8/8/2020,8,2,August,2021,2021,CDW Government LLC,55911,Equipment Other,231100,Emergency Management,Homeland Security,4000
2942816,3,1,8/8/2020,8,2,August,2021,2021,CDW Government LLC,55911,Equipment Other,231100,Emergency Management,Homeland Security,6000
2942816,2,1,8/8/2020,8,2,August,2021,2021,CDW Government LLC,55911,Equipment Other,231100,Emergency Management,Homeland Security,5105.04
2942816,1,1,8/8/2020,8,2,August,2021,2021,CDW Government LLC,55911,Equipment Other,231100,Emergency Management,Homeland Security,643.6
2942818,1,1,8/8/2020,8,2,August,2021,2021,Boston Mechanical Inc,52601,RepairMnt Serv Building,221501,Fire Department,Facilities Maintenance,130
2942819,1,1,8/8/2020,8,2,August,2021,2021,Simon And Company Inc,54904,Current Space/Facility Rental,150100,Intergovernmental Relations,Intergovernmental Relations,2700
2942820,1,1,8/8/2020,8,2,August,2021,2021,DNS Made Easy,54906,Current Software Licen/Maint,149400,Dpt of Innovation & Technology,Core Infrastructure,73.14
2942821,1,1,8/8/2020,8,2,August,2021,2021,DNS Made Easy,54906,Current Software Licen/Maint,149400,Dpt of Innovation & Technology,Core Infrastructure,107.28
2942822,1,1,8/8/2020,8,2,August,2021,2021,"Infor Public Sector, Inc.",54906,Current Software Licen/Maint,149200,Dpt of Innovation & Technology,Tools for Gov't,244035.83
2942823,5,1,8/8/2020,8,2,August,2021,2021,BMC Software Inc,54906,Current Software Licen/Maint,149400,Dpt of Innovation & Technology,Core Infrastructure,202.14
2942823,4,1,8/8/2020,8,2,August,2021,2021,BMC Software Inc,54906,Current Software Licen/Maint,149400,Dpt of Innovation & Technology,Core Infrastructure,140.01
2942823,3,1,8/8/2020,8,2,August,2021,2021,BMC Software Inc,54906,Current Software Licen/Maint,149400,Dpt of Innovation & Technology,Core Infrastructure,1875
2942823,2,1,8/8/2020,8,2,August,2021,2021,BMC Software Inc,54906,Current Software Licen/Maint,149400,Dpt of Innovation & Technology,Core Infrastructure,9731.62
2942823,1,1,8/8/2020,8,2,August,2021,2021,BMC Software Inc,54906,Current Software Licen/Maint,149400,Dpt of Innovation & Technology,Core Infrastructure,4305.5
2942824,1,1,8/8/2020,8,2,August,2021,2021,Sullivan & McLaughlin,52906,ContServ IT Services,149000,Dpt of Innovation & Technology,Dpt of Innovation & Technology,3475
2942825,1,1,8/9/2020,8,2,August,2021,2021,Sullivan & McLaughlin,52906,ContServ IT Services,149000,Dpt of Innovation & Technology,Dpt of Innovation & Technology,4149
2942826,1,1,8/9/2020,8,2,August,2021,2021,"Qlarion, Inc",52906,ContServ IT Services,149000,Dpt of Innovation & Technology,Dpt of Innovation & Technology,20590
2942827,1,1,8/9/2020,8,2,August,2021,2021,"ERP Analysts, Inc.",54906,Current Software Licen/Maint,149000,Dpt of Innovation & Technology,Dpt of Innovation & Technology,11020
2942828,1,1,8/9/2020,8,2,August,2021,2021,"ERP Analysts, Inc.",54906,Current Software Licen/Maint,149000,Dpt of Innovation & Technology,Dpt of Innovation & Technology,26950
2942829,1,1,8/9/2020,8,2,August,2021,2021,"ERP Analysts, Inc.",54906,Current Software Licen/Maint,149000,Dpt of Innovation & Technology,Dpt of Innovation & Technology,26950
2942830,1,1,8/9/2020,8,2,August,2021,2021,"ERP Analysts, Inc.",54906,Current Software Licen/Maint,149000,Dpt of Innovation & Technology,Dpt of Innovation & Technology,22765
2942831,1,1,8/9/2020,8,2,August,2021,2021,"ERP Analysts, Inc.",54906,Current Software Licen/Maint,149000,Dpt of Innovation & Technology,Dpt of Innovation & Technology,82597.2
2942832,1,1,8/9/2020,8,2,August,2021,2021,"ERP Analysts, Inc.",54906,Current Software Licen/Maint,149000,Dpt of Innovation & Technology,Dpt of Innovation & Technology,80042.4
2942833,1,1,8/9/2020,8,2,August,2021,2021,"ERP Analysts, Inc.",54906,Current Software Licen/Maint,149000,Dpt of Innovation & Technology,Dpt of Innovation & Technology,18960
2942834,1,1,8/10/2020,8,2,August,2021,2021,"Powers & Company, Inc.",52904,ContSer  Architect/Engineering,385000,Boston Center-Youth & Families,Boston Center-Youth & Families,13987.5
2942836,1,1,8/10/2020,8,2,August,2021,2021,Dagle Electrical Construction Corp.,52604,RepairMnt Bldg Other,101046,Boston Public School Dept,BPS Planning & Engineering,154323.56
2942838,2,1,8/10/2020,8,2,August,2021,2021,"Swieczkowski, Eliza",52907,Cont Serv Other,101170,Boston Public School Dept,BPS Special Education,574
2942838,1,1,8/10/2020,8,2,August,2021,2021,"Swieczkowski, Eliza",52907,Cont Serv Other,101170,Boston Public School Dept,BPS Special Education,164
2942839,1,1,8/10/2020,8,2,August,2021,2021,Schiarizzi Anthony,52907,Cont Serv Other,300000,Parks & Recreation Department,Parks & Recreation Department,5150
2942840,1,1,8/10/2020,8,2,August,2021,2021,"LA Alianza Hispana, Inc.",52941,Subreceipt Grants,387100,Age Strong,Administration,1553.71
2942841,1,1,8/10/2020,8,2,August,2021,2021,"Dedham Fence, Inc.",52907,Cont Serv Other,300000,Parks & Recreation Department,Parks & Recreation Department,8400
2942863,1,1,8/10/2020,8,2,August,2021,2021,"Gouthro, Andrea",52907,Cont Serv Other,30096H,Parks & Recreation Department,Animal Control Fund,1365
2942864,1,1,8/10/2020,8,2,August,2021,2021,"Capitol Waste Services, Inc.",52501,WasteRmvl Collection,311801,Public Works Department,PWD Waste Reduction,315970.72
2942865,2,1,8/10/2020,8,2,August,2021,2021,Kirkwood Printing Company LLC,53909,MiscSup Other,251400,Transportation Department,Traffic Enforcement,390.88
2942865,1,1,8/10/2020,8,2,August,2021,2021,Kirkwood Printing Company LLC,53909,MiscSup Other,251400,Transportation Department,Traffic Enforcement,922.68
2942866,1,1,8/10/2020,8,2,August,2021,2021,"Dedham Fence, Inc.",52907,Cont Serv Other,300201,Parks & Recreation Department,Parks Maintenance,9995
2942867,1,1,8/10/2020,8,2,August,2021,2021,"Coffy Productions Bus Service, LLC",52811,TransTrvl Field Trip,101217,Boston Public School Dept,Bates Elementary School,450
2942869,1,1,8/10/2020,8,2,August,2021,2021,Corporate Translation Services Inc,52907,Cont Serv Other,211705,Police Department,INVESTIGATIVE SERVICES,172.9
2942870,1,1,8/10/2020,8,2,August,2021,2021,"Alco Auto Parts Co., Inc.",53901,MiscSup Automotive Sup/Parts,300201,Parks & Recreation Department,Parks Maintenance,14.92
2942871,1,1,8/10/2020,8,2,August,2021,2021,"Ron Smith & Associates, Inc.",52920,ContServ Training,211707,Police Department,LATENT PRINTS UNIT,600
2942872,1,1,8/10/2020,8,2,August,2021,2021,"Scales, John DBA",52907,Cont Serv Other,300201,Parks & Recreation Department,Parks Maintenance,460
2942873,1,1,8/10/2020,8,2,August,2021,2021,Pitney Bowes Inc,53603,Office Postage,221102,Fire Department,Personnel,2000
2942874,1,1,8/10/2020,8,2,August,2021,2021,Bojo Clipper Service,56201,Special Appr Other,300202,Parks & Recreation Department,Park Rangers,385
2942875,1,1,8/10/2020,8,2,August,2021,2021,Dorchester Tire Services Inc.,52703,RepairSer Vehicles,300201,Parks & Recreation Department,Parks Maintenance,80
2942876,2,1,8/10/2020,8,2,August,2021,2021,Kirkwood Printing Company LLC,53909,MiscSup Other,251400,Transportation Department,Traffic Enforcement,390.88
2942876,1,1,8/10/2020,8,2,August,2021,2021,Kirkwood Printing Company LLC,53909,MiscSup Other,251400,Transportation Department,Traffic Enforcement,922.68
2942877,1,1,8/10/2020,8,2,August,2021,2021,Dorchester Tire Services Inc.,52703,RepairSer Vehicles,300201,Parks & Recreation Department,Parks Maintenance,164
2942878,1,1,8/10/2020,8,2,August,2021,2021,Eastern Minerals,52403,SnowRmvl Supplies,300201,Parks & Recreation Department,Parks Maintenance,1527.75
2942879,1,1,8/10/2020,8,2,August,2021,2021,Kirkwood Printing Company LLC,53909,MiscSup Other,251400,Transportation Department,Traffic Enforcement,45.5
2943004,2,1,8/10/2020,8,2,August,2021,2021,MacShamrock LLC,56201,Special Appr Other,143100,Procurement,Administration,2010.96
2942880,1,1,8/10/2020,8,2,August,2021,2021,Turf Products,52703,RepairSer Vehicles,300201,Parks & Recreation Department,Parks Maintenance,790.61
2942881,2,1,8/10/2020,8,2,August,2021,2021,Pearson Education,53801,EducSup Instructional Textbook,10196C,Boston Public School Dept,Boston Adult High School 92,54.05
2942881,1,1,8/10/2020,8,2,August,2021,2021,Pearson Education,53801,EducSup Instructional Textbook,10196C,Boston Public School Dept,Boston Adult High School 92,959.7
2942882,5,1,8/10/2020,8,2,August,2021,2021,"Pocket Full of Therapy, Inc.",53909,MiscSup Other,101170,Boston Public School Dept,BPS Special Education,10.95
2942882,4,1,8/10/2020,8,2,August,2021,2021,"Pocket Full of Therapy, Inc.",53909,MiscSup Other,101170,Boston Public School Dept,BPS Special Education,21.95
2942882,3,1,8/10/2020,8,2,August,2021,2021,"Pocket Full of Therapy, Inc.",53909,MiscSup Other,101170,Boston Public School Dept,BPS Special Education,3.95
2942882,2,1,8/10/2020,8,2,August,2021,2021,"Pocket Full of Therapy, Inc.",53909,MiscSup Other,101170,Boston Public School Dept,BPS Special Education,19.95
2942882,1,1,8/10/2020,8,2,August,2021,2021,"Pocket Full of Therapy, Inc.",53909,MiscSup Other,101170,Boston Public School Dept,BPS Special Education,19.95
2942883,2,1,8/10/2020,8,2,August,2021,2021,Pearson Education,53802,EducSup Instructional Other,101151,Boston Public School Dept,BPS Adult Education,59.76
2942883,1,1,8/10/2020,8,2,August,2021,2021,Pearson Education,53802,EducSup Instructional Other,101151,Boston Public School Dept,BPS Adult Education,1150.25
2942884,3,1,8/10/2020,8,2,August,2021,2021,"Severin Intermediate Holdings, LLC",53802,EducSup Instructional Other,101624,Boston Public School Dept,Brighton High School,741.95
2942884,2,1,8/10/2020,8,2,August,2021,2021,"Severin Intermediate Holdings, LLC",53802,EducSup Instructional Other,101624,Boston Public School Dept,Brighton High School,2473.15
2942884,1,1,8/10/2020,8,2,August,2021,2021,"Severin Intermediate Holdings, LLC",53802,EducSup Instructional Other,101624,Boston Public School Dept,Brighton High School,1324.9
2942885,1,1,8/10/2020,8,2,August,2021,2021,Murphy Specialties Inc,52601,RepairMnt Serv Building,221501,Fire Department,Facilities Maintenance,1995.18
2942886,1,1,8/10/2020,8,2,August,2021,2021,"Precision Hydraulic, Inc",52703,RepairSer Vehicles,300201,Parks & Recreation Department,Parks Maintenance,231.85
2942887,1,1,8/10/2020,8,2,August,2021,2021,"Moffett Turf Equipment, Inc.",52703,RepairSer Vehicles,300201,Parks & Recreation Department,Parks Maintenance,542
2942889,1,1,8/10/2020,8,2,August,2021,2021,Stewart's Power Equipment Inc.,52703,RepairSer Vehicles,300201,Parks & Recreation Department,Parks Maintenance,121.98
2942890,1,1,8/10/2020,8,2,August,2021,2021,Technical Development Corporation,52907,Cont Serv Other,414100,Office of Arts & Culture,Arts & Culture,3837.5
2942891,1,1,8/10/2020,8,2,August,2021,2021,Lindamood-Bell Learning Processess,52907,Cont Serv Other,101170,Boston Public School Dept,BPS Special Education,4356
2942892,1,1,8/10/2020,8,2,August,2021,2021,"Norfolk Power Equipment, Inc.",52703,RepairSer Vehicles,300201,Parks & Recreation Department,Parks Maintenance,261.43
2942893,1,1,8/10/2020,8,2,August,2021,2021,"Jamaica Plain Community Centers, Inc.",52925,ContServ Grants,385400,Boston Center-Youth & Families,Child Care & Out-of-School,15381.94
2942894,1,1,8/10/2020,8,2,August,2021,2021,Mr. Drain Inc,52907,Cont Serv Other,300201,Parks & Recreation Department,Parks Maintenance,694
2942895,1,1,8/10/2020,8,2,August,2021,2021,SiteOne Landscape Supply,53909,MiscSup Other,300201,Parks & Recreation Department,Parks Maintenance,271.8
2942896,1,1,8/10/2020,8,2,August,2021,2021,Mothers for Justice and Equality,52940,Subreceipt Contract  Services,211104,Police Department,RESEARCH AND DEVELOPMENT,594.41
2942897,1,1,8/10/2020,8,2,August,2021,2021,"Leap Self-Defense, Inc. d/b/a",52928,Youth Services,385300,Boston Center-Youth & Families,Youth & Family Services,2500
2942898,1,1,8/10/2020,8,2,August,2021,2021,SiteOne Landscape Supply,53909,MiscSup Other,300201,Parks & Recreation Department,Parks Maintenance,92.14
2942899,1,1,8/10/2020,8,2,August,2021,2021,Foundation for Boston Centers for Youth,52925,ContServ Grants,385400,Boston Center-Youth & Families,Child Care & Out-of-School,14561.3
2942900,1,1,8/10/2020,8,2,August,2021,2021,"M.E. O'Brien & Sons, Inc.",53909,MiscSup Other,300000,Parks & Recreation Department,Parks & Recreation Department,1842
2942901,1,1,8/10/2020,8,2,August,2021,2021,Chung Krystal,52907,Cont Serv Other,101170,Boston Public School Dept,BPS Special Education,2002
2942903,1,1,8/10/2020,8,2,August,2021,2021,"School Specialty, Inc.",53802,EducSup Instructional Other,101013,Boston Public School Dept,Early Learning Services,34.78
2942905,1,1,8/10/2020,8,2,August,2021,2021,Notre Dame Education Center,52940,Subreceipt Contract  Services,188100,Neighborhood Development,Administration,10144
2942906,1,1,8/10/2020,8,2,August,2021,2021,"IPS Group, Inc.",52906,ContServ IT Services,251501,Transportation Department,Parking Meters,54660.8
2942907,1,1,8/10/2020,8,2,August,2021,2021,"MAB Community Services, Inc.",52301,CntrtEduc Services/Tuitions,101188,Boston Public School Dept,BPS Sped Contracted Ed Service,10344.62
2942908,1,1,8/10/2020,8,2,August,2021,2021,"MAB Community Services, Inc.",52301,CntrtEduc Services/Tuitions,101188,Boston Public School Dept,BPS Sped Contracted Ed Service,10344.62
2942909,1,1,8/10/2020,8,2,August,2021,2021,"MAB Community Services, Inc.",52301,CntrtEduc Services/Tuitions,101188,Boston Public School Dept,BPS Sped Contracted Ed Service,2351.05
2942910,1,1,8/10/2020,8,2,August,2021,2021,"Nelnet Business Solutions, Inc.",52907,Cont Serv Other,101016,Boston Public School Dept,BPS Development,49757.65
2942911,1,1,8/10/2020,8,2,August,2021,2021,"MAB Community Services, Inc.",52301,CntrtEduc Services/Tuitions,101188,Boston Public School Dept,BPS Sped Contracted Ed Service,10344.62
2942912,1,1,8/10/2020,8,2,August,2021,2021,"MAB Community Services, Inc.",52301,CntrtEduc Services/Tuitions,101188,Boston Public School Dept,BPS Sped Contracted Ed Service,10344.62
2942914,1,1,8/10/2020,8,2,August,2021,2021,"Nelnet Business Solutions, Inc.",52907,Cont Serv Other,101016,Boston Public School Dept,BPS Development,159334.82
2942915,1,1,8/10/2020,8,2,August,2021,2021,"MAB Community Services, Inc.",52301,CntrtEduc Services/Tuitions,101188,Boston Public School Dept,BPS Sped Contracted Ed Service,10344.62
2942916,1,1,8/10/2020,8,2,August,2021,2021,"MAB Community Services, Inc.",52301,CntrtEduc Services/Tuitions,101188,Boston Public School Dept,BPS Sped Contracted Ed Service,10344.62
2942917,1,1,8/10/2020,8,2,August,2021,2021,"Nelnet Business Solutions, Inc.",52907,Cont Serv Other,101016,Boston Public School Dept,BPS Development,29055.68
2942918,1,1,8/10/2020,8,2,August,2021,2021,"MAB Community Services, Inc.",52301,CntrtEduc Services/Tuitions,101188,Boston Public School Dept,BPS Sped Contracted Ed Service,20848.12
2942919,1,1,8/10/2020,8,2,August,2021,2021,"MAB Community Services, Inc.",52301,CntrtEduc Services/Tuitions,101188,Boston Public School Dept,BPS Sped Contracted Ed Service,10344.62
2942920,1,1,8/10/2020,8,2,August,2021,2021,"Economy Plumbing Supply Co., Inc.",53909,MiscSup Other,300201,Parks & Recreation Department,Parks Maintenance,340.08
2942921,1,1,8/10/2020,8,2,August,2021,2021,"MAB Community Services, Inc.",52301,CntrtEduc Services/Tuitions,101188,Boston Public School Dept,BPS Sped Contracted Ed Service,10344.62
2942922,1,1,8/10/2020,8,2,August,2021,2021,"MAB Community Services, Inc.",52301,CntrtEduc Services/Tuitions,101188,Boston Public School Dept,BPS Sped Contracted Ed Service,10344.62
2942923,1,1,8/10/2020,8,2,August,2021,2021,United States Postal Service,56201,Special Appr Other,152200,Major Vendor Clearing Account,Postage Clearing,24467.57
2942925,1,1,8/10/2020,8,2,August,2021,2021,"MAB Community Services, Inc.",52301,CntrtEduc Services/Tuitions,101188,Boston Public School Dept,BPS Sped Contracted Ed Service,10344.62
2942927,1,1,8/10/2020,8,2,August,2021,2021,"Economy Plumbing Supply Co., Inc.",53909,MiscSup Other,300201,Parks & Recreation Department,Parks Maintenance,74.54
2942928,1,1,8/10/2020,8,2,August,2021,2021,Staples Contract & Commercial LLC,53802,EducSup Instructional Other,101286,Boston Public School Dept,Greenwood Schl K-8,23.99
2942929,1,1,8/10/2020,8,2,August,2021,2021,"MAB Community Services, Inc.",52301,CntrtEduc Services/Tuitions,101188,Boston Public School Dept,BPS Sped Contracted Ed Service,10344.62
2942930,1,1,8/10/2020,8,2,August,2021,2021,The Inst\Developmental/Disabli,52301,CntrtEduc Services/Tuitions,101188,Boston Public School Dept,BPS Sped Contracted Ed Service,12199.74
2942931,1,1,8/10/2020,8,2,August,2021,2021,Staples Contract & Commercial LLC,53802,EducSup Instructional Other,101286,Boston Public School Dept,Greenwood Schl K-8,30.89
2942933,1,1,8/10/2020,8,2,August,2021,2021,The Inst\Developmental/Disabli,52301,CntrtEduc Services/Tuitions,101188,Boston Public School Dept,BPS Sped Contracted Ed Service,11806.2
2942934,1,1,8/10/2020,8,2,August,2021,2021,The Inst\Developmental/Disabli,52301,CntrtEduc Services/Tuitions,101188,Boston Public School Dept,BPS Sped Contracted Ed Service,12199.74
2942936,1,1,8/10/2020,8,2,August,2021,2021,The Inst\Developmental/Disabli,52301,CntrtEduc Services/Tuitions,101188,Boston Public School Dept,BPS Sped Contracted Ed Service,11806.2
2942937,1,1,8/10/2020,8,2,August,2021,2021,Nat'l Institute for Automotive Svc Exc.,52907,Cont Serv Other,321100,Central Fleet Management,Fleet Services,207
2942938,1,1,8/10/2020,8,2,August,2021,2021,Mass Bay Electrical Corp.,52907,Cont Serv Other,30096D,Parks & Recreation Department,Floodlighting Fees,9940
2942939,1,1,8/10/2020,8,2,August,2021,2021,The Inst\Developmental/Disabli,52301,CntrtEduc Services/Tuitions,101188,Boston Public School Dept,BPS Sped Contracted Ed Service,12199.74
2942940,1,1,8/10/2020,8,2,August,2021,2021,The Inst\Developmental/Disabli,52301,CntrtEduc Services/Tuitions,101188,Boston Public School Dept,BPS Sped Contracted Ed Service,11806.2
2942941,6,1,8/10/2020,8,2,August,2021,2021,Really Good Stuff LLC,53802,EducSup Instructional Other,101219,Boston Public School Dept,Beethoven Elementary Schoo,31.41
2942941,5,1,8/10/2020,8,2,August,2021,2021,Really Good Stuff LLC,53802,EducSup Instructional Other,101219,Boston Public School Dept,Beethoven Elementary Schoo,25.89
2942941,4,1,8/10/2020,8,2,August,2021,2021,Really Good Stuff LLC,53802,EducSup Instructional Other,101219,Boston Public School Dept,Beethoven Elementary Schoo,55.46
2942941,3,1,8/10/2020,8,2,August,2021,2021,Really Good Stuff LLC,53802,EducSup Instructional Other,101219,Boston Public School Dept,Beethoven Elementary Schoo,64.72
2942941,2,1,8/10/2020,8,2,August,2021,2021,Really Good Stuff LLC,53802,EducSup Instructional Other,101219,Boston Public School Dept,Beethoven Elementary Schoo,55.46
2942941,1,1,8/10/2020,8,2,August,2021,2021,Really Good Stuff LLC,53802,EducSup Instructional Other,101219,Boston Public School Dept,Beethoven Elementary Schoo,166.34
2942942,1,1,8/10/2020,8,2,August,2021,2021,The Inst\Developmental/Disabli,52301,CntrtEduc Services/Tuitions,101188,Boston Public School Dept,BPS Sped Contracted Ed Service,12199.74
2942944,1,1,8/10/2020,8,2,August,2021,2021,The Inst\Developmental/Disabli,52301,CntrtEduc Services/Tuitions,101188,Boston Public School Dept,BPS Sped Contracted Ed Service,11806.2
2942945,1,1,8/10/2020,8,2,August,2021,2021,The Inst\Developmental/Disabli,52301,CntrtEduc Services/Tuitions,101188,Boston Public School Dept,BPS Sped Contracted Ed Service,12199.74
2942946,1,1,8/10/2020,8,2,August,2021,2021,The Inst\Developmental/Disabli,52301,CntrtEduc Services/Tuitions,101188,Boston Public School Dept,BPS Sped Contracted Ed Service,11806.2
2942948,1,1,8/10/2020,8,2,August,2021,2021,The Inst\Developmental/Disabli,52301,CntrtEduc Services/Tuitions,101188,Boston Public School Dept,BPS Sped Contracted Ed Service,12199.74
2942949,1,1,8/10/2020,8,2,August,2021,2021,"Pioneer Valley Educational Press, Inc.",53909,MiscSup Other,101018,Boston Public School Dept,Teaching & Learning,960
2942950,1,1,8/10/2020,8,2,August,2021,2021,The Inst\Developmental/Disabli,52301,CntrtEduc Services/Tuitions,101188,Boston Public School Dept,BPS Sped Contracted Ed Service,11806.2
2942951,1,1,8/10/2020,8,2,August,2021,2021,"Paul Revere Transportation, LLC",52907,Cont Serv Other,211506,Police Department,BFS- FIELD SERVICES,14550.48
2942952,2,1,8/10/2020,8,2,August,2021,2021,"Paul Revere Transportation, LLC",52907,Cont Serv Other,211506,Police Department,BFS- FIELD SERVICES,11086.08
2942953,3,1,8/10/2020,8,2,August,2021,2021,"Cyber Communications Solutions, Inc.",53909,MiscSup Other,101095,Boston Public School Dept,BPS School Safety Service,12.5
2942953,2,1,8/10/2020,8,2,August,2021,2021,"Cyber Communications Solutions, Inc.",53909,MiscSup Other,101095,Boston Public School Dept,BPS School Safety Service,591.36
2942953,1,1,8/10/2020,8,2,August,2021,2021,"Cyber Communications Solutions, Inc.",53909,MiscSup Other,101095,Boston Public School Dept,BPS School Safety Service,567
2942954,1,1,8/10/2020,8,2,August,2021,2021,Mass Bay Electrical Corp.,52922,ContServ Construction Capital,300000,Parks & Recreation Department,Parks & Recreation Department,33800
2942955,3,1,8/10/2020,8,2,August,2021,2021,"Paul Revere Transportation, LLC",52907,Cont Serv Other,211506,Police Department,BFS- FIELD SERVICES,11216
2942957,1,1,8/10/2020,8,2,August,2021,2021,LexisNexis Risk Solutions FL Inc.,52907,Cont Serv Other,211705,Police Department,INVESTIGATIVE SERVICES,547
2942958,1,1,8/10/2020,8,2,August,2021,2021,Standard Electric (a Division of USESI),53909,MiscSup Other,300201,Parks & Recreation Department,Parks Maintenance,198.42
2942959,1,1,8/10/2020,8,2,August,2021,2021,Gallagher Benefit Services Inc,54602,Health Ins. Payments,148100,Health Insurance,Health & Benefits - Admin,5953.5
2942960,1,1,8/10/2020,8,2,August,2021,2021,Mass Bay Electrical Corp.,52922,ContServ Construction Capital,300000,Parks & Recreation Department,Parks & Recreation Department,22200
2942962,1,1,8/10/2020,8,2,August,2021,2021,Standard Electric (a Division of USESI),53909,MiscSup Other,300201,Parks & Recreation Department,Parks Maintenance,6.54
2942963,1,1,8/10/2020,8,2,August,2021,2021,"Barnes & Noble Booksellers, Inc.",53802,EducSup Instructional Other,101113,Boston Public School Dept,Career & Technical Ed,35
2942964,1,1,8/10/2020,8,2,August,2021,2021,Standard Electric (a Division of USESI),53909,MiscSup Other,300201,Parks & Recreation Department,Parks Maintenance,172.8
2942966,1,1,8/10/2020,8,2,August,2021,2021,"W.B. Mason Co., Inc.",53909,MiscSup Other,101840,Boston Public School Dept,The Boston School Committee,17.56
2942968,2,1,8/10/2020,8,2,August,2021,2021,"W.B. Mason Co., Inc.",53909,MiscSup Other,101070,Boston Public School Dept,BPS Human Resource Team,118.5
2942968,1,1,8/10/2020,8,2,August,2021,2021,"W.B. Mason Co., Inc.",53909,MiscSup Other,101070,Boston Public School Dept,BPS Human Resource Team,26.58
2942969,1,1,8/10/2020,8,2,August,2021,2021,"W.B. Mason Co., Inc.",53802,EducSup Instructional Other,101324,Boston Public School Dept,Harvard-Kent School,127.56
2942970,1,1,8/10/2020,8,2,August,2021,2021,Standard Electric (a Division of USESI),53909,MiscSup Other,300201,Parks & Recreation Department,Parks Maintenance,21.38
2942971,1,1,8/10/2020,8,2,August,2021,2021,Cambridge Landscape Co.,52907,Cont Serv Other,300201,Parks & Recreation Department,Parks Maintenance,162
2942972,1,1,8/10/2020,8,2,August,2021,2021,Plimouth Plantation Inc.,52811,TransTrvl Field Trip,101649,Boston Public School Dept,Boston International High Schl,240
2942973,1,1,8/10/2020,8,2,August,2021,2021,Star Building Services Inc,52910,ContServ Cleaning,251502,Transportation Department,Signs & Markings,800
2942975,1,1,8/10/2020,8,2,August,2021,2021,"Neptune Uniform & Equipment, Inc.",53908,MiscSup Wearing Apparel,300202,Parks & Recreation Department,Park Rangers,84
2942976,1,1,8/10/2020,8,2,August,2021,2021,YERED TRAILERS,56201,Special Appr Other,300202,Parks & Recreation Department,Park Rangers,200
2942978,1,1,8/10/2020,8,2,August,2021,2021,Overhead Door Co.of Boston,52907,Cont Serv Other,300201,Parks & Recreation Department,Parks Maintenance,2542
2942979,1,1,8/10/2020,8,2,August,2021,2021,"Russo Boucher, Elaine",52919,ContServ Medical,211307,Police Department,HUMAN RESOURCES DIVISION,1764
2942980,1,1,8/10/2020,8,2,August,2021,2021,Equestrian Shop Inc.,53908,MiscSup Wearing Apparel,300202,Parks & Recreation Department,Park Rangers,269.95
